Workbook

Sheet PISA JUNIO 2019 (hidden)

Sheet ANEXO AySA NOTAS MONTOS (hidden)
C1: ANEXO AySA - NOTAS EN CAMPOS CORRESPONDIENTES A "MONTOS ORIGINAL", "MODIFICACIONES MONTO ORIGINAL" Y "MONTO VIGENTE"
A4: DIRECCION | B4: NOTA | C4: OC | D4: CONTRATISTA | E4: Revisión | F4: Monto revisiones | G4: Monto original con IVA Total OC | H4: Monto Revisiones con IVA - Total OC | I4: Monto vigente con IVA Total OC | J4: Monto estimado inversiones sobre el monto vigente con IVA | K4: Observaciones
A5: DRCF | B5: NOTA 1 | C5: 17305 | D5: COMPANIA SUDAMERICANA DE GAS S.A. | E5: Rev. 1 - ítems 13 al 24;Rev. 1 - ítems 25 al 30 | F5: 3.389.147,7; 282.283,89 | G5: =+I5-H5 -> 13669562.39 | H5: =(3389147.7+282283.89)*1.21 -> 4442432.224 | I5: 18111994.61
B6: NOTA 2 | C6: 17306 | D6: CONSTRUCCIONES ZUBDESA S.A. | E6: Rev. 1 Items 9 al 16. Rev 2 Items 17 al 20 | F6: $1.503.267,90;$ 117.073,47 | G6: 6063180.53 | H6: =(1503267.9+117073.47)*1.21 -> 1960613.058 | I6: 8023793.588
B7: NOTA 3 | C7: 20690 | D7: CONSTRUCCIONES ZUBDESA S.A. | E7: Rev. 1 ítems 25 al 32; Rev. 2 ítems 33 a 40; Rev 3 ítems 41 a 48; Rev. 4 ítems 49, 50 y 51- Se reduce monto ítems 9, 11, 17, 18 y 40;Rev. 6 items 52,53,54. | F7: $654.958,02;$756.289,58; $1.303.101,49;0;21.041.820,68 | G7: 55992515.5 | H7: =(654958.02+756289.58+1303101.49+21041820.68)*1.21 -> 28744965.42 | I7: 84737480.92
B8: NOTA 4 | C8: 20691 | D8: COMPANIA SUDAMERICANA DE GAS S.A. | E8: Rev. 1 ítem 25 a 27; Rev. 2 ítems 28 al 35;Rev. 3 ítems 51 al 58; Rev. 4 ítems 45 a 50;Rev. 5 ítems 51 a 58 | F8: $12.000.000;1.316.956,80;$1.587.171,06;$43.441.043;$3.085.787,72 | G8: 93613715.81 | H8: =(12000000+1316956.8+1587171.06+43441043+3085787.72)*1.21 -> 74331459.88 | I8: 167945175.7
A9: DRO | B9: NOTA 5 | C9: 3997 | D9: Construcciones Zubdesa S.A. | E9: Rev 1. Items 9, 10 y 11;Rev.2 ítems n° 12, 13 y 14; Rev. 4 ítems N° 15 al 18;Rev. 5 Items 19 a 22. | F9: $ 1.022.139; $ 326.643,00.-;$ 13.640.216,00;$ 346.776,00 | G9: 26210235.92 | H9: =(1022139+326643+13640216+346776)*1.21 -> 18556286.54 | I9: 44766522.46
B10: NOTA 6 | C10: 17310 | D10: Construcciones Zubdesa S.A. | E10: Rev. 2 ítems 17 al 22;Rev. 3 ítems 23 al 30 | F10: $ 2.235.000.-; $201.975 | G10: 13447670.17 | H10: =(2235000+201975)*1.21 -> 2948739.75 | I10: 16396409.92 | J10: 8721442.84
B11: NOTA 7 | C11: 11530 | D11: APCO SA | E11: Sin revision | F11: Sin revision | G11: =+I11 -> 332095.2085 | H11: 0 | I11: 332095.2085
B12: NOTA 8 | C12: 17605 | D12: Rowing SA | E12: Sin revision | F12: Sin revision | G12: =+I12 -> 542789.5319 | H12: 0 | I12: 542789.5319
B13: NOTA 9 | C13: 20694 | D13: Construcciones Zubdesa S.A. | E13: Rev. 1 ítem 41 a 60;Rev. 2 ítems 63 al 72;Rev. 3 ítems 73 y 74.;Rev. 4 ítems 77 y 78; Rev. 5 ítem 79 y 80 | F13: $1.325.141.;$ 907.443;$ 2.137.676;$ 1.554.174; $ 11.642.103 | G13: 95550462.38 | H13: 21255509.77 | I13: =+G13+H13 -> 116805972.1 | J13: 54760237.24
B14: NOTA 26 | C14: 20695 | D14: C&E Construcciones S.A. | E14: Rev. 1 ítem 33 a 48;Rev. 2 ítems 49 al 56;Rev. 3 ítems 57 y 58.;Rev. 4 ítems 59 y 60 | F14: $695.535; $447.219; $1.029.435; $809.920 | G14: 67316984.45 | H14: 3608351.89 | I14: =+G14+H14 -> 70925336.34 | J14: 37356369.23
A15: DRSE | B15: NOTA 10 | C15: 4000 | D15: APCO S.A. | E15: Rev. 1 Items 4, 5 y 6;Rev.2 Items 7 a 9;Rev. 3 Items 10 a 12; Rev 4 Items 13 a 15;Rev 5 Ítems 16 a 27 | F15: 11315457;$ 444,822.00;$12.850.000,00;$ 1.430.000,00;$ 539.479,53 | G15: =+I15-H15 -> 20464913.92 | H15: =(11315457+444822+12850000+1430000+539479.53)*1.21 -> 32161507.82 | I15: 52626421.74
B16: NOTA 11 | C16: 4003 | D16: TORASSO-SAUCEDAL UTE | E16: Rev. 1 Items 4 y 5;Rev. 2 items 6 a 8 ;Rev. 4 Items 9 a 11 ;Rev. 5 Items 12 a 13 | F16: $ 2781951;$ 287.705,00;$ 5.232.000,00;$ 2.137.000,00 | G16: 16575913.9 | H16: =(2781951+287705+5232000+2137000)*1.21 -> 12630773.76 | I16: 29206687.66
B17: NOTA 12 | C17: 17312 | D17: COMPANIA SUDAMERICANA DE GAS S.A. | E17: Rev. 1 ítems 16 al 21; Rev. 2 ítems 22 a 27. | F17: $2.967.163,70.;$303.347,72.- | G17: 11967560.33 | H17: =(2967163.7+303347.72)*1.21 -> 3957318.818 | I17: 15924879.15
B18: NOTA 13 | C18: 17313 | D18: TORASSO-SAUCEDAL UTE | E18: Rev. 1 ítems 11 al 14;Rev. 3 ítems 15 al 18 | F18: $275.000,00.;$54.340,16. | G18: 3465915.082 | H18: =(275000+54340.16)*1.21 -> 398501.5936 | I18: 3864416.676
B19: NOTA 14 | C19: 20696 | D19: COMPANIA SUDAMERICANA DE GAS S.A. | E19: Rev. 1 ítems 25 al 36;Rev. 2 ítems 37 al 42;Rev. 3 ítems 43 al 48; Rev. 4 ítems 49 a 55 con reducción de items varios; Rev. 5 ítems 56 al 61 | F19: $1.204.899,11;$995.179,10;$2.122.439,11;0;$1.752.592,62 | G19: 81107297.86 | H19: =(1204899.11+995179.1+2122439.11+1752592.62)*1.21 -> 7350883.027 | I19: 88458180.89
B20: NOTA 15 | C20: 20697 | D20: TORASSO-SAUCEDAL UTE | E20: Rev. ítems 25 al 32; Rev. 2 items 23 a 26; Rev.3 Items 27 a 30; Rev 4 items 31 al 34 | F20: $175.746,23.-;$184.978,74;$ 391.702,67;$287.356,05.- | G20: 25347685.29 | H20: =(175746.23+184978.74+391702.67+287356.05)*1.21 -> 1258138.265 | I20: 26605823.56
B21: NOTA 16 | C21: 31162 | D21: COMPANIA SUDAMERICANA DE GAS S.A. | E21: Sin revision | F21: Sin revision | G21: =+I21 -> 11164859.27 | H21: 0 | I21: 11164859.27 | J21: =(391483.65+947823.78+2868174.91+1892036.4)*1.21 -> 7380417.675
A22: DRSO | B22: NOTA 17 | C22: 17314 | D22: Torasso Saucedal | E22: 12393394.75 | H22: =(1300000+171305.42)*1.21 -> 1780279.558 | I22: 12393394.75
B23: NOTA 18 | C23: 20698 | D23: Torasso Saucedal UTE | E23: Rev. 2 items 58 a 69;Rev.3 ítems 70 a 77;Rev. 4 ítems 78 a 89;Rev. 5 ítems 90 a 104;Rev. 6 ítems 105 a 123; | F23: $736.227,31.-; $646.216,20.-; $1.214.270,49.-; $730.100,63;$ 12.962.410.- | G23: 66144806.19 | H23: =+I23-G23 -> 100575608.3 | I23: 166720414.5 | J23: 83003589.33
B24: -NOTA 18.1 | C24: 20698 | D24: Torasso Saucedal UTE | J24: 15982036.49 | K24: Inversiones - Municipios Almirante Brown - Esteban Echeverria
B25: -NOTA 18.2 | C25: 20698 | D25: Torasso Saucedal UTE | J25: 10977150.2 | K25: Inversiones - Municipios Almirante Brown - Esteban Echeverria - Ezeiza
B26: -NOTA 18.3 | C26: 20698 | D26: Torasso Saucedal UTE | J26: 7409965.04 | K26: Inversiones - Municipio de Ezeiza
B27: -NOTA 18.4 | C27: 20698 | D27: Torasso Saucedal UTE | J27: 32807109.18 | K27: Inversiones - Municipio de Lomas de Zamora
B28: -NOTA 18.5 | C28: 20698 | D28: Torasso Saucedal UTE | J28: 15827328.42 | K28: Inversiones - Región Sudoeste
B29: NOTA 19 | C29: 26334 | D29: APCO | E29: 287004.9094 | H29: 0 | I29: 287004.9094
A31: A+T | B31: NOTA 20 | C31: Cada proyecto de inversión de la Dirección de Desarrollo de la Comunidad incluye varios módulos, cuyo plazos de obra varía de acuerdo a la complejidad de las tareas, tipo de suelo, cantidad de metros. La duración promedio de cada módulo es de 8 a 12 meses
B34: NOTA 21 | C34: En 2012 los cargos en concepto de mano de obra no tienen IVA
A37: DI M&M | B37: NOTA 22 | C37: Proyectos 1060571/1060572/1060581/1060584/1060587/1060590/1060593 | G37: 5074689 | H37: =+I37-G37 -> 626367 | I37: 5701056 | K37: Este monto vigente fue prorrateado en función del monto de ejecución.
A40: A+T | B40: NOTA 23 | C40: Para el cálculo del monto contractual vigente, la Dirección de Desarrollo de la Comunidad (A+T), adiciona al monto del convenio, el monto ejecutado de materiales y contratistas con IVA, contratistas sin IVA (Sgbatos) por capacitaciones y mano de obra
E43: MONTO OC S/IVA | F43: MONTO OC C/IVA
A44: DRSO | B44: NOTA 26 | C44: 36943 | D44: TORASSO Construcciones S.R.L.-CyCO Asociados S.A.-CS Tarsa S.A. (UTE) | E44: 72151336.5 | F44: =+E44*1.21 -> 87303117.16
C46: 36942 | D46: TORASSO Construcciones S.R.L.-CyCO Asociados S.A.-CS Tarsa S.A. (UTE) | E46: 30080386.21 | F46: =+E46*1.21 -> 36397267.31
C48: 36941 | D48: TORASSO Construcciones S.R.L.-CyCO Asociados S.A.-CS Tarsa S.A. (UTE) | E48: 120679757.4 | F48: =+E48*1.21 -> 146022506.4
D51: N°OC | E51: CONTRATISTA | F51: MONTO OC S/IVA | G51: MONTO OC C/IVA | H51: VIGENCIA ORDEN DE COMPRA
A52: DRSE | B52: NOTA 27 | C52: 1659 - 1679-1680 | D52: 39632 | E52: COMPANIA SUDAMERICANA DE GAS S.A. | F52: 175166909.6 | G52: =F52*1.21 -> 211951960.6 | H52: 1/10/14 AL 30/09/17
D54: 39631 | E54: APCO S.A. | F54: 78685842.1 | G54: =F54*1.21 -> 95209868.94 | H54: 1/10/14 AL 30/09/17
C58: NOTA 24
C60: N° DE ORDEN: 298
C62: PROYECTO: N960502 - NUEVAS PERFORACIONES POR ADMINISTRACION OBRA CIVIL
C63: PROYECTO: N960503 - NUEVAS PERFORACIONES POR ADMINISTRACION OBRA ELECTROMECÁNICA
C65: Municipio | D65: Barrio / Localidad | E65: Localización exacta
C66: Almirante Brown | D66: Ministro Rivadavia | E66: Estanislao Cevallos a 650 mts R. Argentina
C67: Almirante Brown | D67: Ministro Rivadavia | E67: Calle Rivera a 700 mts Av. Espora
C68: Almirante Brown | D68: Burzaco | E68: Villarino a 700 mts. de Av. Argentina
C69: Esteban Echeverría | D69: Monte Grande | E69: Subtte. Gonzalez y Vias Metropolitano
C70: Esteban Echeverría | D70: Monte Grande | E70: Tte. Grande y Vias Metropolitano
C71: Esteban Echeverría | D71: Monte Grande | E71: Casacuberta e/ Av. Valette y J. V González
C72: Esteban Echeverría | D72: Monte Grande | E72: Lima e/ Av. Valette y Francia
C73: La Matanza | D73: Virrey del Pino | E73: Balleirini y Areco
C74: La Matanza | D74: Virrey del Pino | E74: Areco y California
C75: La Matanza | D75: Virrey del Pino | E75: Chivilcoy y California
C76: La Matanza | D76: Virrey del Pino | E76: Nahuel Huapi y Esperanza
C77: La Matanza | D77: Virrey del Pino | E77: Loefler e/ Villarroel y Fernandez
C78: La Matanza | D78: Virrey del Pino | E78: Pedro de Angelis s/n e/ Caldas y Nuñez
C79: La Matanza | D79: Virrey del Pino | E79: P. de Angelis y Nahuel Huapi
C80: La Matanza | D80: Virrey del Pino | E80: Nazarre Alejo y Paraná
C81: La Matanza | D81: Virrey del Pino | E81: Navarro y Paraná
C82: La Matanza | D82: Virrey del Pino | E82: California y Patagonia
C83: La Matanza | D83: Gonzalez Catán | E83: Barrientos e Iberá
C84: La Matanza | D84: Gonzalez Catán | E84: J. Nuwbery e/ Barrientos y Barragán
C85: La Matanza | D85: Rafael Castillo | E85: Esquiro e/ Eufrates y Chavarria
C88: NOTA 25
C90: N° DE ORDEN: 1274
C92: PROYECTO: 1054012 - INSTRUMENTACION - LP2
C94: INSTRUMENTOS | D94: CANTIDAD | E94: Estación Elevadora | F94: Partido | G94: Direcciòn
C95: Medidores de nivel para tanques de hipoclorito | D95: 4 | E95: EE Floresta | F95: Capital Federal | G95: Florentino Ameghino 1452
D96: 3 | E96: EE Lanús | F96: Lanús | G96: Salta 350 - Lanús
D97: 4 | E97: EE Constitución | F97: Capital Federal | G97: Pavon 1859. Capital
D98: 3 | E98: EE Centro | F98: Capital Federal | G98: Ayacucho 750
D99: 2 | E99: EE Devoto | F99: Capital Federal | G99: Navarro 4150
C100: Medidores de Temperatura sin contacto | D100: 1 | E100: EE Tres de Febrero | F100: Tres de Febrero | G100: M de Alvear 2300. J. Ingenieros
D101: 1 | E101: EE Caballito | F101: Capital Federal | G101: Av. Pedro Goyena 458
D102: 1 | E102: EE Centro | F102: Capital Federal | G102: Ayacucho 750
D103: 1 | E103: EE La Matanza | F103: La Matanza | G103: Av. San Martín y Nazca (Lomas del Mirador)
D104: 1 | E104: EE Devoto | F104: Capital Federal | G104: Navarro 4150
C105: Medidores de presión lineal con display digital | D105: 38 | E105: EE Devoto | F105: Capital Federal | G105: Navarro 4150
D106: 12 | E106: EE Centro | F106: Capital Federal | G106: Ayacucho 750
D107: 15 | E107: EE Caballito | F107: Capital Federal | G107: Av. Pedro Goyena 458
D108: 1 | E108: EE Constitución | F108: Capital Federal | G108: Pavon 1859. Capital
C109: Luxómetro digital | D109: 1 | E109: Oficina Técnica de EE | F109: Capital Federal | G109: Av. de los Ombúes 209
C110: Decibelímetro digital | D110: 1 | E110: Oficina Técnica de EE | F110: Capital Federal | G110: Av. de los Ombúes 209
C111: Medidores de nivel para cámaras de aspiración con display digital. | D111: 1 | E111: EE Floresta | F111: Capital Federal | G111: Florentino Ameghino 1452
D112: 1 | E112: EE Constitución | F112: Capital Federal | G112: Pavon 1859. Capital
D113: 1 | E113: EE Centro | F113: Capital Federal | G113: Ayacucho 750
D114: 1 | E114: EE Lanús | F114: Lanús | G114: Salta 350 - Lanús
D115: 1 | E115: EE Devoto | F115: Capital Federal | G115: Navarro 4150
D116: 1 | E116: EE Tres de Febrero | F116: Tres de Febrero | G116: M de Alvear 2300. J. Ingenieros
D117: 1 | E117: EE Morón | F117: Morón | G117: Derqui 1, y Acceso Oeste. Morón
D118: 1 | E118: EE Villa Adelina | F118: Vte. López | G118: Caxaraville 3530. Carapachay
D119: 1 | E119: EE Saveedra | F119: Capital Federal | G119: Mariano Acha 3465.
D120: 1 | E120: EE La Matanza | F120: La Matanza | G120: Av. San Martín y Nazca (Lomas del Mirador)
C121: Provisión de monitores de caudal electrónico para la protección de las bombas de EE Lanús y EE Quilmes. | D121: 5 | E121: EE Lanús | F121: Lanús | G121: Salta 350 - Lanús
D122: 5 | E122: EE Quilmes | F122: Quilmes | G122: Coronel Lynch 1600 - Avellaneda

Sheet POR JURISDICCION (hidden)
A4: INVERSIÓN EN LA CMR AL 30 DE JUNIO DE 2019
B6: RECURSOS NETOS DEVENGADOS EN LA CMR
B8: CONCEPTO | C8: DEVENGADO 2016 | D8: DEVENGADO 2017 | E8: DEVENGADO TOTAL 2018 | F8: DEVENGADO 1° SEMESTRE 2019
B10: TOTAL DE RECURSOS DEVENGADOS | C10: 8074389911 | D10: 1.546516175e+10 | E10: 2.110637671e+10 | F10: 1.2234075e+10
B11: TRANSFERENCIAS ENTRE JURISDICCIONES* | C11: -322947260 | D11: -2524242732 | E11: -2906354246 | F11: -2544026064
B13: RECURSOS NETOS DEVENGADOS EN LA CMR | C13: 7751442651 | D13: 1.294091902e+10 | E13: 1.820002247e+10 | F13: 9690048931
B15: *NOTA: Con el objetivo de reflejar los recursos netos devengados en la CMR, este concepto contempla aquellos recursos devengados por una Jurisdicción en concepto de transferencias a otra a cargo de su ejecución y que, por ende, deben ser deducidos para evitar duplicaciones.
B18: RECURSOS DEVENGADOS EN LA CMR - DETALLE POR JURISDICCIÓN
B20: NIVEL / SUBJURISDICCIÓN / PROGRAMA | C20: DEVENGADO 2016 | D20: DEVENGADO 2017 | E20: DEVENGADO 2018 | F20: DEVENGADO 1° SEMESTRE 2019
B21: 1. ESTADO NACIONAL | C21: 5945097035 | D21: 1.053848635e+10 | E21: 1.567017352e+10 | F21: 9241117840
B22: 2. PROVINCIA DE BS AS | C22: 745104337.5 | D22: 2015901532 | E22: 1530497713 | F22: 1265412010
B23: 3. CABA | C23: 703659556.6 | D23: 1887831924 | E23: 2146145174 | F23: 1121822089
B24: 4. ACUMAR | C24: 680528982.1 | D24: 1022941939 | E24: 1759560309 | F24: 605723056.2
B25: TOTAL DE RECURSOS DEVENGADOS | C25: 8074389911 | D25: 1.546516175e+10 | E25: 2.110637671e+10 | F25: 1.2234075e+10

Sheet Total de obras
B2: Inversiones Cuenca Matanza Riachuelo - Ejecución 2020
B4: ID | C4: NIVEL | D4: AGRUPAMIENTO POR OBRA/ACTIVIDAD | E4: DENOMINACIÓN | F4: NAT | G4: JURISDICCIÓN | H4: SAF | I4: SUBJ./ SECRET./ ENTIDAD | J4: PROGRAMA | K4: SUB0PROG | L4: PROYECTO | M4: ACTIVIDAD | N4: OBRA | O4: F. FINANC. | P4: INC | Q4: PPAL | R4: PARC | S4: SUB PARC | T4: FI | U4: FU | V4: UG | W4: TIPO DE ASIG | X4: OBRA/ACT | Y4: ENTE EJECUTOR | Z4: MUNICIPIO | AA4: LOCALIDAD/ COMUNA | AB4: DIRECCIÓN DE LA OBRA | AC4: FECHA DE INICIO | AD4: FECHA DE FIN | AE4: MONTO ORIGINAL | AF4: MODIFICACIONES MONTO ORIGINAL | AG4: OTRAS MODIFICACIONES MONTO ORIGINAL | AH4: MONTO VIGENTE | AI4: DEVENGADO 2018 | AJ4: DEVENGADO 2019 | AK4: PRESUPUESTO 2020 | AL4: DEVENGADO 1° SEM. 2020 | AM4: DEVENGADO 2° SEM. 2020 | AN4: TOTAL DEVENGADO 2020 | AO4: ESTADO | AP4: AVANCE FINANCIERO | AQ4: AVANCE FÍSICO | AR4: OBSERVACIONES
B5: 118 | C5: 1. ESTADO NACIONAL | D5: REDES DE AGUA LA MATANZA | E5: PLAN YSA A + T DR. OESTE LA MATANZA | F5: 2 | G5: 91. OBLIGACIONES DEL TESORO | H5: 356 | I5: AYSA | J5: 95. ASISTENCIA FINANCIERA A EMPRESAS PÚBLICAS Y ENTE BINACIONAL | K5: 5 | L5: N848408 | M5: 77 | N5: - | O5: 22 Y RECURSOS PROPIOS | P5: 5 | Q5: 5 | R5: 7 | S5: 753 | T5: 3 | U5: 8 | V5: 2 | W5: 2 | X5: SIN P3 | Y5: - | Z5: LA MATANZA | AA5: LA MATANZA | AB5: A LUSITANO, A EL FORTÍN M4, CANILLAS COMUNITARIAS V. CELINA, FALTANTE LASALLE M2 Y SAN ENRIQUE M3 / AMPLIACION EL TALA M1 / CASTILLO CENTRO M3 / CRISTIANIA M6/ CRISTIANIA M7 / EL PORVENIR M2 / EL TAMBO M1 / EL TAMBO M2 / EMILIOZZI M3 / EMILIOZZI M4 / LA ABADIA M3 / LOS CEDROS 1 M1 A M7 / MI ESPERANZA M5 / PARQUE SARMIENTO M3 / SAN MARTIN M2 Y M3 / SAN ROQUE M3 / AMERICA M3 / LA ISLA M1 / MI ESPERANZA M11 - DORREGO M7 / ORO VERDE M4 / LUJAN M4 /GIARDINO M2 / DOREGO M6 / LOS CEDROS 2 M1 A M8 / SAN IGNACIO M3 Y M4 / CRISTIANIA M8 Y M9 / LOS CEDROS B M1 A M3 / A LA LOMA M3, A LAS NIEVES M3, A SANTA CLARA M2, INTERCONEXIÓN CISTERNA B° MUNICIPAL, 22 DE ENERO | AC5: 2008-08-22 | AD5: 2009-08-10 | AE5: 11471411.87 | AF5: 47032.7 | AG5: 9836568.352 | AH5: 21355012.92 | AI5: 1132.8625 | AJ5: 9801 | AK5: 0 | AL5: 0 | AM5: 0 | AN5: 0 | AO5: FINALIZADO | AP5: 1 | AQ5: 1 | AR5: SE MODIFICA LA EJECUCIÓN 2018 YA QUE NO TOMARON LOS VALORES INFORMADOS OPORTUNAMENTE
B6: 138 | C6: 1. ESTADO NACIONAL | D6: SISTEMA CLOACAS BERAZATEGUI | E6: SIST. BERAZATEGUI PRIMERA ETAPA PLANTA DE PRETRATAMIENTO OBRA CIVIL Y ELECTROMECÁNICA | F6: 2 | G6: 91. OBLIGACIONES DEL TESORO | H6: 356 | I6: AYSA | J6: 95. ASISTENCIA FINANCIERA A EMPRESAS PÚBLICAS Y ENTE BINACIONAL | K6: 5 | L6: A861602/03 | M6: 77 | N6: - | O6: 22 Y RECURSOS PROPIOS | P6: 5 | Q6: 5 | R6: 7 | S6: 753 | T6: 3 | U6: 8 | V6: 2 | W6: 2 | X6: SC497 | Y6: - | Z6: BERAZATEGUI | AA6: BERAZATEGUI | AB6: EL PREDIO SE ENCUENTRA AL NOROESTE DEL PARTIDO DE BERAZATEGUI, CERCANO AL LÍMITE CON EL PARTIDO DE QUILMES, ENTRE LA AUTOPISTA BUENOS AIRES-LA PLATA Y LA COSTA DEL RÍO DE LA PLATA. | AC6: 2009-01-05 | AD6: 2013-10-13 | AE6: 323100666 | AF6: 382961607 | AG6: -37338947.6 | AH6: 668723325.4 | AI6: 1914528.61 | AJ6: -141082.128 | AK6: -1914528.973 | AL6: - | AM6: 0 | AN6: - | AO6: FINALIZADO | AP6: 0.9969053287 | AQ6: 1 | AR6: AÑOS ANTERIORES EL PROYECTO FUE FINANCIADO POR PRÉSTAMO ANSES Y FUENTE 1.1. EL MONTO VIGENTE INCLUYE EL VALOR DEL CONTRATO ORIGINAL, + REDETERM. CONOCIDAS + ADDENDAS FIRMADAS + REDETERM. ESTIMADAS.
B7: 541 | C7: 1. ESTADO NACIONAL | D7: COMPLEJO BARRIO GENOVA | E7: Bº GENOVA - 73 VIV | F7: 2 | G7: MINISTERIO DE OBRAS PÚBLICAS | H7: 325 | I7: MINISTERIO DE DESARROLLO TERRITORIAL Y HABITAT | J7: 71. URBANIZACIÓN DE VILLAS Y ASENTAMIENTOS PRECARIOS. | K7: - | L7: - | M7: 77.VIVIENDAS NUEVAS EN LA CUENCA MATANZA RIACHUELO | N7: 36/08 | O7: 11 | P7: 5 | Q7: 8 | R7: 6 | S7: 0 | T7: 3 | U7: 7 | V7: 6 | W7: 1 | X7: - | Y7: - | Z7: AVELLANEDA | AA7: GÉNOVA | AB7: Bº GENOVA | AC7: 2009-05-08 | AD7: - | AE7: 12418823.09 | AF7: 562026.57 | AG7: 0 | AH7: 12980849.66 | AI7: 0 | AJ7: 0 | AK7: =AN7 -> 0 | AL7: 0 | AM7: 0 | AN7: 0 | AO7: - | AP7: 1 | AQ7: 1 | AR7: -
B8: 542 | C8: 1. ESTADO NACIONAL | D8: COMPLEJO BARRIO DOCK SUD | E8: BARRIO DOCK SUD - 100 VIV | F8: 2 | G8: MINISTERIO DE OBRAS PÚBLICAS | H8: 354 | I8: MINISTERIO DE DESARROLLO TERRITORIAL Y HABITAT | J8: 46. URBANIZACIÓN DE VILLAS Y ASENTAMIENTOS PRECARIOS. | K8: - | L8: - | M8: 77.VIVIENDAS NUEVAS EN LA CUENCA MATANZA RIACHUELO | N8: 36/08 | O8: 11 | P8: 5 | Q8: 8 | R8: 6 | S8: 0 | T8: 3 | U8: 7 | V8: 6 | W8: 1 | X8: - | Y8: - | Z8: AVELLANEDA | AA8: DOCK SUD | AB8: Bº DOCK SUD | AC8: 2009-05-15 | AD8: 2012-10-09 | AE8: 17289377.36 | AF8: 1286078.4 | AG8: 0 | AH8: 18575455.76 | AI8: 0 | AJ8: 0 | AK8: =AN8 -> 0 | AL8: 0 | AM8: 0 | AN8: 0 | AO8: - | AP8: 1 | AQ8: 1 | AR8: -
B9: 544 | C9: 1. ESTADO NACIONAL | D9: COMPLEJO BARRIO LA SALADITA | E9: Bº LA SALADITA - 138 VIV | F9: 2 | G9: MINISTERIO DE OBRAS PÚBLICAS | H9: 354 | I9: MINISTERIO DE DESARROLLO TERRITORIAL Y HABITAT | J9: 46. URBANIZACIÓN DE VILLAS Y ASENTAMIENTOS PRECARIOS. | K9: - | L9: - | M9: 77.VIVIENDAS NUEVAS EN LA CUENCA MATANZA RIACHUELO | N9: 36/08 | O9: 11 | P9: 5 | Q9: 8 | R9: 6 | S9: 0 | T9: 3 | U9: 7 | V9: 6 | W9: 1 | X9: - | Y9: - | Z9: AVELLANEDA | AA9: LA SALADITA | AB9: Bº LA SALADITA | AC9: 2009-05-08 | AD9: - | AE9: 18380473.82 | AF9: 9334297.56 | AG9: 0 | AH9: 27714771.38 | AI9: 0 | AJ9: 0 | AK9: =AN9 -> 0 | AL9: 0 | AM9: 0 | AN9: 0 | AO9: - | AP9: 1 | AQ9: 0.05 | AR9: -
B10: 563 | C10: 1. ESTADO NACIONAL | D10: COMPLEJO GRAL. PAZ Y CASTAÑARES | E10: 220 DE 780 VIV - GRAL. PAZ Y CASTAÑARES | F10: 2 | G10: MINISTERIO DE OBRAS PÚBLICAS | H10: 325 | I10: MINISTERIO DE DESARROLLO TERRITORIAL Y HABITAT | J10: 71. URBANIZACIÓN DE VILLAS Y ASENTAMIENTOS PRECARIOS. | K10: - | L10: - | M10: 77.VIVIENDAS NUEVAS EN LA CUENCA MATANZA RIACHUELO | N10: 251/2008 | O10: 11 | P10: 5 | Q10: 8 | R10: 1 | S10: 0 | T10: 3 | U10: 7 | V10: 2 | W10: 1 | X10: - | Y10: - | Z10: CABA | AA10: - | AB10: GRAL. PAZ Y CASTAÑARES | AC10: - | AD10: - | AE10: 193064501 | AF10: 28443612.1 | AG10: 0 | AH10: 221508113.1 | AI10: 0 | AJ10: 0 | AK10: =AN10 -> 0 | AL10: 0 | AM10: 0 | AN10: 0 | AO10: EN ANÁLISIS | AP10: 0.9859 | AQ10: 0.91 | AR10: -
B11: 610 | C11: 1. ESTADO NACIONAL | D11: ARROYO DEL REY | E11: OBRA - ARROYO DEL REY - PGA - OBRAS DE PRIMERA PRIORIDAD | F11: 2 | G11: MINISTERIO DE OBRAS PÚBLICAS | H11: - | I11: SECRETARÍA DE INFRAESTRUCTURA Y POLÍTICA HÍDRICA | J11: EXTRAPRESUPUESTARIO - FFIH - FONDO FIDUCIARIO INFRAESTRUCTURA HÍDRICA | K11: - | L11: - | M11: - | N11: BUE085 | O11: FFIH | P11: - | Q11: - | R11: - | S11: - | T11: - | U11: - | V11: - | W11: 1 | X11: - | Y11: SSRH | Z11: LOMAS DE ZAMORA | AA11: ING. BUDGE | AB11: REVESTIMIENTO DEL CAUCE DEL ARROYO DEL REY DESDE LA DESEMBOCADURA EN EL RÍO MATANZA HASTA CALLE GARIBALDI | AC11: 2006-06-14 | AD11: - | AE11: 98688252.5 | AF11: 549675200 | AG11: 158561052 | AH11: 894948287.3 | AI11: 172256144.9 | AJ11: 34938322.54 | AK11: 18060759.44 | AL11: 0 | AM11: 0 | AN11: 0 | AO11: FINALIZADO | AP11: 0.9798 | AQ11: 1 | AR11: -
B12: 794 | C12: 1. ESTADO NACIONAL | D12: SISTEMA CLOACAS LA MATANZA | E12: EQUIPAMIENTO ELECTROMECÁNICO | F12: 2 | G12: 91. OBLIGACIONES DEL TESORO | H12: 356 | I12: AYSA | J12: 95. ASISTENCIA FINANCIERA A EMPRESAS PÚBLICAS Y ENTE BINACIONAL | K12: 5 | L12: 1055102 | M12: 5 | N12: - | O12: 11 | P12: 5 | Q12: 5 | R12: 7 | S12: 753 | T12: 3 | U12: 8 | V12: 96 | W12: 2 | X12: SIN P3 | Y12: - | Z12: LA MATANZA | AA12: ALDO BONZI | AB12: PLANTA SUDOESTE - ANA MARÍA JANER Y PALPA - ALDO BONZI | AC12: 2010-04-27 | AD12: 2011-05-01 | AE12: 2372104.57 | AF12: 0 | AG12: -541272.8816 | AH12: 1830831.688 | AI12: 0 | AJ12: -19791.6312 | AK12: 0 | AL12: 0 | AM12: 0 | AN12: 0 | AO12: FINALIZADO | AP12: 0.9891898139 | AQ12: 1 | AR12: -
B13: 1227 | C13: 1. ESTADO NACIONAL | D13: PLAN DE CONTINGENCIA ANTE INUNDACIONES | E13: SERVICIOS NO PERSONALES | F13: 2 | G13: MINISTERIO DE OBRAS PÚBLICAS | H13: 364 | I13: MINISTERIO DE OBRAS PUBLICAS | J13: 44. UNIDAD DE COORDINACIÓN GENERAL DEL PROYECTO BIRF 7706-AR | K13: - | L13: - | M13: 79 | N13: - | O13: 11 | P13: 3 | Q13: 4 | R13: 1 | S13: - | T13: 4 | U13: 4 | V13: 2 | W13: 1 | X13: - | Y13: UCGP | Z13: CUENCA MATANZA RIACHUELO | AA13: - | AB13: - | AC13: - | AD13: - | AE13: 0 | AF13: 0 | AG13: 0 | AH13: 0 | AI13: 795894.93 | AJ13: 0 | AK13: 0 | AL13: 0 | AM13: 0 | AN13: 0 | AO13: - | AP13: - | AQ13: - | AR13: HONORARIOS CONSULTORES
B14: 1228 | C14: 1. ESTADO NACIONAL | D14: CONSULTORÍAS INDIVIDUALES | E14: SERVICIOS NO PERSONALES | F14: 2 | G14: MINISTERIO DE OBRAS PÚBLICAS | H14: 364 | I14: MINISTERIO DE OBRAS PUBLICAS | J14: 44. UNIDAD DE COORDINACIÓN GENERAL DEL PROYECTO BIRF 7706-AR | K14: - | L14: - | M14: 77 | N14: - | O14: 22 | P14: 3 | Q14: 4 | R14: 9 | S14: - | T14: 4 | U14: 4 | V14: 2 | W14: 1 | X14: - | Y14: UCGP | Z14: CUENCA MATANZA RIACHUELO | AA14: - | AB14: - | AC14: - | AD14: - | AE14: 0 | AF14: 0 | AG14: 0 | AH14: 0 | AI14: 6765318.5 | AJ14: 6895745.64 | AK14: 10874888 | AL14: 4618414.92 | AM14: 5459846.24 | AN14: 10078261.16 | AO14: - | AP14: 0.64 | AQ14: - | AR14: -
B15: 1281 | C15: 1. ESTADO NACIONAL | D15: SISTEMA CLOACAS LOMAS DE ZAMORA | E15: TERRENO PARA PLANTA DE TRATAMIENTO DE EFLUENTES CLOACALES FIORITO | F15: 2 | G15: 91. OBLIGACIONES DEL TESORO | H15: 356 | I15: AYSA | J15: 95. ASISTENCIA FINANCIERA A EMPRESAS PÚBLICAS Y ENTE BINACIONAL | K15: 5 | L15: 1161605 | M15: 5 | N15: - | O15: 11 | P15: 5 | Q15: 5 | R15: 7 | S15: 753 | T15: 3 | U15: 8 | V15: 96 | W15: 2 | X15: SIN P3 | Y15: - | Z15: LOMAS DE ZAMORA | AA15: VILLA FIORITO | AB15: EL PREDIO SE ENCUENTRA UBICADO EN EL CAMINO DE LA RIBERA SUD (PARCELA 1 – FRACCIÓN 1), CONTIGUO AL RIACHUELO Y EN LAS CERCANÍAS DEL PUENTE DE LA NORIA. | AC15: Se tomó posesión del predio el 09/05/12 | AD15: No aplica por ser Juicio de expropiación | AE15: 25029095 | AF15: 0 | AG15: 82577782.46 | AH15: 107606877.5 | AI15: 99371782.23 | AJ15: -20862599.65 | AK15: 0 | AL15: 0 | AM15: 0 | AN15: 0 | AO15: FINALIZADO | AP15: 1 | AQ15: 1 | AR15: EN DIC 18 SE ACTIVÓ UNA CONTINGENCIA POR EL JUICIO DE EXPROPIACIÓN DEL TERRENO QUE FUE CONSIDERADA EN LA COLUMNA OTROS COSTOS INCREMENTANDO EL MONTO VIGENTE DE LA OBRA.
B16: 1297 | C16: 1. ESTADO NACIONAL | D16: SISTEMA CLOACAS AVELLANEDA | E16: ESTACION BOMBEO CLOACAL SARMIENTO - OBRA ELECTROMECANICA | F16: 2 | G16: 91. OBLIGACIONES DEL TESORO | H16: 356 | I16: AYSA | J16: 95. ASISTENCIA FINANCIERA A EMPRESAS PÚBLICAS Y ENTE BINACIONAL | K16: 5 | L16: 1160316 | M16: 77 | N16: - | O16: 22 Y RECURSOS PROPIOS | P16: 5 | Q16: 5 | R16: 7 | S16: 753 | T16: 3 | U16: 8 | V16: 2 | W16: 2 | X16: SC4832 | Y16: - | Z16: AVELLANEDA | AA16: VILLA DOMÍNICO | AB16: LA EB ESTARÁ UBICADA EN LA CALLE CANGALLO 1375 ENTRE LAS CALLES GRAL. NAZAR Y TRES SARGENTOS, DEL PARTIDO DE AVELLANEDA | AC16: 2018-03-19 | AD16: Rescindida | AE16: 10206466.69 | AF16: 0 | AG16: 0 | AH16: Contrato Rescindido | AI16: 0 | AJ16: 173787.1333 | AK16: 0 | AL16: 0 | AM16: 0 | AN16: 0 | AO16: EN LICITACIÓN | AP16: 0.002964094715 | AQ16: 0 | AR16: CONTRATO RESCINDIDO EL 02/11/2019. MODIFICAMOS LA EJECUCIÓN 2010-2018 TOMARON COMO POSITIVO LA EJECUCIÓN NEGATIVA DEL 2013
B17: 1303 | C17: 1. ESTADO NACIONAL | D17: ESTACIÓN DE BOMBEO CLOACAL SARMIENTO | E17: ESTACION BOMBEO CLOACAL SARMIENTO - OBRA CIVIL | F17: 2 | G17: 91. OBLIGACIONES DEL TESORO | H17: 356 | I17: AYSA | J17: 95. ASISTENCIA FINANCIERA A EMPRESAS PÚBLICAS Y ENTE BINACIONAL | K17: 5 | L17: 1160315 | M17: 77 | N17: - | O17: 22 Y RECURSOS PROPIOS | P17: 5 | Q17: 5 | R17: 7 | S17: 753 | T17: 3 | U17: 8 | V17: 2 | W17: 2 | X17: SC4831 | Y17: - | Z17: AVELLANEDA | AA17: GERLI | AB17: LA EB ESTARÁ UBICADA EN LA CALLE CANGALLO 1375 ENTRE LAS CALLES GRAL. NAZAR Y TRES SARGENTOS, DEL PARTIDO DE AVELLANEDA | AC17: 2018-03-19 | AD17: Rescindida | AE17: 8426323.308 | AF17: 0 | AG17: 0 | AH17: Contrato Rescindido | AI17: 111752.7081 | AJ17: 25213.6775 | AK17: 0 | AL17: 0 | AM17: 0 | AN17: 0 | AO17: EN LICITACIÓN | AP17: 0.003802003363 | AQ17: 0 | AR17: CONTRATO RESCINDIDO EL 02/11/2019. MODIFICAMOS LA EJECUCIÓN 2010-2018 PORQUE TOMARON COMO POSITIVA LA EJECUCIÓN DEL 2012
B18: 1305 | C18: 1. ESTADO NACIONAL | D18: PLANTA DE TRATAMIENTO FIORITO | E18: PLANTA DE TRATAMIENTO DE EFLUENTES FIORITO - OBRA ELECTRO | F18: 2 | G18: 91. OBLIGACIONES DEL TESORO | H18: 356 | I18: AYSA | J18: 95. ASISTENCIA FINANCIERA A EMPRESAS PÚBLICAS Y ENTE BINACIONAL | K18: 5 Y CONVENIO ACUMAR | L18: 1160511 | M18: 77 | N18: 0 Y CONVENIO ACUMAR | O18: 22 Y RECURSOS PROPIOS | P18: 5 | Q18: 5 | R18: 7 | S18: 753 | T18: 3 | U18: 8 | V18: 2 | W18: 2 | X18: SC307 | Y18: - | Z18: LOMAS DE ZAMORA | AA18: VILLA FIORITO | AB18: EL PREDIO SE ENCUENTRA UBICADO EN EL CAMINO DE LA RIBERA SUD (PARCELA 1 – FRACCIÓN 1), CONTIGUO AL RIACHUELO Y EN LAS CERCANÍAS DEL PUENTE DE LA NORIA. | AC18: 2012-05-10 | AD18: 2019-12-31 | AE18: 141230256.2 | AF18: 301932516.9 | AG18: 10768326.38 | AH18: 453931099.4 | AI18: 76235133.53 | AJ18: 50260516.62 | AK18: 66737770.65 | AL18: -1022228.885 | AM18: 67541750.97 | AN18: 66519522.08 | AO18: FINALIZADO | AP18: 1 | AQ18: 1 | AR18: AÑOS ANTERIORES, EL PROYECTO RECIBIÓ FINANCIAMIENTO POR CONVENIO CON ACUMAR.
B19: 1682 | C19: 1. ESTADO NACIONAL | D19: COMPLEJO BARRIO LINDO | E19: BARRIO LINDO - 300 VIV + INFRA - ETAPA I | F19: 2 | G19: MINISTERIO DE OBRAS PÚBLICAS | H19: 354 | I19: MINISTERIO DE DESARROLLO TERRITORIAL Y HABITAT | J19: 46. URBANIZACIÓN DE VILLAS Y ASENTAMIENTOS PRECARIOS. | K19: - | L19: - | M19: 77.VIVIENDAS NUEVAS EN LA CUENCA MATANZA RIACHUELO | N19: 253/2011-4279008/2016 | O19: 11 | P19: 5 | Q19: 8 | R19: 6 | S19: 0 | T19: 3 | U19: 7 | V19: 6 | W19: 1 | X19: - | Y19: - | Z19: ALMIRANTE BROWN | AA19: - | AB19: CALLES AMENEDO,S ANTA ANA Y LA TORCAZA | AC19: 2011-09-08 | AD19: - | AE19: 45550262.8 | AF19: 12770033.76 | AG19: 0 | AH19: 58320296.56 | AI19: 0 | AJ19: 0 | AK19: =AN19 -> 0 | AL19: 0 | AM19: 0 | AN19: 0 | AO19: - | AP19: 0.2678675273 | AQ19: 0.1972 | AR19: -
B20: 1683 | C20: 1. ESTADO NACIONAL | D20: COMPLEJO BARRIO LINDO | E20: BARRIO LINDO - 273 VIV + INFRA - ETAPA II | F20: 2 | G20: MINISTERIO DE OBRAS PÚBLICAS | H20: 354 | I20: MINISTERIO DE DESARROLLO TERRITORIAL Y HABITAT | J20: 46. URBANIZACIÓN DE VILLAS Y ASENTAMIENTOS PRECARIOS. | K20: - | L20: - | M20: 77.VIVIENDAS NUEVAS EN LA CUENCA MATANZA RIACHUELO | N20: 254/2011-4279048/2016 | O20: 11 | P20: 5 | Q20: 8 | R20: 6 | S20: 0 | T20: 3 | U20: 7 | V20: 6 | W20: 1 | X20: - | Y20: - | Z20: ALMIRANTE BROWN | AA20: - | AB20: CALLES PINO, MATIENZO, RODRIGUEZ Y MADARIAGA | AC20: 2011-09-08 | AD20: - | AE20: 41492650 | AF20: 11632480.44 | AG20: 0 | AH20: 53125130.44 | AI20: 0 | AJ20: 0 | AK20: 0 | AL20: 0 | AM20: 0 | AN20: 0 | AO20: - | AP20: 0.2998834086 | AQ20: 0.1678 | AR20: -
B21: 1688 | C21: 1. ESTADO NACIONAL | D21: BARRIO SUIPACHA | E21: PREDIO SUIPACHA - INFRA PARA 254 VIV | F21: 2 | G21: MINISTERIO DE DESARROLLO TERRITORIAL Y HÁBITAT | H21: - | I21: MINISTERIO DE DESARROLLO TERRITORIAL Y HABITAT | J21: 71. URBANIZACIÓN DE VILLAS Y ASENTAMIENTOS PRECARIOS. | K21: - | L21: - | M21: 79. INFRAESTRUCTURA, NEXOS Y OBRAS COMPLEMENTARIAS EN LA CUENCA MATANZA RIACHUELO. | N21: 1437/2011 | O21: 11 | P21: 5 | Q21: 8 | R21: 6 | S21: 0 | T21: 3 | U21: 7 | V21: 6 | W21: 1 | X21: - | Y21: - | Z21: AVELLANEDA | AA21: - | AB21: PREDIO SUIPACHA | AC21: - | AD21: - | AE21: 26007968.84 | AF21: 0 | AG21: 0 | AH21: 26007968.84 | AI21: 0 | AJ21: 0 | AK21: 22835384.75 | AL21: 22835384.75 | AM21: 0 | AN21: 22835384.75 | AO21: - | AP21: 0.3365 | AQ21: 0.2388 | AR21: -
B22: 1695 | C22: 1. ESTADO NACIONAL | D22: COMPLEJO BARRIO 7 DE ENERO | E22: Bº 7 DE ENERO 20 VIV | F22: 2 | G22: MINISTERIO DE OBRAS PÚBLICAS | H22: 325 | I22: MINISTERIO DE DESARROLLO TERRITORIAL Y HABITAT | J22: 71. URBANIZACIÓN DE VILLAS Y ASENTAMIENTOS PRECARIOS. | K22: - | L22: - | M22: 77.VIVIENDAS NUEVAS EN LA CUENCA MATANZA RIACHUELO | N22: 1441/2011 | O22: 11 | P22: 5 | Q22: 8 | R22: 6 | S22: 0 | T22: 3 | U22: 7 | V22: 6 | W22: 1 | X22: - | Y22: - | Z22: AVELLANEDA | AA22: - | AB22: CNO. GRAL. BELGRANO, ARROYO SARANDI, SUIPACHA | AC22: 2011-11-01 | AD22: - | AE22: 5033334.21 | AF22: 0 | AG22: 0 | AH22: 5033334.21 | AI22: 0 | AJ22: 0 | AK22: 0 | AL22: 0 | AM22: 0 | AN22: 0 | AO22: EN ANÁLISIS | AP22: 0.53 | AQ22: 0.56 | AR22: SE CHEQUEARON LOS MONTOS ORIGINALES Y SE RATIFICAN LOS QUE FIGURAN EN LA PRESENTE PLANILLA
B23: 1709 | C23: 1. ESTADO NACIONAL | D23: COMPLEJO BARRIO RIBERA IGUAZÚ | E23: 128 VIV BARRIO RIBERA IGUAZÚ ETAPAS I Y II | F23: 2 | G23: MINISTERIO DE OBRAS PÚBLICAS | H23: 354 | I23: MINISTERIO DE DESARROLLO TERRITORIAL Y HABITAT | J23: 46. URBANIZACIÓN DE VILLAS Y ASENTAMIENTOS PRECARIOS. | K23: - | L23: - | M23: 77.VIVIENDAS NUEVAS EN LA CUENCA MATANZA RIACHUELO | N23: 1015/2011-3142868/16 | O23: 11 | P23: 5 | Q23: 8 | R23: 1 | S23: 0 | T23: 3 | U23: 7 | V23: 2 | W23: 1 | X23: - | Y23: - | Z23: CABA | AA23: 4 | AB23: IGUAZU 1835 (EX-MUNDO GRUA) | AC23: 2011-10-20 | AD23: - | AE23: 25317557.79 | AF23: 13140556.81 | AG23: 0 | AH23: 38458114.6 | AI23: 7305926.93 | AJ23: 0 | AK23: 0 | AL23: 0 | AM23: 0 | AN23: 0 | AO23: - | AP23: 1 | AQ23: 0.632 | AR23: SE CHEQUEARON LOS MONTOS ORIGINALES Y SE RATIFICAN LOS QUE FIGURAN EN LA PRESENTE PLANILLA
B24: 1712 | C24: 1. ESTADO NACIONAL | D24: COMPLEJO BARRIO VALPARAISO | E24: 48 VIV VALPARAISO 3570 / VERACRUZ 3480 | F24: 2 | G24: MINISTERIO DE OBRAS PÚBLICAS | H24: 325 | I24: MINISTERIO DE DESARROLLO TERRITORIAL Y HABITAT | J24: 71. URBANIZACIÓN DE VILLAS Y ASENTAMIENTOS PRECARIOS. | K24: - | L24: - | M24: 77.VIVIENDAS NUEVAS EN LA CUENCA MATANZA RIACHUELO | N24: 1350/2011 | O24: 11 | P24: 5 | Q24: 8 | R24: 1 | S24: 0 | T24: 3 | U24: 7 | V24: 2 | W24: 1 | X24: - | Y24: - | Z24: CABA | AA24: - | AB24: VALPARAISO 357 VERACRUZ 348 | AC24: 2013-06-06 | AD24: 2014-06-06 | AE24: 15230273.3 | AF24: 0 | AG24: 0 | AH24: 15230273.3 | AI24: 3892848.78 | AJ24: 7312685.72 | AK24: 0 | AL24: 0 | AM24: 0 | AN24: 0 | AO24: EN EJECUCIÓN | AP24: 0.29 | AQ24: 0.34 | AR24: -
B25: 1722 | C25: 1. ESTADO NACIONAL | D25: CAMINO DE SIRGA LOMAS DE ZAMORA | E25: LOMAS DE ZAMORA CAMINO DE LA RIBERA | F25: 2 | G25: MINISTERIO DE OBRAS PÚBLICAS | H25: 354 | I25: MINISTERIO DE DESARROLLO TERRITORIAL Y HABITAT | J25: PAVIMENTO | K25: - | L25: - | M25: - | N25: ACU 1589/11-2030582/16 | O25: - | P25: 5 | Q25: 8 | R25: - | S25: 0 | T25: 3 | U25: 7 | V25: 6 | W25: 1 | X25: - | Y25: - | Z25: LOMAS DE ZAMORA | AA25: - | AB25: - | AC25: - | AD25: - | AE25: 47985841.37 | AF25: 0 | AG25: 0 | AH25: 47985841.37 | AI25: 23711386.56 | AJ25: 0 | AK25: 0 | AL25: 0 | AM25: 0 | AN25: 0 | AO25: - | AP25: 0.5 | AQ25: 0.5 | AR25: -
B26: 1748 | C26: 1. ESTADO NACIONAL | D26: ARROYO SUSANA | E26: SANEAMIENTO DE LA CUENCA DEL ARROYO SUSANA - RAMAL ESTE - BARRIO SAN CARLOS | F26: 2 | G26: MINISTERIO DE OBRAS PÚBLICAS | H26: - | I26: SECRETARÍA DE INFRAESTRUCTURA Y POLÍTICA HÍDRICA | J26: EXTRAPRESUPUESTARIO - FFIH - FONDO FIDUCIARIO INFRAESTRUCTURA HÍDRICA | K26: - | L26: - | M26: - | N26: BUE113 | O26: FFIH | P26: - | Q26: - | R26: - | S26: - | T26: - | U26: - | V26: - | W26: 1 | X26: - | Y26: MUNICIPIO | Z26: LA MATANZA | AA26: ISIDRO CASANOVA | AB26: SOBRE CALLE BEDOYA | AC26: 2011-06-17 | AD26: - | AE26: 29450326.05 | AF26: 32931033.21 | AG26: 12108366.1 | AH26: 74489725.36 | AI26: 0 | AJ26: 5211651.26 | AK26: 19330193.87 | AL26: 0 | AM26: 1083340.59 | AN26: 1083340.59 | AO26: EN EJECUCIÓN | AP26: 0.755 | AQ26: 0.97 | AR26: -
B27: 1783 | C27: 1. ESTADO NACIONAL | D27: PLANTA DE TRATAMIENTO CLOACAL PRESIDENTE PERÓN | E27: PLANTA DE TRATAMIENTO DE EFLUENTES CLOACALES - PRESIDENTE PERÓN | F27: 2 | G27: MINISTERIO DE OBRAS PÚBLICAS | H27: 613 | I27: ENTE NACIONAL DE OBRAS HÍDRICAS Y SANEAMIENTO | J27: 20. ASISTENCIA TÉCNICO 0 FINANCIERA Y DESARROLLO DE INFRAESTRUCTURA PARA EL SANEAMIENTO | K27: - | L27: 0 | M27: 79 | N27: - | O27: 11 | P27: 5 | Q27: 8 | R27: 6 | S27: 9999 | T27: 3 | U27: 8 | V27: 6 | W27: 1 | X27: - | Y27: MUNICIPIO | Z27: PTE. PERÓN | AA27: PTE. PERÓN | AB27: - | AC27: - | AD27: - | AE27: 46895589 | AF27: 10392246.65 | AG27: 0 | AH27: 78947908.32 | AI27: 0 | AJ27: 0 | AK27: 0 | AL27: 0 | AM27: 0 | AN27: 0 | AO27: - | AP27: 0.6817 | AQ27: 0.8 | AR27: -
B28: 1902 | C28: 1. ESTADO NACIONAL | D28: PLANTA DE TRATAMIENTO ACUBA | E28: PLANTA DE TRATAMIENTO DE EFLUENTES LANÚS (ACUBA) - OBRA CIVIL | F28: 2 | G28: 91. OBLIGACIONES DEL TESORO | H28: 356 | I28: AYSA | J28: 95. ASISTENCIA FINANCIERA A EMPRESAS PÚBLICAS Y ENTE BINACIONAL | K28: 5 Y CONVENIO ACUMAR | L28: 1161602 | M28: 77 | N28: - | O28: 22 Y RECURSOS PROPIOS | P28: 5 | Q28: 5 | R28: 7 | S28: 753 | T28: 3 | U28: 8 | V28: 2 | W28: 2 | X28: SCE003 | Y28: - | Z28: LANÚS | AA28: VALENTÍN ALSINA | AB28: PREDIO SITUADO ENTRE LAS CALLES GENERAL OLAZÁBAL, BOQUERÓN, HERNANDO DE MAGALLANES Y CORONEL MOLINEDO, PARTIDO DE LANÚS. | AC28: 2012-01-25 | AD28: 2016-12-31 | AE28: 78145401.19 | AF28: 148024064.2 | AG28: 13177991.24 | AH28: 239347456.7 | AI28: 3711531.53 | AJ28: -973283.1988 | AK28: 0 | AL28: 0 | AM28: 0 | AN28: 0 | AO28: FINALIZADO | AP28: 1 | AQ28: 1 | AR28: AÑOS ANTERIORES, EL PROYECTO RECIBIÓ FINANCIAMIENTO POR CONVENIO CON ACUMAR.
B29: 1959 | C29: 1. ESTADO NACIONAL | D29: REDES CLOACALES ALMIRANTE BROWN | E29: CONDUCTO DE DESAGUE DE PLANTA DE TRATAMIENTO BARRIO RAYO DE SOL | F29: 2 | G29: 91. OBLIGACIONES DEL TESORO | H29: 356 | I29: AYSA | J29: 95. ASISTENCIA FINANCIERA A EMPRESAS PÚBLICAS Y ENTE BINACIONAL | K29: 5 | L29: 1160538 | M29: 77 | N29: - | O29: 22 Y RECURSOS PROPIOS | P29: 5 | Q29: 5 | R29: 7 | S29: 753 | T29: 3 | U29: 8 | V29: 2 | W29: 2 | X29: SA696 | Y29: - | Z29: ALMIRANTE BROWN | AA29: ALMIRANTE BROWN | AB29: DESDE SANTA CLARA Y SANTIAGO DEL ESTERO HASTA SANTA CLARA Y MANUEL BELGRANO, POR ESTA ÚLTIMA HASTA MANUELA PEDRAZA Y POR PEDRAZA HASTA EL ZANJÓN DEL A° DEL REY. | AC29: 2017-09-11 | AD29: 2018-10-26 | AE29: 10626682.22 | AF29: 7127777.257 | AG29: 620053.6396 | AH29: 18374513.12 | AI29: 16360416.04 | AJ29: 2133594.948 | AK29: 0 | AL29: 0 | AM29: 0 | AN29: 0 | AO29: FINALIZADO | AP29: 1 | AQ29: 1 | AR29: -
B30: 1963 | C30: 1. ESTADO NACIONAL | D30: PLANTA DE TRATAMIENTO FIORITO | E30: PLANTA DE TRATAMIENTO DE EFLUENTES FIORITO - OBRA CIVIL | F30: 2 | G30: 91. OBLIGACIONES DEL TESORO | H30: 356 | I30: AYSA | J30: 95. ASISTENCIA FINANCIERA A EMPRESAS PÚBLICAS Y ENTE BINACIONAL | K30: 5 Y CONVENIO ACUMAR | L30: 1160515 | M30: 77 | N30: - | O30: 22 Y RECURSOS PROPIOS | P30: 5 | Q30: 5 | R30: 7 | S30: 753 | T30: 3 | U30: 8 | V30: 2 | W30: 2 | X30: SC307 | Y30: - | Z30: LOMAS DE ZAMORA | AA30: VILLA FIORITO | AB30: EL PREDIO SE ENCUENTRA UBICADO EN EL CAMINO DE LA RIBERA SUD (PARCELA 1 – FRACCIÓN 1), CONTIGUO AL RIACHUELO Y EN LAS CERCANÍAS DEL PUENTE DE LA NORIA. | AC30: 2012-05-10 | AD30: 2019-12-31 | AE30: 146746195.9 | AF30: 813765402.4 | AG30: 26139473.5 | AH30: 986651071.8 | AI30: 3824881.656 | AJ30: 10091349.1 | AK30: 30798515.13 | AL30: 0 | AM30: 30232153.3 | AN30: 30232153.3 | AO30: FINALIZADO | AP30: 1.000064707 | AQ30: 1 | AR30: AÑOS ANTERIORES, EL PROYECTO RECIBIÓ FINANCIAMIENTO POR CONVENIO CON ACUMAR.
B31: 2010 | C31: 1. ESTADO NACIONAL | D31: SISTEMA CLOACAS LA MATANZA | E31: RENOVACIÓN REDES DE CLOACA PROGRAMADA | F31: 2 | G31: 91. OBLIGACIONES DEL TESORO | H31: 356 | I31: AYSA | J31: 95. ASISTENCIA FINANCIERA A EMPRESAS PÚBLICAS Y ENTE BINACIONAL | K31: 5 | L31: 1211310 | M31: 5 | N31: - | O31: 11 | P31: 5 | Q31: 5 | R31: 7 | S31: 753 | T31: 3 | U31: 8 | V31: 96 | W31: 2 | X31: SIN P3 | Y31: - | Z31: LA MATANZA | AA31: LA MATANZA | AB31: LOCALIZACIÓN 26-VER ANEXO LOCALIZACIÓN EXACTA | AC31: 2012-01-01 | AD31: 2012-12-31 | AE31: NOTA 9 | AF31: NOTA 9 | AG31: 0 | AH31: NOTA 9 | AI31: 0 | AJ31: -18924.4 | AK31: 0 | AL31: 0 | AM31: 0 | AN31: 0 | AO31: FINALIZADO | AP31: 1 | AQ31: 1 | AR31: -
B32: 2025 | C32: 1. ESTADO NACIONAL | D32: SISTEMA CLOACAS LA MATANZA | E32: RENOVACIÓN MARCOS Y TAPAS POR EMERG. - DISTRITO LMN | F32: 2 | G32: 91. OBLIGACIONES DEL TESORO | H32: 356 | I32: AYSA | J32: 95. ASISTENCIA FINANCIERA A EMPRESAS PÚBLICAS Y ENTE BINACIONAL | K32: 5 | L32: 1211401 | M32: 5 | N32: - | O32: 11 | P32: 5 | Q32: 5 | R32: 7 | S32: 753 | T32: 3 | U32: 8 | V32: 96 | W32: 2 | X32: SIN P3 | Y32: - | Z32: LA MATANZA | AA32: LA MATANZA | AB32: LOCALIZACIÓN 61-VER ANEXO LOCALIZACIÓN EXACTA | AC32: 2012-01-01 | AD32: 2012-12-31 | AE32: NOTA 9 | AF32: NOTA 9 | AG32: 0 | AH32: NOTA 9 | AI32: 0 | AJ32: -3630 | AK32: 0 | AL32: 0 | AM32: 0 | AN32: 0 | AO32: FINALIZADO | AP32: 1 | AQ32: 1 | AR32: -
B33: 2179 | C33: 1. ESTADO NACIONAL | D33: SISTEMA AGUA ESTEBAN ECHEVERRÍA | E33: PLAN AYSA A+T DR SUR ESTEBAN ECHEVERRIA | F33: 2 | G33: 91. OBLIGACIONES DEL TESORO | H33: 356 | I33: AYSA | J33: 95. ASISTENCIA FINANCIERA A EMPRESAS PÚBLICAS Y ENTE BINACIONAL | K33: 5 | L33: 1248413 | M33: 5 | N33: - | O33: 11 | P33: 5 | Q33: 5 | R33: 7 | S33: 753 | T33: 3 | U33: 8 | V33: 96 | W33: 2 | X33: SIN P3 | Y33: - | Z33: ESTEBAN ECHEVERRÍA | AA33: ESTEBAN ECHEVERRÍA | AB33: DON MARCELO M1 / DON MARIANO M1 / LA MORITA M1 / SANTA CATALINA M 3 | AC33: 2012-05-15 | AD33: 2013-11-30 | AE33: 3845863.75 | AF33: 230587.55 | AG33: 2619995.099 | AH33: 6696446.399 | AI33: 0 | AJ33: 10648 | AK33: 0 | AL33: 0 | AM33: 0 | AN33: 0 | AO33: FINALIZADO | AP33: 1 | AQ33: 1 | AR33: -
B34: 2232 | C34: 1. ESTADO NACIONAL | D34: AUTOPISTA PTE. PERÓN | E34: CAMINO DEL BUEN AYRE TRAMO I - SECCION ACCESO OESTE - ACCESO A Bº 20 DE JUNIO (PONTEVEDRA - PROG 25,55) | F34: 2 | G34: 604. DIRECCIÓN NACIONAL DE VIALIDAD | H34: 604 | I34: DIRECCION NACIONAL DE VIALIDAD | J34: 42. CONSTRUCCIÓN DE AUTOPISTAS Y AUTOVÍAS | K34: 10 | L34: 3 | M34: 0 | N34: 51 | O34: 14 | P34: 6 | Q34: 8 | R34: 7 | S34: 0 | T34: 4 | U34: 3 | V34: 6 | W34: 1 | X34: - | Y34: - | Z34: EZEIZA - LA MATANZA - MERLO - PRESIDENTE PERÓN - SAN VICENTE | AA34: EZEIZA - LA MATANZA - MERLO - PRESIDENTE PERÓN - SAN VICENTE | AB34: CAMINO DEL BUEN AYRE | AC34: 2010-03-10 | AD34: 2021-05-10 | AE34: 483287977 | AF34: 4271512403 | AG34: 2195495999 | AH34: 6950296379 | AI34: 328962416.9 | AJ34: 424539037.8 | AK34: 0 | AL34: 0 | AM34: 0 | AN34: 0 | AO34: EN EJECUCIÓN | AP34: 0.2784952535 | AQ34: 0.509 | AR34: ACTIVIDAD INTERNA DB1. LINEA AGREGADA POR CAMBIO DE FUENTE/INCISO. PARTIDA Y PRESUPUESTO INICIAL GLOBAL.
B35: 2233 | C35: 1. ESTADO NACIONAL | D35: AUTOPISTA PTE. PERÓN | E35: CAMINO DEL BUEN AYRE TRAMO II - SECCION ACCESO A Bº 20 DE JUNIO - RUTA PROV.Nº58- PROG. KM53,980) | F35: 2 | G35: 604. DIRECCIÓN NACIONAL DE VIALIDAD | H35: 604 | I35: DIRECCION NACIONAL DE VIALIDAD | J35: 42. CONSTRUCCIÓN DE AUTOPISTAS Y AUTOVÍAS | K35: 10 | L35: 3 | M35: 0 | N35: 51 | O35: 14 | P35: 6 | Q35: 8 | R35: 7 | S35: 0 | T35: 4 | U35: 3 | V35: 6 | W35: 1 | X35: - | Y35: - | Z35: EZEIZA - LA MATANZA - MERLO - PRESIDENTE PERÓN - SAN VICENTE | AA35: EZEIZA - LA MATANZA - MERLO - PRESIDENTE PERÓN - SAN VICENTE | AB35: CAMINO DEL BUEN AYRE | AC35: 2010-03-11 | AD35: 2022-03-11 | AE35: 555060595 | AF35: 4632936269 | AG35: 4370216382 | AH35: 9558213246 | AI35: 823640905.8 | AJ35: 613889738 | AK35: 0 | AL35: 0 | AM35: 0 | AN35: 0 | AO35: EN EJECUCIÓN | AP35: 0.2173323927 | AQ35: 0.4354 | AR35: ACTIVIDAD INTERNA DB3. LINEA AGREGADA POR CAMBIO DE FUENTE/INCISO. PARTIDA Y PRESUPUESTO INICIAL GLOBAL.
B36: 2234 | C36: 1. ESTADO NACIONAL | D36: AUTOPISTA PTE. PERÓN | E36: CAMINO DEL BUEN AYRE TRAMO III - SECCION RUTA PROV.Nº58- RUTA PROV.Nº53 (PROG. KM 72,60) | F36: 2 | G36: 604. DIRECCIÓN NACIONAL DE VIALIDAD | H36: 604 | I36: DIRECCION NACIONAL DE VIALIDAD | J36: 42. CONSTRUCCIÓN DE AUTOPISTAS Y AUTOVÍAS | K36: 10 | L36: 3 | M36: 0 | N36: 51 | O36: 14 | P36: 6 | Q36: 8 | R36: 7 | S36: 0 | T36: 4 | U36: 3 | V36: 6 | W36: 1 | X36: - | Y36: - | Z36: EZEIZA - LA MATANZA - MERLO - PRESIDENTE PERÓN - SAN VICENTE | AA36: EZEIZA - LA MATANZA - MERLO - PRESIDENTE PERÓN - SAN VICENTE | AB36: CAMINO DEL BUEN AYRE | AC36: 2010-03-11 | AD36: 2021-12-08 | AE36: 318183735 | AF36: 1696476940 | AG36: 3704131954 | AH36: 5718792629 | AI36: 119802233.3 | AJ36: 16375976.76 | AK36: 0 | AL36: 0 | AM36: 0 | AN36: 0 | AO36: EN EJECUCIÓN | AP36: 0.18 | AQ36: 0.335 | AR36: ACTIVIDAD INTERNA DB2. LINEA AGREGADA POR CAMBIO DE FUENTE/INCISO. PARTIDA Y PRESUPUESTO INICIAL GLOBAL.
B37: 2349 | C37: 1. ESTADO NACIONAL | D37: COMPLEJO BARRIO LINDO | E37: BARRIO LINDO - 300 VIV + INFRA - ETAPA I | F37: 2 | G37: MINISTERIO DE OBRAS PÚBLICAS | H37: 325 | I37: MINISTERIO DE DESARROLLO TERRITORIAL Y HABITAT | J37: 71. URBANIZACIÓN DE VILLAS Y ASENTAMIENTOS PRECARIOS. | K37: - | L37: - | M37: 79. INFRAESTRUCTURA, NEXOS Y OBRAS COMPLEMENTARIAS EN LA CUENCA MATANZA RIACHUELO. | N37: 253/2011-4279100/2016 | O37: 11 | P37: 5 | Q37: 8 | R37: 6 | S37: 0 | T37: 3 | U37: 7 | V37: 6 | W37: 1 | X37: - | Y37: - | Z37: ALMIRANTE BROWN | AA37: - | AB37: CALLES AMENEDO,S ANTA ANA Y LA TORCAZA | AC37: 2011-09-08 | AD37: - | AE37: 8038281.35 | AF37: 2253535.28 | AG37: 0 | AH37: 10291816.63 | AI37: 0 | AJ37: 0 | AK37: =AN37 -> 0 | AL37: 0 | AM37: 0 | AN37: 0 | AO37: A INICIAR | AP37: 0.25 | AQ37: 0 | AR37: -
B38: 2350 | C38: 1. ESTADO NACIONAL | D38: COMPLEJO BARRIO LINDO | E38: BARRIO LINDO - 273 VIV + INFRA - ETAPA II | F38: 2 | G38: MINISTERIO DE OBRAS PÚBLICAS | H38: 354 | I38: MINISTERIO DE DESARROLLO TERRITORIAL Y HABITAT | J38: 46. URBANIZACIÓN DE VILLAS Y ASENTAMIENTOS PRECARIOS. | K38: - | L38: - | M38: 79. INFRAESTRUCTURA, NEXOS Y OBRAS COMPLEMENTARIAS EN LA CUENCA MATANZA RIACHUELO. | N38: 254/2011-4279022/2016 | O38: 11 | P38: 5 | Q38: 8 | R38: 6 | S38: 0 | T38: 3 | U38: 7 | V38: 6 | W38: 1 | X38: - | Y38: - | Z38: ALMIRANTE BROWN | AA38: - | AB38: CALLES PINO, MATIENZO, RODRIGUEZ Y MADARIAGA | AC38: 2011-09-08 | AD38: - | AE38: 7285300 | AF38: 2042436.67 | AG38: 0 | AH38: 9327736.67 | AI38: 0 | AJ38: 18768094.96 | AK38: 0 | AL38: 0 | AM38: 0 | AN38: 0 | AO38: - | AP38: 0.2918 | AQ38: 0.1416 | AR38: -
B39: 2354 | C39: 1. ESTADO NACIONAL | D39: COMPLEJO BARRIO SUIPACHA | E39: PREDIO SUIPACHA - 254 VIV | F39: 2 | G39: MINISTERIO DE DESARROLLO TERRITORIAL Y HÁBITAT | H39: - | I39: MINISTERIO DE DESARROLLO TERRITORIAL Y HABITAT | J39: 71. URBANIZACIÓN DE VILLAS Y ASENTAMIENTOS PRECARIOS. | K39: - | L39: - | M39: 77.VIVIENDAS NUEVAS EN LA CUENCA MATANZA RIACHUELO | N39: 1437/2011 | O39: 11 | P39: 5 | Q39: 8 | R39: 6 | S39: 0 | T39: 3 | U39: 7 | V39: 6 | W39: 1 | X39: - | Y39: - | Z39: AVELLANEDA | AA39: - | AB39: PREDIO SUIPACHA | AC39: 2012-12-01 | AD39: - | AE39: 61675670.6 | AF39: 0 | AG39: 0 | AH39: 61675670.6 | AI39: 0 | AJ39: 1654148.29 | AK39: 22629731.34 | AL39: 7636450.35 | AM39: 14993280.99 | AN39: 22629731.34 | AO39: - | AP39: 0.2475 | AQ39: 0.2226 | AR39: -
B40: 2377 | C40: 1. ESTADO NACIONAL | D40: COMPLEJO BARRIO LACARRA | E40: LACARRA 2049/AV. S. DE COMPOSTELA 3768 - 24 DE 54 VIV | F40: 2 | G40: MINISTERIO DE OBRAS PÚBLICAS | H40: 354 | I40: MINISTERIO DE DESARROLLO TERRITORIAL Y HABITAT | J40: 46. URBANIZACIÓN DE VILLAS Y ASENTAMIENTOS PRECARIOS. | K40: - | L40: - | M40: 77.VIVIENDAS NUEVAS EN LA CUENCA MATANZA RIACHUELO | N40: 170/2010- 2083285-16 | O40: 11 | P40: 5 | Q40: 8 | R40: 1 | S40: 0 | T40: 3 | U40: 7 | V40: 2 | W40: 1 | X40: - | Y40: - | Z40: CABA | AA40: - | AB40: LACARRA 249AV. S. DE COMPOSTELA 3768 | AC40: 2011-09-30 | AD40: - | AE40: 5926979.413 | AF40: 0 | AG40: 0 | AH40: 5926979.413 | AI40: 4268126.93 | AJ40: 0 | AK40: 0 | AL40: 0 | AM40: 0 | AN40: 0 | AO40: - | AP40: 0.1709099335 | AQ40: 0 | AR40: -
B41: 2379 | C41: 1. ESTADO NACIONAL | D41: COMPLEJO BARRIO RIBERA IGUAZÚ | E41: 192 VIVIENDAS - Bº RIBERA IGUAZÚ - ETAPAS III, IV Y V | F41: 2 | G41: MINISTERIO DE OBRAS PÚBLICAS | H41: 354 | I41: MINISTERIO DE DESARROLLO TERRITORIAL Y HABITAT | J41: 46. URBANIZACIÓN DE VILLAS Y ASENTAMIENTOS PRECARIOS. | K41: - | L41: - | M41: 77.VIVIENDAS NUEVAS EN LA CUENCA MATANZA RIACHUELO | N41: 1802/2012-2405057/16 | O41: 11 | P41: 5 | Q41: 8 | R41: 1 | S41: 0 | T41: 3 | U41: 7 | V41: 2 | W41: 1 | X41: - | Y41: - | Z41: CABA | AA41: - | AB41: - | AC41: 2010-10-15 | AD41: - | AE41: 78157466.47 | AF41: 0 | AG41: 0 | AH41: 78157466.47 | AI41: 25729188.03 | AJ41: 0 | AK41: 0 | AL41: 0 | AM41: 0 | AN41: 0 | AO41: - | AP41: 0.9836280699 | AQ41: 0.9853 | AR41: -
B42: 2380 | C42: 1. ESTADO NACIONAL | D42: BARRIO RIBERA IGUAZU | E42: INFRAESTRUCTURA INTERNA PARA 192 VIVIENDAS - Bº RIBERA IGUAZÚ - ETAPAS III, IV Y V | F42: 2 | G42: MINISTERIO DE OBRAS PÚBLICAS | H42: 354 | I42: MINISTERIO DE DESARROLLO TERRITORIAL Y HABITAT | J42: 46. URBANIZACIÓN DE VILLAS Y ASENTAMIENTOS PRECARIOS. | K42: - | L42: - | M42: 77.VIVIENDAS NUEVAS EN LA CUENCA MATANZA RIACHUELO | N42: 1802/2012-2402470/16 | O42: 11 | P42: 5 | Q42: 8 | R42: 1 | S42: 0 | T42: 3 | U42: 7 | V42: 2 | W42: 1 | X42: - | Y42: - | Z42: CABA | AA42: - | AB42: A DEFINIR | AC42: - | AD42: - | AE42: 5196305.11 | AF42: 0 | AG42: 0 | AH42: 5196305.11 | AI42: 0 | AJ42: 0 | AK42: 0 | AL42: 0 | AM42: 0 | AN42: 0 | AO42: - | AP42: 0.8919037264 | AQ42: 0.9944 | AR42: -
B43: 2386 | C43: 1. ESTADO NACIONAL | D43: BARRIO LUJÁN | E43: VILLA LUJAN URBANIZACION + INFRA PARA 53 FLIAS | F43: 2 | G43: MINISTERIO DE OBRAS PÚBLICAS | H43: 325 | I43: MINISTERIO DE DESARROLLO TERRITORIAL Y HABITAT | J43: 71. URBANIZACIÓN DE VILLAS Y ASENTAMIENTOS PRECARIOS. | K43: - | L43: - | M43: 77.VIVIENDAS NUEVAS EN LA CUENCA MATANZA RIACHUELO | N43: 911/2015 | O43: 11 | P43: 5 | Q43: 8 | R43: 1 | S43: 0 | T43: 3 | U43: 7 | V43: 2 | W43: 1 | X43: - | Y43: - | Z43: CABA | AA43: - | AB43: VILLA LUJAN | AC43: - | AD43: - | AE43: 13475250 | AF43: 0 | AG43: 0 | AH43: 10795920.34 | AI43: 7574163.29 | AJ43: 0 | AK43: 0 | AL43: 0 | AM43: 0 | AN43: 0 | AO43: EN EJECUCIÓN | AP43: 0.9293697218 | AQ43: 0.9776 | AR43: -
B44: 2388 | C44: 1. ESTADO NACIONAL | D44: COMPLEJO BARRIO MONTECARLO | E44: 240 VIV | F44: 2 | G44: MINISTERIO DE DESARROLLO TERRITORIAL Y HÁBITAT | H44: - | I44: MINISTERIO DE DESARROLLO TERRITORIAL Y HABITAT | J44: 71. URBANIZACIÓN DE VILLAS Y ASENTAMIENTOS PRECARIOS. | K44: - | L44: - | M44: 77.VIVIENDAS NUEVAS EN LA CUENCA MATANZA RIACHUELO | N44: 198/2012 | O44: 11 | P44: 5 | Q44: 8 | R44: 6 | S44: 0 | T44: 3 | U44: 7 | V44: 6 | W44: 1 | X44: - | Y44: - | Z44: ESTEBAN ECHEVERRÍA | AA44: MARCOS PAZ | AB44: Bº MONTECARLO | AC44: 2012-07-23 | AD44: - | AE44: 52347768.93 | AF44: 9847568.07 | AG44: 0 | AH44: 62195337 | AI44: 0 | AJ44: 15611339.47 | AK44: 9580934.74 | AL44: 9580934.74 | AM44: 0 | AN44: 9580934.74 | AO44: - | AP44: 0.9792 | AQ44: 0.9304 | AR44: INCLUIDO EN CONVENIO MARCO 17771
B45: 2389 | C45: 1. ESTADO NACIONAL | D45: COMPLEJO BARRIO MONTECARLO | E45: INFRA PARA 240 VIV | F45: 2 | G45: MINISTERIO DE DESARROLLO TERRITORIAL Y HÁBITAT | H45: - | I45: MINISTERIO DE DESARROLLO TERRITORIAL Y HABITAT | J45: 46. URBANIZACIÓN DE VILLAS Y ASENTAMIENTOS PRECARIOS. | K45: - | L45: - | M45: 79. INFRAESTRUCTURA, NEXOS Y OBRAS COMPLEMENTARIAS EN LA CUENCA MATANZA RIACHUELO. | N45: 198/2012 | O45: 11 | P45: 5 | Q45: 8 | R45: 6 | S45: 0 | T45: 3 | U45: 7 | V45: 6 | W45: 1 | X45: - | Y45: - | Z45: ESTEBAN ECHEVERRÍA | AA45: - | AB45: Bº MONTECARLO | AC45: 2012-07-23 | AD45: - | AE45: 18926731.05 | AF45: 3560462.58 | AG45: 0 | AH45: 22487193.63 | AI45: 0 | AJ45: 8479020.56 | AK45: 1740474.1 | AL45: 1740474.1 | AM45: 0 | AN45: 1740474.1 | AO45: - | AP45: 0.9635 | AQ45: 0.8476 | AR45: INCLUIDO EN CONVENIO MARCO 17771
B46: 2401 | C46: 1. ESTADO NACIONAL | D46: COMPLEJO FFMM | E46: PREDIO FFMM- ETAPA I - 174 VIV | F46: 2 | G46: MINISTERIO DE OBRAS PÚBLICAS | H46: 325 | I46: MINISTERIO DE DESARROLLO TERRITORIAL Y HABITAT | J46: 71. URBANIZACIÓN DE VILLAS Y ASENTAMIENTOS PRECARIOS. | K46: - | L46: - | M46: 77.VIVIENDAS NUEVAS EN LA CUENCA MATANZA RIACHUELO | N46: 766/2012 | O46: 11 | P46: 5 | Q46: 8 | R46: 6 | S46: 0 | T46: 3 | U46: 7 | V46: 6 | W46: 1 | X46: - | Y46: - | Z46: LANÚS | AA46: - | AB46: AV. CARLOS PELLEGRINI, MORENO, PSJE AGUIRRE, CNEL. OSORIO | AC46: 2013-01-07 | AD46: - | AE46: 49365616.09 | AF46: 14137453.6 | AG46: 0 | AH46: 63503069.69 | AI46: 0 | AJ46: 0 | AK46: 0 | AL46: 0 | AM46: 0 | AN46: 0 | AO46: - | AP46: 1 | AQ46: 0.9979 | AR46: -
B47: 2690 | C47: 1. ESTADO NACIONAL | D47: SISTEMA AGUA CABA | E47: EQUIPAMIENTO ELECTROMECANICO | F47: 2 | G47: 91. OBLIGACIONES DEL TESORO | H47: 356 | I47: AYSA | J47: 95. ASISTENCIA FINANCIERA A EMPRESAS PÚBLICAS Y ENTE BINACIONAL | K47: 5 | L47: 1150501 | M47: 5 | N47: - | O47: 11 | P47: 5 | Q47: 5 | R47: 7 | S47: 753 | T47: 3 | U47: 8 | V47: 96 | W47: 2 | X47: SIN P3 | Y47: - | Z47: CABA | AA47: CIUDAD AUTÓNOMA DE BUENOS AIRES | AB47: AV. DE LOS OMBÚES 209 | AC47: 2011-07-26 | AD47: 2011-11-01 | AE47: 652156.3862 | AF47: 628970.5477 | AG47: 0 | AH47: 1281126.934 | AI47: 6054.84 | AJ47: 0 | AK47: 0 | AL47: 0 | AM47: 0 | AN47: 0 | AO47: FINALIZADO | AP47: 0.8452866702 | AQ47: 1 | AR47: SE MODIFICA LA EJECUCIÓN 2018 YA QUE NO TOMARON LOS VALORES INFORMADOS OPORTUNAMENTE
B48: 2701 | C48: 1. ESTADO NACIONAL | D48: PLANTA DE TRATAMIENTO ACUBA | E48: PLANTA DE TRATAMIENTO DE EFLUENTES LANÚS (ACUBA) - OBRA ELECTROMECANICA | F48: 2 | G48: 91. OBLIGACIONES DEL TESORO | H48: 356 | I48: AYSA | J48: 95. ASISTENCIA FINANCIERA A EMPRESAS PÚBLICAS Y ENTE BINACIONAL | K48: 5 Y CONVENIO ACUMAR | L48: 1161601 | M48: 77 | N48: - | O48: 22 Y RECURSOS PROPIOS | P48: 5 | Q48: 5 | R48: 7 | S48: 753 | T48: 3 | U48: 8 | V48: 2 | W48: 2 | X48: SCE003 | Y48: - | Z48: LANÚS | AA48: VALENTÍN ALSINA | AB48: PREDIO SITUADO ENTRE LAS CALLES GENERAL OLAZÁBAL, BOQUERÓN, HERNANDO DE MAGALLANES Y CORONEL MOLINEDO, PARTIDO DE LANÚS. | AC48: 2012-01-25 | AD48: 2016-10-31 | AE48: 44976057.06 | AF48: 163932701.6 | AG48: 5335349.038 | AH48: 214244107.7 | AI48: 3748106.503 | AJ48: -568038.3599 | AK48: 0 | AL48: 0 | AM48: 0 | AN48: 0 | AO48: FINALIZADO | AP48: 0.9999999999 | AQ48: 1 | AR48: AÑOS ANTERIORES, EL PROYECTO RECIBIÓ FINANCIAMIENTO POR CONVENIO CON ACUMAR.
B49: 2883 | C49: 1. ESTADO NACIONAL | D49: COMPLEJO BARRIO RIBERA IGUAZÚ | E49: Bº RIBERA IGUAZU INF PARA 128 + 192 VIV + 480 FAMILIAS VILLA 21-24 | F49: 2 | G49: MINISTERIO DE OBRAS PÚBLICAS | H49: 354 | I49: MINISTERIO DE DESARROLLO TERRITORIAL Y HABITAT | J49: 46. URBANIZACIÓN DE VILLAS Y ASENTAMIENTOS PRECARIOS. | K49: - | L49: - | M49: 79. INFRAESTRUCTURA, NEXOS Y OBRAS COMPLEMENTARIAS EN LA CUENCA MATANZA RIACHUELO. | N49: 1801/2012-2646921/16 | O49: 11 | P49: 5 | Q49: 8 | R49: 1 | S49: 0 | T49: 3 | U49: 7 | V49: 2 | W49: 1 | X49: - | Y49: - | Z49: CABA | AA49: - | AB49: - | AC49: - | AD49: - | AE49: 22040654.98 | AF49: 0 | AG49: 0 | AH49: 22040654.98 | AI49: 5470974.47 | AJ49: 1468495.67 | AK49: =AN49 -> 0 | AL49: 0 | AM49: 0 | AN49: 0 | AO49: - | AP49: 0.6533720686 | AQ49: 0.5411 | AR49: -
B50: 2888 | C50: 1. ESTADO NACIONAL | D50: COMPLEJO BARRIO VILLA TALLERES | E50: Bº VILLA TALLERES - 28 DE 136 VIV + INFRA ETAPA I | F50: 2 | G50: MINISTERIO DE OBRAS PÚBLICAS | H50: 325 | I50: MINISTERIO DE DESARROLLO TERRITORIAL Y HABITAT | J50: 71. URBANIZACIÓN DE VILLAS Y ASENTAMIENTOS PRECARIOS. | K50: - | L50: - | M50: 77.VIVIENDAS NUEVAS EN LA CUENCA MATANZA RIACHUELO | N50: 1693/2012 | O50: 11 | P50: 5 | Q50: 8 | R50: 6 | S50: 0 | T50: 3 | U50: 7 | V50: 6 | W50: 1 | X50: - | Y50: - | Z50: LANÚS | AA50: - | AB50: - | AC50: 2013-05-17 | AD50: - | AE50: 10902351.23 | AF50: 3513535.69 | AG50: 0 | AH50: 14415886.92 | AI50: 0 | AJ50: 0 | AK50: 0 | AL50: 0 | AM50: 0 | AN50: 0 | AO50: - | AP50: 0.936 | AQ50: 0.8359 | AR50: -
B51: 2889 | C51: 1. ESTADO NACIONAL | D51: COMPLEJO BARRIO VILLA TALLERES | E51: Bº VILLA TALLERES - INFRA PARA 28 VIV | F51: 2 | G51: MINISTERIO DE OBRAS PÚBLICAS | H51: 354 | I51: MINISTERIO DE DESARROLLO TERRITORIAL Y HABITAT | J51: 46. URBANIZACIÓN DE VILLAS Y ASENTAMIENTOS PRECARIOS. | K51: - | L51: - | M51: 79. INFRAESTRUCTURA, NEXOS Y OBRAS COMPLEMENTARIAS EN LA CUENCA MATANZA RIACHUELO. | N51: 1693/2012 | O51: 11 | P51: 5 | Q51: 8 | R51: 6 | S51: 0 | T51: 3 | U51: 7 | V51: 6 | W51: 1 | X51: - | Y51: - | Z51: LANÚS | AA51: - | AB51: - | AC51: 2013-05-17 | AD51: - | AE51: 2928556.19 | AF51: 1236361.94 | AG51: 0 | AH51: 4164918.13 | AI51: 0 | AJ51: 0 | AK51: 0 | AL51: 0 | AM51: 0 | AN51: 0 | AO51: - | AP51: 0.4685 | AQ51: 0.2787 | AR51: -
B52: 2892 | C52: 1. ESTADO NACIONAL | D52: COMPLEJO BARRIO LA MAQUINITA | E52: B° LA MAQUINITA, 88 VIV | F52: 2 | G52: MINISTERIO DE OBRAS PÚBLICAS | H52: 325 | I52: MINISTERIO DE DESARROLLO TERRITORIAL Y HABITAT | J52: 71. URBANIZACIÓN DE VILLAS Y ASENTAMIENTOS PRECARIOS. | K52: - | L52: - | M52: 77.VIVIENDAS NUEVAS EN LA CUENCA MATANZA RIACHUELO | N52: 1515/2014 | O52: 11 | P52: 5 | Q52: 8 | R52: 6 | S52: 0 | T52: 3 | U52: 7 | V52: 6 | W52: 1 | X52: - | Y52: - | Z52: LANÚS | AA52: - | AB52: - | AC52: 2015-03-30 | AD52: - | AE52: 49485724 | AF52: 0 | AG52: 0 | AH52: 49485724 | AI52: 0 | AJ52: 0 | AK52: 0 | AL52: 0 | AM52: 0 | AN52: 0 | AO52: - | AP52: 0.5606 | AQ52: 0.4439 | AR52: -
B53: 2893 | C53: 1. ESTADO NACIONAL | D53: BARRIO LA MAQUINITA | E53: B° LA MAQUINITA, INFRA PARA 88 VIV | F53: 2 | G53: MINISTERIO DE OBRAS PÚBLICAS | H53: 354 | I53: MINISTERIO DE DESARROLLO TERRITORIAL Y HABITAT | J53: 46. URBANIZACIÓN DE VILLAS Y ASENTAMIENTOS PRECARIOS. | K53: - | L53: - | M53: 79. INFRAESTRUCTURA, NEXOS Y OBRAS COMPLEMENTARIAS EN LA CUENCA MATANZA RIACHUELO. | N53: 1515/2014 | O53: 11 | P53: 5 | Q53: 8 | R53: 6 | S53: 0 | T53: 3 | U53: 7 | V53: 6 | W53: 1 | X53: - | Y53: - | Z53: LANÚS | AA53: - | AB53: - | AC53: 2015-03-30 | AD53: - | AE53: 11852977.07 | AF53: 0 | AG53: 0 | AH53: 11852977.07 | AI53: 0 | AJ53: 0 | AK53: 0 | AL53: 0 | AM53: 0 | AN53: 0 | AO53: - | AP53: 0.4525 | AQ53: 0.3133 | AR53: -
B54: 2894 | C54: 1. ESTADO NACIONAL | D54: COMPLEJO FFMM | E54: PREDIO FFMM - ETAPA I - INFRA PARA 174 VIV | F54: 2 | G54: MINISTERIO DE OBRAS PÚBLICAS | H54: 354 | I54: MINISTERIO DE DESARROLLO TERRITORIAL Y HABITAT | J54: 46. URBANIZACIÓN DE VILLAS Y ASENTAMIENTOS PRECARIOS. | K54: - | L54: - | M54: 79. INFRAESTRUCTURA, NEXOS Y OBRAS COMPLEMENTARIAS EN LA CUENCA MATANZA RIACHUELO. | N54: 766/2012 | O54: 11 | P54: 5 | Q54: 8 | R54: 6 | S54: 0 | T54: 3 | U54: 7 | V54: 6 | W54: 1 | X54: - | Y54: - | Z54: LANÚS | AA54: - | AB54: AV. CARLOS PELLEGRINI, MORENO, PSJE AGUIRRE, CNEL. OSORIO | AC54: 2013-01-07 | AD54: - | AE54: 28072454.48 | AF54: 8581005.16 | AG54: 0 | AH54: 36653459.64 | AI54: 0 | AJ54: 0 | AK54: 0 | AL54: 0 | AM54: 0 | AN54: 0 | AO54: - | AP54: 0.4813 | AQ54: 0.6583 | AR54: -
B55: 3584 | C55: 1. ESTADO NACIONAL | D55: REGULARIZACIÓN CONEXIONES DE AGUA | E55: REGULARIZACIÓN CONEXIONES DE AGUA | F55: 2 | G55: 91. OBLIGACIONES DEL TESORO | H55: 356 | I55: AYSA | J55: 95. ASISTENCIA FINANCIERA A EMPRESAS PÚBLICAS Y ENTE BINACIONAL | K55: 5 | L55: 1011701 | M55: 5 | N55: - | O55: 11 | P55: 5 | Q55: 5 | R55: 7 | S55: 753 | T55: 3 | U55: 8 | V55: 96 | W55: 2 | X55: SIN P3 | Y55: - | Z55: LA MATANZA - MORÓN | AA55: LA MATANZA - MORÓN | AB55: LA MATANZA - MORÓN | AC55: 01/01/2010 - 01/08/2010 | AD55: 2010-12-31 | AE55: NOTA 6-NOTA 8-NOTA 9 | AF55: NOTA 6-NOTA 8-NOTA 9 | AG55: 0 | AH55: NOTA 6-NOTA 8-NOTA 9 | AI55: 0 | AJ55: -5040.2429 | AK55: 0 | AL55: 0 | AM55: 0 | AN55: 0 | AO55: FINALIZADO | AP55: 1 | AQ55: 1 | AR55: -
B56: 3883 | C56: 1. ESTADO NACIONAL | D56: SISTEMA RIACHUELO | E56: COLECTOR MARGEN IZQUIERDO Y DESVIO BAJA COSTANERA | F56: 2 | G56: 91. OBLIGACIONES DEL TESORO | H56: 356 | I56: AYSA | J56: 95. ASISTENCIA FINANCIERA A EMPRESAS PÚBLICAS Y ENTE BINACIONAL | K56: 5 | L56: 1179L01 / 1479L99 / 1779L01 | M56: 77 | N56: - | O56: 22 Y RECURSOS PROPIOS | P56: 5 | Q56: 5 | R56: 7 | S56: 753 | T56: 3 | U56: 8 | V56: 2 | W56: 2 | X56: RC002 | Y56: - | Z56: CABA - AVELLANEDA | AA56: CABA - AVELLANEDA | AB56: MARGEN IZQUIERDA DEL RÍO MATANZA - RIACHUELO DESDE LA AVENIDA.GENERAL PAZ HASTA LA PLANTA DOCK SUD | AC56: 2015-01-15 | AD56: 2020-12-25 | AE56: 855087850.9 | AF56: 3828330509 | AG56: 70453805.82 | AH56: 4753872166 | AI56: 769368554.3 | AJ56: 159702003.2 | AK56: 2221622268 | AL56: 548267708.6 | AM56: 1469007512 | AN56: 2017275221 | AO56: EN EJECUCIÓN | AP56: 0.8362101613 | AQ56: 0.8473092225 | AR56: -
B57: 3884 | C57: 1. ESTADO NACIONAL | D57: SISTEMA RIACHUELO | E57: COLECTOR MARGEN IZQUIERDO Y DESVIO BAJA COSTANERA | F57: 2 | G57: 64. MINISTERIO DE OBRAS PÚBLICAS | H57: 364 | I57: AYSA | J57: 44. UNIDAD DE COORDINACIÓN GENERAL DEL PROYECTO BIRF 7706-AR | K57: - | L57: 1179I01 / 1779I01 | M57: 2 | N57: - | O57: 22 | P57: 5 | Q57: 1 | R57: 9 | S57: 2117 | T57: 3 | U57: 8 | V57: 96 | W57: 2 | X57: RC002 | Y57: - | Z57: CABA - AVELLANEDA | AA57: CABA - AVELLANEDA | AB57: MARGEN IZQUIERDA DEL RÍO MATANZA - RIACHUELO DESDE LA AVENIDA.GENERAL PAZ HASTA LA PLANTA DOCK SUD | AC57: 2015-01-15 | AD57: 2020-12-25 | AE57: 1182750149 | AF57: 1.124412159e+10 | AG57: 67156817.66 | AH57: 1.249402855e+10 | AI57: 1278504217 | AJ57: 3468852810 | AK57: 4898452846 | AL57: 2856147985 | AM57: 2042304861 | AN57: 4898452846 | AO57: EN EJECUCIÓN | AP57: 0.8362101613 | AQ57: 0.8473092225 | AR57: -
B58: 3885 | C58: 1. ESTADO NACIONAL | D58: SISTEMA RIACHUELO | E58: EMISARIO PLANTA RIACHUELO + INSPECCIÓN | F58: 2 | G58: 64. MINISTERIO DE OBRAS PÚBLICAS | H58: 364 | I58: AYSA | J58: 44. UNIDAD DE COORDINACIÓN GENERAL DEL PROYECTO BIRF 7706-AR | K58: - | L58: 1179I02 / 1779I02 | M58: 2 | N58: - | O58: 22 | P58: 5 | Q58: 1 | R58: 9 | S58: 2117 | T58: 3 | U58: 8 | V58: 96 | W58: 2 | X58: RC005 | Y58: - | Z58: AVELLANEDA | AA58: CABA - AVELLANEDA | AB58: RÍO DE LA PLATA | AC58: 2015-01-15 | AD58: 2021-03-31 | AE58: 1242214947 | AF58: 1.527325413e+10 | AG58: 124236586.7 | AH58: 1.663970566e+10 | AI58: 1346273693 | AJ58: 4795949099 | AK58: 5815770027 | AL58: 1312289641 | AM58: 4503480386 | AN58: 5815770027 | AO58: EN EJECUCIÓN | AP58: 0.7418485452 | AQ58: 0.7638458987 | AR58: -
B59: 3886 | C59: 1. ESTADO NACIONAL | D59: SISTEMA RIACHUELO | E59: EMISARIO PLANTA RIACHUELO + INSPECCIÓN | F59: 2 | G59: 91. OBLIGACIONES DEL TESORO | H59: 356 | I59: AYSA | J59: 95. ASISTENCIA FINANCIERA A EMPRESAS PÚBLICAS Y ENTE BINACIONAL | K59: 5 | L59: 1179L02 / 1479L98 / 1779L02 | M59: 77 | N59: - | O59: 22 Y RECURSOS PROPIOS | P59: 5 | Q59: 5 | R59: 7 | S59: 753 | T59: 3 | U59: 8 | V59: 2 | W59: 2 | X59: RC005 | Y59: - | Z59: AVELLANEDA | AA59: DOCK SUD | AB59: RÍO DE LA PLATA | AC59: 2015-01-15 | AD59: 2021-03-31 | AE59: 1183986122 | AF59: 2958452576 | AG59: 28885621.48 | AH59: 4171324319 | AI59: 686810875.8 | AJ59: 169326757 | AK59: 1764914826 | AL59: 75175995.89 | AM59: 1689738830 | AN59: 1764914826 | AO59: EN EJECUCIÓN | AP59: 0.7418485452 | AQ59: 0.7638458987 | AR59: -
B60: 3912 | C60: 1. ESTADO NACIONAL | D60: SISTEMA RIACHUELO | E60: PLANTA DE TRATAMIENTO RIACHUELO - OBRA CIVIL | F60: 2 | G60: 91. OBLIGACIONES DEL TESORO | H60: 356 | I60: AYSA | J60: 95. ASISTENCIA FINANCIERA A EMPRESAS PÚBLICAS Y ENTE BINACIONAL | K60: 5 | L60: 1161607 | M60: 77 | N60: - | O60: 22 Y RECURSOS PROPIOS | P60: 5 | Q60: 5 | R60: 7 | S60: 753 | T60: 3 | U60: 8 | V60: 2 | W60: 2 | X60: RC004 | Y60: - | Z60: AVELLANEDA | AA60: DOCK SUD | AB60: LAS ESTACIONES DE BOMBEO Y LA PLANTA DE PRETRATAMIENTO SE UBICARÁN EN EL PREDIO DE 450M X 350M DE RELLENO SOBRE LA COSTA DEL RÍO DE LA PLATA EN LA ZONA POR EN LA PORTUARIA EN LAS PROXIMIDADES DE LA ESCOLLERA DE PROPANEROS PARTIDO DE AVELLANEDA. | AC60: 2015-06-15 | AD60: 2021-12-31 | AE60: 290774929.8 | AF60: 909575636.5 | AG60: 752829676.8 | AH60: 1953180243 | AI60: 235294658.2 | AJ60: -6736447.629 | AK60: 1257921194 | AL60: 34625118.01 | AM60: 1223296076 | AN60: 1257921194 | AO60: EN EJECUCIÓN | AP60: 0.4137879237 | AQ60: 0.4545782537 | AR60: SE MODIFICA LA EJECUCIÓN 2018 YA QUE NO TOMARON LOS VALORES INFORMADOS OPORTUNAMENTE. EN DICIEMBRE 2018 AUDITORÍA SOLICITÓ UN AJUSTE DEL MONTO CONTABLE. ESO SE VIO REFLEJADO EN EL INFORME DE DIC-19.
B61: 3913 | C61: 1. ESTADO NACIONAL | D61: SISTEMA RIACHUELO | E61: PLANTA DE TRATAMIENTO RIACHUELO - OBRA ELECTROMECÁNICA | F61: 2 | G61: 91. OBLIGACIONES DEL TESORO | H61: 356 | I61: AYSA | J61: 95. ASISTENCIA FINANCIERA A EMPRESAS PÚBLICAS Y ENTE BINACIONAL | K61: 5 | L61: 1161609 | M61: 77 | N61: - | O61: 22 Y RECURSOS PROPIOS | P61: 5 | Q61: 5 | R61: 7 | S61: 753 | T61: 3 | U61: 8 | V61: 2 | W61: 2 | X61: RC004 | Y61: - | Z61: AVELLANEDA | AA61: DOCK SUD | AB61: LAS ESTACIONES DE BOMBEO Y LA PLANTA DE PRETRATAMIENTO SE UBICARÁN EN EL PREDIO DE 450M X 350M DE RELLENO SOBRE LA COSTA DEL RÍO DE LA PLATA EN LA ZONA POR EN LA PORTUARIA EN LAS PROXIMIDADES DE LA ESCOLLERA DE PROPANEROS PARTIDO DE AVELLANEDA. | AC61: 2015-06-15 | AD61: 2021-12-31 | AE61: 276446915.2 | AF61: 864756046.6 | AG61: 752686396.6 | AH61: 1893889358 | AI61: 0 | AJ61: -466268.7447 | AK61: 535974496.1 | AL61: 0 | AM61: 535974496.1 | AN61: 535974496.1 | AO61: EN EJECUCIÓN | AP61: 0.1193664409 | AQ61: 0 | AR61: SE MODIFICA LA EJECUCIÓN 2018 YA QUE NO TOMARON LOS VALORES INFORMADOS OPORTUNAMENTE. EN DICIEMBRE 2018 AUDITORÍA SOLICITÓ UN AJUSTE DEL MONTO CONTABLE. ESO SE VIO REFLEJADO EN EL INFORME DE DIC-19.
B62: 3914 | C62: 1. ESTADO NACIONAL | D62: PLANTA DE TRATAMIENTO DE BARROS SUDOESTE | E62: PLANTA DE TRATAMIENTO DE BARROS SUDOESTE OBRA CIVIL | F62: 2 | G62: 91. OBLIGACIONES DEL TESORO | H62: 356 | I62: AYSA | J62: 95. ASISTENCIA FINANCIERA A EMPRESAS PÚBLICAS Y ENTE BINACIONAL | K62: 5 | L62: 1379L05/1479L95 | M62: 77 | N62: - | O62: 22 Y RECURSOS PROPIOS | P62: 5 | Q62: 5 | R62: 7 | S62: 753 | T62: 3 | U62: 8 | V62: 2 | W62: 2 | X62: OC4021 | Y62: - | Z62: LA MATANZA | AA62: LA MATANZA | AB62: ALDO BONZI EN A:M: JANER Y PALPA, | AC62: 2015-05-19 | AD62: 2019-01-19 | AE62: 64431627.28 | AF62: 782906127.6 | AG62: 6132126.874 | AH62: 853469881.8 | AI62: 116453012.1 | AJ62: 11148382.69 | AK62: 12559377.19 | AL62: 0 | AM62: 12559377.19 | AN62: 12559377.19 | AO62: EN EJECUCIÓN | AP62: 0.8517679842 | AQ62: 0.9469540187 | AR62: -
B63: 3917 | C63: 1. ESTADO NACIONAL | D63: PLANTA DE TRATAMIENTO DE BARROS SUDOESTE | E63: PLANTA DE TRATAMIENTO DE BARROS SUDOESTE OBRA ELECTROMECÁNICA | F63: 2 | G63: 91. OBLIGACIONES DEL TESORO | H63: 356 | I63: AYSA | J63: 95. ASISTENCIA FINANCIERA A EMPRESAS PÚBLICAS Y ENTE BINACIONAL | K63: 5 | L63: 1379L06 | M63: 77 | N63: - | O63: 22 Y RECURSOS PROPIOS | P63: 5 | Q63: 5 | R63: 7 | S63: 753 | T63: 3 | U63: 8 | V63: 2 | W63: 2 | X63: OC4022 | Y63: - | Z63: LA MATANZA | AA63: PARTIDO DE LA MATANZA | AB63: ALDO BONZI EN A:M: JANER Y PALPA, | AC63: 2015-05-19 | AD63: 2019-01-19 | AE63: 46354055 | AF63: 879158820 | AG63: 0 | AH63: 925512875 | AI63: 110292533.2 | AJ63: 7066163.566 | AK63: 641329806.3 | AL63: 0 | AM63: 641329806.3 | AN63: 641329806.3 | AO63: EN EJECUCIÓN | AP63: 0.5633146408 | AQ63: 0.5259830945 | AR63: -
B64: 3919 | C64: 1. ESTADO NACIONAL | D64: PLANTA DE TRATAMIENTO DE BARROS SUDOESTE | E64: PLANTA DE TRATAMIENTO DE BARROS SUDOESTE OBRA CIVIL | F64: 2 | G64: 64. MINISTERIO DE OBRAS PÚBLICAS | H64: 364 | I64: AYSA | J64: 44. UNIDAD DE COORDINACIÓN GENERAL DEL PROYECTO BIRF 7706-AR | K64: - | L64: 1379I05 | M64: 2 | N64: - | O64: 22 | P64: 5 | Q64: 1 | R64: 9 | S64: 2117 | T64: 3 | U64: 8 | V64: 96 | W64: 2 | X64: OC4021 | Y64: - | Z64: LA MATANZA | AA64: PARTIDO DE LA MATANZA | AB64: ALDO BONZI EN A:M: JANER Y PALPA, | AC64: 2015-05-19 | AD64: 2019-01-19 | AE64: 310550260 | AF64: 253505366.6 | AG64: 0 | AH64: 564055626.6 | AI64: 80439324.59 | AJ64: 148597472.2 | AK64: 287954931.9 | AL64: 12861976.2 | AM64: 28814143.93 | AN64: 41676120.13 | AO64: EN EJECUCIÓN | AP64: 0.8517679842 | AQ64: 0.9469540187 | AR64: -
B65: 3920 | C65: 1. ESTADO NACIONAL | D65: PLANTA DE TRATAMIENTO DE BARROS SUDOESTE | E65: PLANTA DE TRATAMIENTO DE BARROS SUDOESTE OBRA ELECTROMECÁNICA | F65: 2 | G65: 64. MINISTERIO DE OBRAS PÚBLICAS | H65: 364 | I65: AYSA | J65: 44. UNIDAD DE COORDINACIÓN GENERAL DEL PROYECTO BIRF 7706-AR | K65: - | L65: 1379I06 | M65: 2 | N65: - | O65: 22 | P65: 5 | Q65: 1 | R65: 9 | S65: 2117 | T65: 3 | U65: 8 | V65: 96 | W65: 2 | X65: OC4022 | Y65: - | Z65: LA MATANZA | AA65: PARTIDO DE LA MATANZA | AB65: ALDO BONZI EN A:M: JANER Y PALPA, | AC65: 2015-05-19 | AD65: 2019-01-19 | AE65: 185416218 | AF65: -38435331.51 | AG65: 0 | AH65: 146980886.5 | AI65: 40147906.21 | AJ65: 162011589.6 | AK65: 534773444.9 | AL65: 225953164.1 | AM65: 202833222.4 | AN65: 428786386.5 | AO65: EN EJECUCIÓN | AP65: 0.5633146408 | AQ65: 0.5259830945 | AR65: -
B66: 4634 | C66: 1. ESTADO NACIONAL | D66: REDES CLOACALES LANÚS | E66: RENOVACIÓN DE RED CLOACAL ARMENIA - TERMINACIÓN | F66: 2 | G66: 91. OBLIGACIONES DEL TESORO | H66: 356 | I66: AYSA | J66: 95. ASISTENCIA FINANCIERA A EMPRESAS PÚBLICAS Y ENTE BINACIONAL | K66: 5 | L66: 1362603 | M66: 77 | N66: - | O66: 22 Y RECURSOS PROPIOS | P66: 5 | Q66: 5 | R66: 7 | S66: 753 | T66: 3 | U66: 8 | V66: 2 | W66: 2 | X66: SC618 / SC70203 | Y66: - | Z66: LANÚS | AA66: VALENTÍN ALSINA | AB66: LA RENOVACIÓN SE HARÁ EFECTIVA EN CALLE ARMENIA ENTRE TUYUTI Y REPUBLICA ARGENTINA | AC66: 2016-12-05 | AD66: 2018-04-08 | AE66: 13794447.94 | AF66: 21119987.65 | AG66: 1522551.18 | AH66: 36436986.77 | AI66: 13138909.3 | AJ66: 6611299.858 | AK66: 0 | AL66: 0 | AM66: 0 | AN66: 0 | AO66: FINALIZADO | AP66: 0.9266777933 | AQ66: 1 | AR66: REEMPLAZA A LA SC618. .
B67: 5243 | C67: 1. ESTADO NACIONAL | D67: REDES CLOACALES LA MATANZA | E67: READECUACION COLECTOR E IMPULSION DE ESTACION LAFERRERE CENTRO | F67: 2 | G67: 91. OBLIGACIONES DEL TESORO | H67: 356 | I67: AYSA | J67: 95. ASISTENCIA FINANCIERA A EMPRESAS PÚBLICAS Y ENTE BINACIONAL | K67: 5 | L67: 1460306 | M67: 77 | N67: - | O67: 22 Y RECURSOS PROPIOS | P67: 5 | Q67: 5 | R67: 7 | S67: 753 | T67: 3 | U67: 8 | V67: 2 | W67: 2 | X67: OC70017 | Y67: - | Z67: LA MATANZA | AA67: LAFERRERE | AB67: LA TRAZA DEL COLECTOR CLOACAL INICIA SU RECORRIDO EN BOCA DE REGISTRO EXISTENTE UBICADA EN LA INTERSECCIÓN DE LAS CALLES AMÉRICO VESPUCIO Y JAMACARÚ, CONTINUA POR JAMACARÚ HASTA E. SÁENZ, POR E. SÁENZ HASTA V. BOSCH Y POR V. BOSCH HASTA V. HUGO. | AC67: 2017-05-04 | AD67: 2018-09-12 | AE67: 24692871.7 | AF67: 18017289.93 | AG67: 1572112.944 | AH67: 44282274.57 | AI67: 37841919.71 | AJ67: 1236154.658 | AK67: 0 | AL67: 0 | AM67: 0 | AN67: 0 | AO67: FINALIZADO | AP67: 1 | AQ67: 1 | AR67: -
B68: 5265 | C68: 1. ESTADO NACIONAL | D68: ESTACIÓN DE BOMBEO CLOACAL LAFERRERE | E68: NUEVA ESTACIÓN DE BOMBEO CLOACAL LAFERRERE CENTRO - OBRA CIVIL | F68: 2 | G68: 91. OBLIGACIONES DEL TESORO | H68: 356 | I68: AYSA | J68: 95. ASISTENCIA FINANCIERA A EMPRESAS PÚBLICAS Y ENTE BINACIONAL | K68: 5 | L68: 1460304 | M68: 77 | N68: - | O68: 22 Y RECURSOS PROPIOS | P68: 5 | Q68: 5 | R68: 7 | S68: 753 | T68: 3 | U68: 8 | V68: 2 | W68: 2 | X68: OC700071 | Y68: - | Z68: LA MATANZA | AA68: LAFERRERE | AB68: LA ESTACIÓN DE BOMBEO DE ENCUENTRA SOBRE LA CALLE VENTURA BOSCH ENTRE JUAN CRUZ VARELA Y EDUARDO SAENZ. | AC68: 2017-03-01 | AD68: 2018-10-18 | AE68: 11827381.91 | AF68: 3230937.846 | AG68: 1150494.357 | AH68: 16208814.11 | AI68: 6670325.497 | AJ68: 1136438.437 | AK68: 0 | AL68: 0 | AM68: 0 | AN68: 0 | AO68: FINALIZADO | AP68: 1 | AQ68: 1 | AR68: -
B69: 5268 | C69: 1. ESTADO NACIONAL | D69: ESTACIÓN DE BOMBEO CLOACAL CABA | E69: ESTACIÓN DE BOMBEO CLOACAL COCA COLA - FEMSA - OBRA CIVIL | F69: 2 | G69: 91. OBLIGACIONES DEL TESORO | H69: 356 | I69: AYSA | J69: 95. ASISTENCIA FINANCIERA A EMPRESAS PÚBLICAS Y ENTE BINACIONAL | K69: 5 | L69: 1460311 | M69: 77 | N69: - | O69: 22 Y RECURSOS PROPIOS | P69: 5 | Q69: 5 | R69: 7 | S69: 753 | T69: 3 | U69: 8 | V69: 2 | W69: 2 | X69: CC700001 | Y69: - | Z69: CABA | AA69: BARRACAS | AB69: LA IMPLANTACIÓN DE LA ESTACIÓN DE BOMBEO EN EL PREDIO PRIVADO DE LA EMPRESA COCA COLA –FEMSA, UBICADA EN LA INTERSECCIÓN DE LAS CALLES CACHI Y AV. AMANCIO ALCORTA. | AC69: 2015-05-19 | AD69: 2019-01-04 | AE69: 3698575.104 | AF69: 6200370.874 | AG69: 2510738.953 | AH69: 12409684.93 | AI69: 298209.7272 | AJ69: 51018.8756 | AK69: 0 | AL69: 0 | AM69: 0 | AN69: 0 | AO69: FINALIZADO | AP69: 1 | AQ69: 1 | AR69: -
B70: 5269 | C70: 1. ESTADO NACIONAL | D70: ESTACIÓN DE BOMBEO CLOACAL CABA | E70: ESTACIÓN DE BOMBEO CLOACAL COCA COLA - FEMSA - OBRA ELECTRO | F70: 2 | G70: 91. OBLIGACIONES DEL TESORO | H70: 356 | I70: AYSA | J70: 95. ASISTENCIA FINANCIERA A EMPRESAS PÚBLICAS Y ENTE BINACIONAL | K70: 5 | L70: 1460312 | M70: 77 | N70: - | O70: 22 Y RECURSOS PROPIOS | P70: 5 | Q70: 5 | R70: 7 | S70: 753 | T70: 3 | U70: 8 | V70: 2 | W70: 2 | X70: CC700002 | Y70: - | Z70: CABA | AA70: BARRACAS | AB70: LA IMPLANTACIÓN DE LA ESTACIÓN DE BOMBEO EN EL PREDIO PRIVADO DE LA EMPRESA COCA COLA –FEMSA, UBICADA EN LA INTERSECCIÓN DE LAS CALLES CACHI Y AV. AMANCIO ALCORTA. | AC70: 2015-05-19 | AD70: 2019-01-04 | AE70: 6697679.834 | AF70: 3452034.616 | AG70: 352449.2108 | AH70: 10502163.66 | AI70: 5916868.467 | AJ70: 33285.5996 | AK70: 0 | AL70: 0 | AM70: 0 | AN70: 0 | AO70: FINALIZADO | AP70: 1 | AQ70: 0.9995 | AR70: -
B71: 5270 | C71: 1. ESTADO NACIONAL | D71: REDES CLOACALES CABA | E71: RED PRIMARIA CLOACAL - IMPULSIÓN COCA COLA - FEMSA | F71: 2 | G71: 91. OBLIGACIONES DEL TESORO | H71: 356 | I71: AYSA | J71: 95. ASISTENCIA FINANCIERA A EMPRESAS PÚBLICAS Y ENTE BINACIONAL | K71: 5 | L71: 1460310 | M71: 77 | N71: - | O71: 22 Y RECURSOS PROPIOS | P71: 5 | Q71: 5 | R71: 7 | S71: 753 | T71: 3 | U71: 8 | V71: 2 | W71: 2 | X71: CC70001 | Y71: - | Z71: CABA | AA71: BARRACAS | AB71: LA IMPULSIÓN INICIARÁ SU TRAZA EN LA INTERSECCIÓN DE LAS CALLES AV. AMANCIO ALCORTA Y CACHI, RECORRIENDO LAS CALLES CACHI, SANTO DOMINGO Y DIÓGENES TABORDA, DESCARGARAMDO FINALMENTE EN LA SEGUNDA CLOACA MÁXIMA EN UNA BOCA DE REGISTRO EXISTENTE EN LA CALLE DIÓGENES TABORDA INTERSECCIÓN CON EL RIACHUELO. | AC71: 2016-02-18 | AD71: 2018-09-20 | AE71: 6716121.638 | AF71: 6824741.431 | AG71: 434685.8656 | AH71: 13975548.93 | AI71: 4397724.624 | AJ71: 2052076.643 | AK71: 0 | AL71: 0 | AM71: 0 | AN71: 0 | AO71: FINALIZADO | AP71: 1 | AQ71: 1 | AR71: -
B72: 5278 | C72: 1. ESTADO NACIONAL | D72: REDES CLOACALES FIORITO | E72: RED PRIMARIA CLOACAL - COLECTOR FIORITO Y ENTRADA A PLANTA FIORITO | F72: 2 | G72: 91. OBLIGACIONES DEL TESORO | H72: 356 | I72: AYSA | J72: 95. ASISTENCIA FINANCIERA A EMPRESAS PÚBLICAS Y ENTE BINACIONAL | K72: 5 | L72: 1460303 | M72: 77 | N72: - | O72: 22 Y RECURSOS PROPIOS | P72: 5 | Q72: 5 | R72: 7 | S72: 753 | T72: 3 | U72: 8 | V72: 2 | W72: 2 | X72: SC627 | Y72: - | Z72: LOMAS DE ZAMORA | AA72: VILLA FIORITO | AB72: EL COLECTOR FIORITO INICIARÁ SU RECORRIDO CON UN DN 1500 MM POR LA CALLE GASPAR NÚÑEZ DE ARCE ESQUINA EJÉRCITO DE LOS ANDES HASTA LA CALLE AUSTRALIA, CONTINUANDO POR ÉSTA HASTA LA CALLE MIRO, ALLÍ DOBLA Y SEGUIRÁ HASTA FIGUEREDO DONDE DOBLA Y CONTINÚA POR FIGUEREDO HASTA LA MITAD DE CUADRA ENTRE LAS CALLES PÍO BAROJA Y BENITO P. GALDOS DONDE ESTÁ PREVISTA LA ENTRADA A LA PLANTA FIORITO. EL COLECTOR DENOMINADO “ENTRADA A PLANTA FIORITO” INICIARÁ SI RECORRIDO SOBRE LA CALLE FIGUEREDO ENTRE LAS CALLES PÍO BAROJA Y BENITO P. GALDOS E INGRESARÁ AL PREDIO DESTINADO A LA PLANTA FIORITO. | AC72: 2014-12-01 | AD72: 2018-03-16 | AE72: 207365246.2 | AF72: 264830903.9 | AG72: 11232764.52 | AH72: 483428914.6 | AI72: 143463716.7 | AJ72: 3266.516 | AK72: 0 | AL72: 0 | AM72: 0 | AN72: 0 | AO72: FINALIZADO | AP72: 1 | AQ72: 1 | AR72: -
B73: 5290 | C73: 1. ESTADO NACIONAL | D73: OBRA PRETRATAMIENTO SIST. BERAZATEGUI | E73: EQUIPOS | F73: 2 | G73: 91. OBLIGACIONES DEL TESORO | H73: 356 | I73: AYSA | J73: 95. ASISTENCIA FINANCIERA A EMPRESAS PÚBLICAS Y ENTE BINACIONAL | K73: 5 | L73: 1355901 | M73: 5 | N73: - | O73: 11 | P73: 5 | Q73: 5 | R73: 7 | S73: 753 | T73: 3 | U73: 8 | V73: 96 | W73: 2 | X73: SIN P3 | Y73: - | Z73: BERAZATEGUI | AA73: BERAZATEGUI | AB73: PLANTA PRETRATAMIENTO BERAZATEGUI - CALLE 14 Y EL RÍO DE LA PLATA - BERAZATEGUI | AC73: 2014-01-02 | AD73: 2015-12-31 | AE73: 2420000 | AF73: 0 | AG73: -440017.468 | AH73: 1979982.532 | AI73: 0 | AJ73: -48726.7 | AK73: 0 | AL73: 0 | AM73: 0 | AN73: 0 | AO73: FINALIZADO | AP73: 1.012607333 | AQ73: 1 | AR73: -
B74: 5294 | C74: 1. ESTADO NACIONAL | D74: PLANTA POTABILIZADORA EZEIZA | E74: PLANTA DE TRATAMIENTO DE AGUA CON REMOCION DE ARSENICO POR ADSORCION BATERIA EZEIZA. O. CIVIL | F74: 2 | G74: MINISTERIO DE OBRAS PÚBLICAS | H74: 325 | I74: AYSA | J74: 94. ASISTENCIA FINANCIERA A EMPRESAS PÚBLICAS Y ENTE BINACIONAL | K74: - | L74: 1360C05 | M74: 11 | N74: - | O74: 22 | P74: 5 | Q74: 5 | R74: 7 | S74: 753 | T74: 3 | U74: 8 | V74: 6 | W74: 2 | X74: SAE00910 | Y74: - | Z74: EZEIZA | AA74: EZEIZA | AB74: CALLE MAIPÚ, E/ EDUARDO GUTIÉRREZ (FFCCGB) Y LAS HERAS | AC74: 2014-08-11 | AD74: 2017-12-10 | AE74: 16369933.84 | AF74: 9216425.9 | AG74: 0 | AH74: 25586359.74 | AI74: 1047519.21 | AJ74: 2045196.32 | AK74: 0 | AL74: 0 | AM74: 0 | AN74: 0 | AO74: FINALIZADO | AP74: 1 | AQ74: 1 | AR74: REEMPLAZA PROYECTO 1160C12. MONTO VIGENTE Y GRADO DE AVANCE ECONÓMICO, SE CONSIDERAN SOLO PARTIDAS CONTRACTUALES
B75: 5295 | C75: 1. ESTADO NACIONAL | D75: PLANTA POTABILIZADORA EZEIZA | E75: PLANTA DE TRATAMIENTO DE AGUA CON REMOCION DE ARSENICO POR ADSORCION BATERIA EZEIZA. O. CIVIL | F75: 2 | G75: 91. OBLIGACIONES DEL TESORO | H75: 356 | I75: AYSA | J75: 95. ASISTENCIA FINANCIERA A EMPRESAS PÚBLICAS Y ENTE BINACIONAL | K75: 5 | L75: 1360C05 | M75: 77 | N75: - | O75: 22 Y RECURSOS PROPIOS | P75: 5 | Q75: 5 | R75: 7 | S75: 753 | T75: 3 | U75: 8 | V75: 2 | W75: 2 | X75: SAE00910 | Y75: - | Z75: EZEIZA | AA75: EZEIZA | AB75: CALLE MAIPÚ, E/ EDUARDO GUTIÉRREZ (FFCCGB) Y LAS HERAS | AC75: 2014-08-11 | AD75: 2017-12-10 | AE75: 3437686.106 | AF75: 1935449.44 | AG75: 0 | AH75: 5373135.546 | AI75: 219979.0341 | AJ75: 429491.2272 | AK75: 0 | AL75: 0 | AM75: 0 | AN75: 0 | AO75: FINALIZADO | AP75: 1 | AQ75: 1 | AR75: REEMPLAZA PROYECTO 1160C12. MONTO VIGENTE Y GRADO DE AVANCE ECONÓMICO, SE CONSIDERAN SOLO PARTIDAS CONTRACTUALES.
B76: 5296 | C76: 1. ESTADO NACIONAL | D76: SISTEMA AGUA EZEIZA | E76: PLANTA DE TRATAMIENTO DE AGUA CON REMOCION DE ARSENICO POR ADSORCION BATERIA EZEIZA. O. CIVIL | F76: 2 | G76: 91. OBLIGACIONES DEL TESORO | H76: 356 | I76: AYSA | J76: 95. ASISTENCIA FINANCIERA A EMPRESAS PÚBLICAS Y ENTE BINACIONAL | K76: 5 | L76: 1360C05 | M76: 77 | N76: - | O76: 22 Y RECURSOS PROPIOS | P76: 5 | Q76: 5 | R76: 7 | S76: 753 | T76: 3 | U76: 8 | V76: 2 | W76: 2 | X76: SAE00910 | Y76: - | Z76: EZEIZA | AA76: EZEIZA | AB76: CALLE MAIPÚ, E/ EDUARDO GUTIÉRREZ (FFCCGB) Y LAS HERAS | AC76: 2014-08-11 | AD76: 2017-12-10 | AE76: 245549.01 | AF76: 28712825.07 | AG76: 0 | AH76: 28958374.08 | AI76: 4380785.616 | AJ76: 0 | AK76: 0 | AL76: 0 | AM76: 0 | AN76: 0 | AO76: FINALIZADO | AP76: 1 | AQ76: 1 | AR76: REEMPLAZA PROYECTO 1160C12. MONTO VIGENTE Y GRADO DE AVANCE ECONÓMICO, SE CONSIDERAN SOLO PARTIDAS CONTRACTUALES.
B77: 5297 | C77: 1. ESTADO NACIONAL | D77: PLANTA POTABILIZADORA EZEIZA | E77: PLANTA DE TRATAMIENTO DE AGUA CON REMOCION DE ARSENICO POR ADSORCION BATERIA EZEIZA. O. ELECTROMECANICA | F77: 2 | G77: MINISTERIO DE OBRAS PÚBLICAS | H77: 325 | I77: AYSA | J77: 94. ASISTENCIA FINANCIERA A EMPRESAS PÚBLICAS Y ENTE BINACIONAL | K77: - | L77: 1360C06 | M77: 11 | N77: - | O77: 22 | P77: 5 | Q77: 5 | R77: 7 | S77: 753 | T77: 3 | U77: 8 | V77: 6 | W77: 2 | X77: SAE00920 | Y77: - | Z77: EZEIZA | AA77: EZEIZA | AB77: CALLE MAIPÚ, E/ EDUARDO GUTIÉRREZ (FFCCGB) Y LAS HERAS | AC77: 2014-08-11 | AD77: 2017-12-10 | AE77: 33857043.95 | AF77: 32406844.48 | AG77: 0 | AH77: 66263888.43 | AI77: 898212.18 | AJ77: 5546750.61 | AK77: 12289601.83 | AL77: 3930586.99 | AM77: 8359014.84 | AN77: 12289601.83 | AO77: FINALIZADO | AP77: 1 | AQ77: 1 | AR77: REEMPLAZA PROYECTO 1160C12. MONTO VIGENTE Y GRADO DE AVANCE ECONÓMICO, SE CONSIDERAN SOLO PARTIDAS CONTRACTUALES. EL DEVENGADO 2020 FUE CONTABILIZADO EN F22 PERO CORRESPONDE FINANCIAMIENTO F11. LOS CARGOS SE RECLASIFICARÁN EN 2021 CON CARGO A AÑOS ANTERIORES.
B78: 5298 | C78: 1. ESTADO NACIONAL | D78: PLANTA POTABILIZADORA EZEIZA | E78: PLANTA DE TRATAMIENTO DE AGUA CON REMOCION DE ARSENICO POR ADSORCION BATERIA EZEIZA. O. ELECTROMECANICA | F78: 2 | G78: 91. OBLIGACIONES DEL TESORO | H78: 356 | I78: AYSA | J78: 95. ASISTENCIA FINANCIERA A EMPRESAS PÚBLICAS Y ENTE BINACIONAL | K78: 5 | L78: 1360C06 | M78: 77 | N78: - | O78: 22 Y RECURSOS PROPIOS | P78: 5 | Q78: 5 | R78: 7 | S78: 753 | T78: 3 | U78: 8 | V78: 2 | W78: 2 | X78: SAE00920 | Y78: - | Z78: EZEIZA | AA78: EZEIZA | AB78: CALLE MAIPÚ, E/ EDUARDO GUTIÉRREZ (FFCCGB) Y LAS HERAS | AC78: 2014-08-11 | AD78: 2017-12-10 | AE78: 7109979.23 | AF78: 6805437.34 | AG78: 0 | AH78: 13915416.57 | AI78: 188624.5578 | AJ78: 1164817.628 | AK78: 2580816.384 | AL78: 825423.2679 | AM78: 1755393.116 | AN78: 2580816.384 | AO78: FINALIZADO | AP78: 1 | AQ78: 1 | AR78: REEMPLAZA PROYECTO 1160C12. MONTO VIGENTE Y GRADO DE AVANCE ECONÓMICO, SE CONSIDERAN SOLO PARTIDAS CONTRACTUALES.
B79: 5299 | C79: 1. ESTADO NACIONAL | D79: SISTEMA AGUA EZEIZA | E79: PLANTA DE TRATAMIENTO DE AGUA CON REMOCION DE ARSENICO POR ADSORCION BATERIA EZEIZA. O. ELECTROMECANICA | F79: 2 | G79: 91. OBLIGACIONES DEL TESORO | H79: 356 | I79: AYSA | J79: 95. ASISTENCIA FINANCIERA A EMPRESAS PÚBLICAS Y ENTE BINACIONAL | K79: 5 | L79: 1360C06 | M79: 77 | N79: - | O79: 22 Y RECURSOS PROPIOS | P79: 5 | Q79: 5 | R79: 7 | S79: 753 | T79: 3 | U79: 8 | V79: 2 | W79: 2 | X79: SAE00920 | Y79: - | Z79: EZEIZA | AA79: EZEIZA | AB79: CALLE MAIPÚ, E/ EDUARDO GUTIÉRREZ (FFCCGB) Y LAS HERAS | AC79: 2014-08-11 | AD79: 2017-12-10 | AE79: 507855.66 | AF79: 121949758.8 | AG79: 0 | AH79: 122457614.4 | AI79: 54625100.7 | AJ79: 0 | AK79: 0 | AL79: 0 | AM79: 0 | AN79: 0 | AO79: FINALIZADO | AP79: 1 | AQ79: 1 | AR79: REEMPLAZA PROYECTO 1160C12. MONTO VIGENTE Y GRADO DE AVANCE ECONÓMICO, SE CONSIDERAN SOLO PARTIDAS CONTRACTUALES.
B80: 5300 | C80: 1. ESTADO NACIONAL | D80: REDES DE AGUA LA MATANZA | E80: PLAN AYSA A+T D.R OESTE - LA MATANZA | F80: 2 | G80: 91. OBLIGACIONES DEL TESORO | H80: 356 | I80: AYSA | J80: 95. ASISTENCIA FINANCIERA A EMPRESAS PÚBLICAS Y ENTE BINACIONAL | K80: 5 | L80: 1448408 | M80: 77 | N80: - | O80: 22 Y RECURSOS PROPIOS | P80: 5 | Q80: 5 | R80: 7 | S80: 753 | T80: 3 | U80: 8 | V80: 2 | W80: 2 | X80: SIN P3 | Y80: - | Z80: LA MATANZA | AA80: LA MATANZA | AB80: SAN CAYETANO M4 - VINC POZOS LMO77-LMO65-LMO88 | AC80: 2014-09-20 | AD80: 2019-06-30 | AE80: 32206050.68 | AF80: 330547 | AG80: 5134943.993 | AH80: 37671541.67 | AI80: 283082.1499 | AJ80: 40837.5 | AK80: 0 | AL80: 0 | AM80: 0 | AN80: 0 | AO80: FINALIZADO | AP80: 1 | AQ80: 1 | AR80: -
B81: 5457 | C81: 1. ESTADO NACIONAL | D81: AUTOPISTA PTE. PERÓN | E81: CAMINO DEL BUEN AYRE TRAMO I - SECCION ACCESO OESTE - ACCESO A Bº 20 DE JUNIO (PONTEVEDRA - PROG 25,55) | F81: 2 | G81: 604. DIRECCIÓN NACIONAL DE VIALIDAD | H81: 604 | I81: DIRECCION NACIONAL DE VIALIDAD | J81: 42. CONSTRUCCIÓN DE AUTOPISTAS Y AUTOVÍAS | K81: 10 | L81: 3 | M81: 0 | N81: 51 | O81: 15 | P81: 6 | Q81: 8 | R81: 7 | S81: 0 | T81: 4 | U81: 3 | V81: 6 | W81: 1 | X81: - | Y81: - | Z81: EZEIZA - LA MATANZA - MERLO - PRESIDENTE PERÓN - SAN VICENTE | AA81: EZEIZA - LA MATANZA - MERLO - PRESIDENTE PERÓN - SAN VICENTE | AB81: CAMINO DEL BUEN AYRE | AC81: 2010-03-10 | AD81: 2021-05-10 | AE81: 483287977 | AF81: 4271512403 | AG81: 2195495999 | AH81: 6950296379 | AI81: 0 | AJ81: 40295499.6 | AK81: 0 | AL81: 0 | AM81: 0 | AN81: 0 | AO81: EN EJECUCIÓN | AP81: 0.08691702955 | AQ81: 0.51 | AR81: ACTIVIDAD INTERNA DB1. LINEA AGREGADA POR CAMBIO DE FUENTE/INCISO. PARTIDA Y PRESUPUESTO INICIAL GLOBAL.
B82: 5458 | C82: 1. ESTADO NACIONAL | D82: AUTOPISTA PTE. PERÓN | E82: CAMINO DEL BUEN AYRE TRAMO II - SECCION ACCESO A Bº 20 DE JUNIO - RUTA PROV.Nº58- PROG. KM53,980) | F82: 2 | G82: 604. DIRECCIÓN NACIONAL DE VIALIDAD | H82: 604 | I82: DIRECCION NACIONAL DE VIALIDAD | J82: 42. CONSTRUCCIÓN DE AUTOPISTAS Y AUTOVÍAS | K82: 10 | L82: 3 | M82: 0 | N82: 51 | O82: 15 | P82: 6 | Q82: 8 | R82: 7 | S82: 0 | T82: 4 | U82: 3 | V82: 6 | W82: 1 | X82: - | Y82: - | Z82: EZEIZA - LA MATANZA - MERLO - PRESIDENTE PERÓN - SAN VICENTE | AA82: EZEIZA - LA MATANZA - MERLO - PRESIDENTE PERÓN - SAN VICENTE | AB82: CAMINO DEL BUEN AYRE | AC82: 2010-03-11 | AD82: 2022-03-11 | AE82: 555060595 | AF82: 4632936269 | AG82: 4370216382 | AH82: 9558213246 | AI82: 0 | AJ82: 399697894.2 | AK82: 0 | AL82: 0 | AM82: 0 | AN82: 0 | AO82: EN EJECUCIÓN | AP82: 0.05 | AQ82: 0.44 | AR82: ACTIVIDAD INTERNA DB3. LINEA AGREGADA POR CAMBIO DE FUENTE/INCISO. PARTIDA Y PRESUPUESTO INICIAL GLOBAL.
B83: 5459 | C83: 1. ESTADO NACIONAL | D83: AUTOPISTA PTE. PERÓN | E83: CAMINO DEL BUEN AYRE TRAMO III - SECCION RUTA PROV.Nº58- RUTA PROV.Nº53 (PROG. KM 72,60) | F83: 2 | G83: 604. DIRECCIÓN NACIONAL DE VIALIDAD | H83: 604 | I83: DIRECCION NACIONAL DE VIALIDAD | J83: 42. CONSTRUCCIÓN DE AUTOPISTAS Y AUTOVÍAS | K83: 10 | L83: 3 | M83: 0 | N83: 51 | O83: 15 | P83: 6 | Q83: 8 | R83: 7 | S83: 0 | T83: 4 | U83: 3 | V83: 6 | W83: 1 | X83: - | Y83: - | Z83: EZEIZA - LA MATANZA - MERLO - PRESIDENTE PERÓN - SAN VICENTE | AA83: EZEIZA - LA MATANZA - MERLO - PRESIDENTE PERÓN - SAN VICENTE | AB83: CAMINO DEL BUEN AYRE | AC83: 2010-03-11 | AD83: 2021-12-08 | AE83: 318183735 | AF83: 1696476940 | AG83: 3704131954 | AH83: 5718792629 | AI83: 0 | AJ83: 40821639.86 | AK83: 0 | AL83: 0 | AM83: 0 | AN83: 0 | AO83: EN EJECUCIÓN | AP83: 0.01926935916 | AQ83: 0.335 | AR83: ACTIVIDAD INTERNA DB2. LINEA AGREGADA POR CAMBIO DE FUENTE/INCISO. PARTIDA Y PRESUPUESTO INICIAL GLOBAL.
B84: 5464 | C84: 1. ESTADO NACIONAL | D84: TRANSBORDADOR NICOLÁS AVELLANEDA | E84: REMOCION DEL GASODUCTO EN EL PUENTE TRANSBORADADOR "NICOLAS AVELLANEDA" TR.: AVELLANEDA - CABA. PCIA. DE BS. AS.- ACUMAR | F84: 2 | G84: 604. DIRECCIÓN NACIONAL DE VIALIDAD | H84: 604 | I84: DIRECCION NACIONAL DE VIALIDAD | J84: 22. CONSTRUCCIONES | K84: 4 | L84: 1 | M84: 0 | N84: 51 | O84: 15 | P84: 4 | Q84: 2 | R84: 2 | S84: 0 | T84: 4 | U84: 3 | V84: 6 | W84: 1 | X84: - | Y84: - | Z84: AVELLANEDA-CABA | AA84: AVELLANEDA-CABA | AB84: AVELLANEDA-CABA | AC84: 2014-01-03 | AD84: 2015-05-20 | AE84: 29382258.82 | AF84: 3684738.14 | AG84: 9492933.38 | AH84: 42559930.34 | AI84: 19841743.21 | AJ84: 0 | AK84: 5783881 | AL84: 0 | AM84: 0 | AN84: 0 | AO84: EN EJECUCIÓN | AP84: 0.7633644005 | AQ84: 1 | AR84: -
B85: 5473 | C85: 1. ESTADO NACIONAL | D85: PLANTA DE TRATAMIENTO DE BARROS SUDOESTE | E85: SERVICIOS DE INSPECCIÓN DE OBRA PLANTA DE BARROS EN ESTABLECIMIENTO SUDOESTE (OC402) | F85: 2 | G85: 91. OBLIGACIONES DEL TESORO | H85: 356 | I85: AYSA | J85: 95. ASISTENCIA FINANCIERA A EMPRESAS PÚBLICAS Y ENTE BINACIONAL | K85: 5 | L85: 1461603 | M85: 77 | N85: - | O85: 22 Y RECURSOS PROPIOS | P85: 5 | Q85: 5 | R85: 7 | S85: 753 | T85: 3 | U85: 8 | V85: 2 | W85: 2 | X85: OX70001 | Y85: - | Z85: LA MATANZA | AA85: VILLA CELINA | AB85: LA PLANTA SUDOESTE SE ENCUENTRA EN A. M. JANER Y PALPA, ALDO BONZI, PARTIDO DE LA MATANZA. | AC85: 2015-07-01 | AD85: 2020-12-31 | AE85: 10890000 | AF85: 92854014.44 | AG85: 0 | AH85: 103744014.4 | AI85: 20903077 | AJ85: 2561558.166 | AK85: 15000000 | AL85: 0 | AM85: 0 | AN85: 0 | AO85: EN EJECUCIÓN | AP85: 0.5989160343 | AQ85: 0.598916035 | AR85: POR SER INSPECCIÓN AVANCE FÍSICO = ECONÓMICO.
B86: 5475 | C86: 1. ESTADO NACIONAL | D86: REDES CLOACALES LANÚS | E86: RED SECUNDARIA CLOACAL INTERNACIONAL SUR | F86: 2 | G86: 91. OBLIGACIONES DEL TESORO | H86: 356 | I86: AYSA | J86: 95. ASISTENCIA FINANCIERA A EMPRESAS PÚBLICAS Y ENTE BINACIONAL | K86: 5 | L86: 1460409 | M86: 77 | N86: - | O86: 22 Y RECURSOS PROPIOS | P86: 5 | Q86: 5 | R86: 7 | S86: 753 | T86: 3 | U86: 8 | V86: 2 | W86: 2 | X86: SC670 | Y86: - | Z86: LANÚS | AA86: LANÚS | AB86: EL ÁREA QUE ABARCA LA RED SECUNDARIA ESTÁ COMPRENDIDA POR LAS SIGUIENTES CALLES: URQUIZA, REPÚBLICA DEL LÍBANO, CALLE CONTIGUA A LAS VÍAS DEL FFCC EX ROCA Y PELLEGRINI. | AC86: 2015-10-19 | AD86: 2017-12-20 | AE86: 139030447.8 | AF86: 130337203.6 | AG86: 8035694.886 | AH86: 277403346.2 | AI86: 109586024.4 | AJ86: 154918.9862 | AK86: 0 | AL86: 0 | AM86: 0 | AN86: 0 | AO86: FINALIZADO | AP86: 1 | AQ86: 1 | AR86: -
B87: 5476 | C87: 1. ESTADO NACIONAL | D87: REDES CLOACALES ACCIONES COMPLEMENTARIAS | E87: TRABAJOS COMPLEMENTARIOS PARA INTERVENCION EN ESTACIONES DE BOMBEO Y VALVULAS REGULADORAS | F87: 2 | G87: 91. OBLIGACIONES DEL TESORO | H87: 356 | I87: AYSA | J87: 95. ASISTENCIA FINANCIERA A EMPRESAS PÚBLICAS Y ENTE BINACIONAL | K87: 5 | L87: 1560301 | M87: 77 | N87: - | O87: 22 Y RECURSOS PROPIOS | P87: 5 | Q87: 5 | R87: 7 | S87: 753 | T87: 3 | U87: 8 | V87: 2 | W87: 2 | X87: VX70003 | Y87: - | Z87: AVELLANEDA - LOMAS DE ZAMORA - TIGRE | AA87: VARIOS | AB87: LAS PRINCIPALES OBRAS SE DESARROLLARÁN EN: • EBC RECONQUISTA 1 UBICADA SOBRE LA CALLE CALLAO E/CARRIEGO Y SEGUROLA, PARTIDO DE TIGRE. • EBC AVELLANEDA OESTE UBICADA SOBRE LA CALLE SUSPISICHE N°519 E/SOLIER Y CORDERO, PARTIDO DE AVELLANEDA. • CÁMARA REGULADORA 9 DE ABRIL UBICADA EN POTOSI, E/ ARANA GOIRI Y BUSTOS, PARTIDO DE LOMAS DE ZAMORA. | AC87: 2016-11-01 | AD87: 2020-12-31 | AE87: 42780536.21 | AF87: 26707590.81 | AG87: 3060168.659 | AH87: 72548295.68 | AI87: 27777068.07 | AJ87: 16918794.25 | AK87: 25753734 | AL87: 13381882.88 | AM87: 7190827.579 | AN87: 20572710.46 | AO87: FINALIZADO | AP87: 0.9493787202 | AQ87: 1 | AR87: -
B88: 5477 | C88: 1. ESTADO NACIONAL | D88: AGUA RED PRIMARIA | E88: TRABAJOS COMPLEMENTARIOS PARA OBRAS DE REDES DE LA DIRECCIÓN DE PROGRAMACIÓN Y EJECUCIÓN DE OBRAS | F88: 2 | G88: 91. OBLIGACIONES DEL TESORO | H88: 356 | I88: AYSA | J88: 95. ASISTENCIA FINANCIERA A EMPRESAS PÚBLICAS Y ENTE BINACIONAL | K88: 5 | L88: 1460010 | M88: 77 | N88: 0 | O88: 22 y Recursos Propios | P88: 5 | Q88: 5 | R88: 7 | S88: 753 | T88: 3 | U88: 8 | V88: 2 | W88: 2 | X88: VX70004 | Y88: - | Z88: VARIOS | AA88: VARIOS | AB88: VARIOS | AC88: 2016-07-22 | AD88: 2018-04-19 | AE88: 14886436.01 | AF88: 18131998.21 | AG88: 1584519.395 | AH88: 34602953.62 | AI88: - | AJ88: 0 | AK88: 22029.3084 | AL88: 0 | AM88: 22029.3084 | AN88: 22029.3084 | AO88: FINALIZADO | AP88: 1 | AQ88: 1 | AR88: ESTE PROYECTO HABÍA SIDO EXCLUIDO POR ESTAR FINALIZADO, PERO SE REGISTRÓ UN CARGO CONTABLE EN EL SEGUNDO SEMESTRE 2020
B89: 5481 | C89: 1. ESTADO NACIONAL | D89: SISTEMA RIACHUELO | E89: ESTACION ELEVADORA DE SALIDA - SISTEMA RIACHUELO OBRA CIVIL | F89: 2 | G89: 91. OBLIGACIONES DEL TESORO | H89: 356 | I89: AYSA | J89: 95. ASISTENCIA FINANCIERA A EMPRESAS PÚBLICAS Y ENTE BINACIONAL | K89: 5 | L89: 1161612 | M89: 77 | N89: - | O89: 22 Y RECURSOS PROPIOS | P89: 5 | Q89: 5 | R89: 7 | S89: 753 | T89: 3 | U89: 8 | V89: 2 | W89: 2 | X89: RC004 | Y89: - | Z89: AVELLANEDA | AA89: DOCK SUD | AB89: LAS ESTACIONES DE BOMBEO Y LA PLANTA DE PRETRATAMIENTO SE UBICARÁN EN EL PREDIO DE 450M X 350M DE RELLENO SOBRE LA COSTA DEL RÍO DE LA PLATA EN LA ZONA POR EN LA PORTUARIA EN LAS PROXIMIDADES DE LA ESCOLLERA DE PROPANEROS PARTIDO DE AVELLANEDA. | AC89: 2015-06-15 | AD89: 2021-12-31 | AE89: 42400612 | AF89: 132633730.5 | AG89: 300392777.1 | AH89: 475427119.6 | AI89: 28612872.29 | AJ89: -49171.5565 | AK89: 213503251.2 | AL89: 9041321.513 | AM89: 204461929.7 | AN89: 213503251.2 | AO89: EN EJECUCIÓN | AP89: 0.3647845727 | AQ89: 0.1658183053 | AR89: SE MODIFICA LA EJECUCIÓN 2018 YA QUE NO TOMARON LOS VALORES INFORMADOS OPORTUNAMENTE (DIFERENCIA DE EJECUCIÓN POR AJUSTE SOLICITADO POR AUDITORÍA EN DICIEMBRE 2018)
B90: 5482 | C90: 1. ESTADO NACIONAL | D90: SISTEMA RIACHUELO | E90: ESTACION DE SALIDA - SISTEMA RIACHUELO OBRA ELECTROMECANICA | F90: 2 | G90: 91. OBLIGACIONES DEL TESORO | H90: 356 | I90: AYSA | J90: 95. ASISTENCIA FINANCIERA A EMPRESAS PÚBLICAS Y ENTE BINACIONAL | K90: 5 | L90: 1161613 | M90: 77 | N90: - | O90: 22 Y RECURSOS PROPIOS | P90: 5 | Q90: 5 | R90: 7 | S90: 753 | T90: 3 | U90: 8 | V90: 2 | W90: 2 | X90: RC004 | Y90: - | Z90: AVELLANEDA | AA90: DOCK SUD | AB90: LAS ESTACIONES DE BOMBEO Y LA PLANTA DE PRETRATAMIENTO SE UBICARÁN EN EL PREDIO DE 450M X 350M DE RELLENO SOBRE LA COSTA DEL RÍO DE LA PLATA EN LA ZONA POR EN LA PORTUARIA EN LAS PROXIMIDADES DE LA ESCOLLERA DE PROPANEROS PARTIDO DE AVELLANEDA. | AC90: 2015-06-15 | AD90: 2021-12-31 | AE90: 204477790 | AF90: 639628789 | AG90: 601982319.9 | AH90: 1446088899 | AI90: 0 | AJ90: 0 | AK90: 322797253.1 | AL90: 0 | AM90: 322797253.1 | AN90: 322797253.1 | AO90: EN EJECUCIÓN | AP90: 0.0987546862 | AQ90: 0 | AR90: -
B91: 5483 | C91: 1. ESTADO NACIONAL | D91: SISTEMA RIACHUELO | E91: ESTACION ELEVADORA DE ENTRADA - SISTEMA RIACHUELO OBRA CIVIL | F91: 2 | G91: 91. OBLIGACIONES DEL TESORO | H91: 356 | I91: AYSA | J91: 95. ASISTENCIA FINANCIERA A EMPRESAS PÚBLICAS Y ENTE BINACIONAL | K91: 5 | L91: 1161610 | M91: 77 | N91: - | O91: 22 Y RECURSOS PROPIOS | P91: 5 | Q91: 5 | R91: 7 | S91: 753 | T91: 3 | U91: 8 | V91: 2 | W91: 2 | X91: RC004 | Y91: - | Z91: AVELLANEDA | AA91: DOCK SUD | AB91: LAS ESTACIONES DE BOMBEO Y LA PLANTA DE PRETRATAMIENTO SE UBICARÁN EN EL PREDIO DE 450M X 350M DE RELLENO SOBRE LA COSTA DEL RÍO DE LA PLATA EN LA ZONA POR EN LA PORTUARIA EN LAS PROXIMIDADES DE LA ESCOLLERA DE PROPANEROS PARTIDO DE AVELLANEDA. | AC91: 2015-06-15 | AD91: 2021-12-31 | AE91: 158750246 | AF91: 496588049.7 | AG91: 526532851.7 | AH91: 1181871147 | AI91: 23968218.85 | AJ91: -31452142.88 | AK91: 620609499.6 | AL91: 24529407.08 | AM91: 596080092.5 | AN91: 620609499.6 | AO91: EN EJECUCIÓN | AP91: 0.2670657641 | AQ91: 0.2449544413 | AR91: SE MODIFICA LA EJECUCIÓN 2018 YA QUE NO TOMARON LOS VALORES INFORMADOS OPORTUNAMENTE (DIFERENCIA DE EJECUCIÓN POR AJUSTE SOLICITADO POR AUDITORÍA EN DICIEMBRE 2018)
B92: 5484 | C92: 1. ESTADO NACIONAL | D92: SISTEMA RIACHUELO | E92: ESTACION DE ENTRADA - SISTEMA RIACHUELO OBRA ELECTROMECANICA | F92: 2 | G92: 91. OBLIGACIONES DEL TESORO | H92: 356 | I92: AYSA | J92: 95. ASISTENCIA FINANCIERA A EMPRESAS PÚBLICAS Y ENTE BINACIONAL | K92: 5 | L92: 1161611 | M92: 77 | N92: - | O92: 22 Y RECURSOS PROPIOS | P92: 5 | Q92: 5 | R92: 7 | S92: 753 | T92: 3 | U92: 8 | V92: 2 | W92: 2 | X92: RC004 | Y92: - | Z92: AVELLANEDA | AA92: DOCK SUD | AB92: LAS ESTACIONES DE BOMBEO Y LA PLANTA DE PRETRATAMIENTO SE UBICARÁN EN EL PREDIO DE 450M X 350M DE RELLENO SOBRE LA COSTA DEL RÍO DE LA PLATA EN LA ZONA POR EN LA PORTUARIA EN LAS PROXIMIDADES DE LA ESCOLLERA DE PROPANEROS PARTIDO DE AVELLANEDA. | AC92: 2015-06-15 | AD92: 2021-12-31 | AE92: 286488703 | AF92: 896167849.6 | AG92: 752786814.5 | AH92: 1935443367 | AI92: 0 | AJ92: 0 | AK92: 332106917.4 | AL92: 0 | AM92: 332106917.4 | AN92: 332106917.4 | AO92: EN EJECUCIÓN | AP92: 0.07527551157 | AQ92: 0 | AR92: -
B93: 5561 | C93: 1. ESTADO NACIONAL | D93: COMPLEJO BARRIO ALIANZA | E93: Bº ALIANZA - 440 VIVIENDAS SIN INFRA FRENTISTA | F93: 2 | G93: MINISTERIO DE DESARROLLO TERRITORIAL Y HÁBITAT | H93: - | I93: MINISTERIO DE DESARROLLO TERRITORIAL Y HABITAT | J93: 71. URBANIZACIÓN DE VILLAS Y ASENTAMIENTOS PRECARIOS. | K93: - | L93: - | M93: 77.VIVIENDAS NUEVAS EN LA CUENCA MATANZA RIACHUELO | N93: 666-15 | O93: 11 | P93: 5 | Q93: 8 | R93: 6 | S93: 0 | T93: - | U93: - | V93: - | W93: - | X93: - | Y93: - | Z93: AVELLANEDA | AA93: - | AB93: - | AC93: - | AD93: - | AE93: 0 | AF93: 0 | AG93: 0 | AH93: 229702869 | AI93: 0 | AJ93: 0 | AK93: =AN93 -> 20122936.42 | AL93: 0 | AM93: 20122936.42 | AN93: 20122936.42 | AO93: EN EJECUCIÓN | AP93: 0.27 | AQ93: 0.08 | AR93: INCLUIDO EN CONVENIO MARCO 17771
B94: 5573 | C94: 1. ESTADO NACIONAL | D94: BARRIO 7 DE ENERO | E94: Bº 7 DE ENERO - 100 MEJORAMIENTOS | F94: 2 | G94: MINISTERIO DE OBRAS PÚBLICAS | H94: 354 | I94: MINISTERIO DE DESARROLLO TERRITORIAL Y HABITAT | J94: 46. URBANIZACIÓN DE VILLAS Y ASENTAMIENTOS PRECARIOS. | K94: - | L94: - | M94: 77.VIVIENDAS NUEVAS EN LA CUENCA MATANZA RIACHUELO | N94: 2349558-16 | O94: 11 | P94: 5 | Q94: 8 | R94: 6 | S94: 0 | T94: - | U94: - | V94: - | W94: - | X94: - | Y94: - | Z94: AVELLANEDA | AA94: - | AB94: - | AC94: - | AD94: - | AE94: 0 | AF94: 0 | AG94: 0 | AH94: 20460000 | AI94: 5060574.96 | AJ94: 0 | AK94: 0 | AL94: 0 | AM94: 0 | AN94: 0 | AO94: - | AP94: 0 | AQ94: 0 | AR94: INCLUIDO EN CONVENIO MARCO 17771
B95: 5579 | C95: 1. ESTADO NACIONAL | D95: COMPLEJO BARRIO VILLA AZUL | E95: Bº VILLA AZUL - 22 VIV (EX 100) | F95: 2 | G95: MINISTERIO DE OBRAS PÚBLICAS | H95: 354 | I95: MINISTERIO DE DESARROLLO TERRITORIAL Y HABITAT | J95: 46. URBANIZACIÓN DE VILLAS Y ASENTAMIENTOS PRECARIOS. | K95: - | L95: - | M95: 77.VIVIENDAS NUEVAS EN LA CUENCA MATANZA RIACHUELO | N95: 2093-15 | O95: 11 | P95: 5 | Q95: 8 | R95: 6 | S95: 0 | T95: - | U95: - | V95: - | W95: - | X95: - | Y95: - | Z95: AVELLANEDA | AA95: - | AB95: - | AC95: - | AD95: - | AE95: 0 | AF95: 0 | AG95: 0 | AH95: 16015742.5 | AI95: 4426601.07 | AJ95: 9552085.41 | AK95: 0 | AL95: 0 | AM95: 0 | AN95: 0 | AO95: - | AP95: 0 | AQ95: 0 | AR95: INCLUIDO EN CONVENIO MARCO 17771
B96: 5583 | C96: 1. ESTADO NACIONAL | D96: BARRIO ALIANZA | E96: Bº ALIANZA - INFRA FRENTISTA PARA 440 VIVIENDAS | F96: 2 | G96: MINISTERIO DE OBRAS PÚBLICAS | H96: 354 | I96: MINISTERIO DE DESARROLLO TERRITORIAL Y HABITAT | J96: 46. URBANIZACIÓN DE VILLAS Y ASENTAMIENTOS PRECARIOS. | K96: - | L96: - | M96: 79. INFRAESTRUCTURA, NEXOS Y OBRAS COMPLEMENTARIAS EN LA CUENCA MATANZA RIACHUELO. | N96: 2727457-16 | O96: 11 | P96: 5 | Q96: 8 | R96: 6 | S96: 0 | T96: - | U96: - | V96: - | W96: - | X96: - | Y96: - | Z96: AVELLANEDA | AA96: - | AB96: - | AC96: - | AD96: - | AE96: 0 | AF96: 0 | AG96: 0 | AH96: 31431873.01 | AI96: 0 | AJ96: 0 | AK96: 0 | AL96: 0 | AM96: 0 | AN96: 0 | AO96: - | AP96: 0 | AQ96: 0 | AR96: INCLUIDO EN CONVENIO MARCO 17771
B97: 5605 | C97: 1. ESTADO NACIONAL | D97: COMPLEJO BARRIO MONTECARLO | E97: Bº MONTECARLO - AMPLIAC CONTR PARA 240 VIV | F97: 2 | G97: MINISTERIO DE DESARROLLO TERRITORIAL Y HÁBITAT | H97: - | I97: MINISTERIO DE DESARROLLO TERRITORIAL Y HABITAT | J97: 46. URBANIZACIÓN DE VILLAS Y ASENTAMIENTOS PRECARIOS. | K97: - | L97: - | M97: 79. INFRAESTRUCTURA, NEXOS Y OBRAS COMPLEMENTARIAS EN LA CUENCA MATANZA RIACHUELO. | N97: 667-15 | O97: 11 | P97: 5 | Q97: 8 | R97: 6 | S97: 0 | T97: - | U97: - | V97: - | W97: - | X97: - | Y97: - | Z97: ESTEBAN ECHEVERRÍA | AA97: ESTEBAN ECHEVERRÍA | AB97: - | AC97: - | AD97: - | AE97: 0 | AF97: 0 | AG97: 0 | AH97: 2002833.9 | AI97: 0 | AJ97: 4613819.47 | AK97: 9609078.55 | AL97: 9609078.55 | AM97: 0 | AN97: 9609078.55 | AO97: - | AP97: 0 | AQ97: 0 | AR97: INCLUIDO EN CONVENIO MARCO 17771
B98: 5607 | C98: 1. ESTADO NACIONAL | D98: ENTUBAMIENTO DEL ARROYO ORTEGA | E98: Bº MONTECARLO - ENTUBAMIENTO DE ARROYO ORTEGA | F98: 2 | G98: MINISTERIO DE OBRAS PÚBLICAS | H98: 354 | I98: MINISTERIO DE DESARROLLO TERRITORIAL Y HABITAT | J98: 46. URBANIZACIÓN DE VILLAS Y ASENTAMIENTOS PRECARIOS. | K98: - | L98: - | M98: 79. INFRAESTRUCTURA, NEXOS Y OBRAS COMPLEMENTARIAS EN LA CUENCA MATANZA RIACHUELO. | N98: 1051-15 | O98: 11 | P98: 5 | Q98: 8 | R98: 6 | S98: 0 | T98: - | U98: - | V98: - | W98: - | X98: - | Y98: - | Z98: ESTEBAN ECHEVERRÍA | AA98: - | AB98: - | AC98: - | AD98: - | AE98: 0 | AF98: 0 | AG98: 0 | AH98: 52570254.62 | AI98: 0 | AJ98: 12707214.98 | AK98: 0 | AL98: 0 | AM98: 0 | AN98: 0 | AO98: - | AP98: 0 | AQ98: 0 | AR98: INCLUIDO EN CONVENIO MARCO 17771
B99: 5609 | C99: 1. ESTADO NACIONAL | D99: COMPLEJO BARRIO JUAN PABLO II | E99: Bº JUAN PABLO II - GRUPO I - 238 VIV MAS OBRAS COMPLEMENTARIAS | F99: 2 | G99: MINISTERIO DE OBRAS PÚBLICAS | H99: 354 | I99: MINISTERIO DE DESARROLLO TERRITORIAL Y HABITAT | J99: 46. URBANIZACIÓN DE VILLAS Y ASENTAMIENTOS PRECARIOS. | K99: - | L99: - | M99: 77.VIVIENDAS NUEVAS EN LA CUENCA MATANZA RIACHUELO | N99: 259-15 | O99: 11 | P99: 5 | Q99: 8 | R99: 6 | S99: 0 | T99: - | U99: - | V99: - | W99: - | X99: - | Y99: - | Z99: ESTEBAN ECHEVERRÍA | AA99: ESTEBAN ECHEVERRÍA | AB99: - | AC99: - | AD99: - | AE99: 0 | AF99: 0 | AG99: 0 | AH99: 144640633.4 | AI99: 0 | AJ99: 23350919.95 | AK99: 0 | AL99: 0 | AM99: 0 | AN99: 0 | AO99: - | AP99: 0 | AQ99: 0 | AR99: INCLUIDO EN CONVENIO MARCO 17771
B100: 5610 | C100: 1. ESTADO NACIONAL | D100: COMPLEJO BARRIO JUAN PABLO II | E100: Bº JUAN PABLO II - GRUPO II - 308 VIV MAS OBRAS COMPLEMENTARIAS | F100: 2 | G100: MINISTERIO DE OBRAS PÚBLICAS | H100: 354 | I100: MINISTERIO DE DESARROLLO TERRITORIAL Y HABITAT | J100: 46. URBANIZACIÓN DE VILLAS Y ASENTAMIENTOS PRECARIOS. | K100: - | L100: - | M100: 77.VIVIENDAS NUEVAS EN LA CUENCA MATANZA RIACHUELO | N100: 260/15 | O100: 11 | P100: 5 | Q100: 8 | R100: 6 | S100: 0 | T100: - | U100: - | V100: - | W100: - | X100: - | Y100: - | Z100: ESTEBAN ECHEVERRÍA | AA100: ESTEBAN ECHEVERRÍA | AB100: - | AC100: - | AD100: - | AE100: 0 | AF100: 0 | AG100: 0 | AH100: 188653124.7 | AI100: 40669285.6 | AJ100: 20538269.23 | AK100: 0 | AL100: 0 | AM100: 0 | AN100: 0 | AO100: - | AP100: 0 | AQ100: 0 | AR100: INCLUIDO EN CONVENIO MARCO 17771
B101: 5611 | C101: 1. ESTADO NACIONAL | D101: COMPLEJO BARRIO JUAN PABLO II | E101: Bº JUAN PABLO II - 238 VIV | F101: 2 | G101: MINISTERIO DE OBRAS PÚBLICAS | H101: 354 | I101: MINISTERIO DE DESARROLLO TERRITORIAL Y HABITAT | J101: 46. URBANIZACIÓN DE VILLAS Y ASENTAMIENTOS PRECARIOS. | K101: - | L101: - | M101: 77.VIVIENDAS NUEVAS EN LA CUENCA MATANZA RIACHUELO | N101: 267-15 | O101: 11 | P101: 5 | Q101: 8 | R101: 6 | S101: 0 | T101: - | U101: - | V101: - | W101: - | X101: - | Y101: - | Z101: ESTEBAN ECHEVERRÍA | AA101: ESTEBAN ECHEVERRÍA | AB101: - | AC101: - | AD101: - | AE101: 0 | AF101: 0 | AG101: 0 | AH101: 144928882.4 | AI101: 62756285.66 | AJ101: 40151684.24 | AK101: 0 | AL101: 0 | AM101: 0 | AN101: 0 | AO101: - | AP101: 0 | AQ101: 0 | AR101: INCLUIDO EN CONVENIO MARCO 17771
B102: 5612 | C102: 1. ESTADO NACIONAL | D102: BARRIO JUAN PABLO II | E102: Bº JUAN PABLO II - INFRA PARA 784 VIV - PAVIMENTO, NEXOS DE AGUA Y CLOACA | F102: 2 | G102: MINISTERIO DE OBRAS PÚBLICAS | H102: 354 | I102: MINISTERIO DE DESARROLLO TERRITORIAL Y HABITAT | J102: 46. URBANIZACIÓN DE VILLAS Y ASENTAMIENTOS PRECARIOS. | K102: - | L102: - | M102: 79. INFRAESTRUCTURA, NEXOS Y OBRAS COMPLEMENTARIAS EN LA CUENCA MATANZA RIACHUELO. | N102: 269-15 | O102: 11 | P102: 5 | Q102: 8 | R102: 6 | S102: 0 | T102: - | U102: - | V102: - | W102: - | X102: - | Y102: - | Z102: ESTEBAN ECHEVERRÍA | AA102: - | AB102: - | AC102: - | AD102: - | AE102: 0 | AF102: 0 | AG102: 0 | AH102: 101979120.7 | AI102: 0 | AJ102: 0 | AK102: 0 | AL102: 0 | AM102: 0 | AN102: 0 | AO102: - | AP102: 0 | AQ102: 0 | AR102: INCLUIDO EN CONVENIO MARCO 17771
B103: 5617 | C103: 1. ESTADO NACIONAL | D103: COMPLEJO BARRIO NESTOR KIRCHNER | E103: Bº NESTOR KIRCHNER II ETAPA 102 VIV | F103: 2 | G103: MINISTERIO DE OBRAS PÚBLICAS | H103: 354 | I103: MINISTERIO DE DESARROLLO TERRITORIAL Y HABITAT | J103: 46. URBANIZACIÓN DE VILLAS Y ASENTAMIENTOS PRECARIOS. | K103: - | L103: - | M103: 77.VIVIENDAS NUEVAS EN LA CUENCA MATANZA RIACHUELO | N103: 668-15 | O103: 11 | P103: 5 | Q103: 8 | R103: 6 | S103: 0 | T103: - | U103: - | V103: - | W103: - | X103: - | Y103: - | Z103: LANÚS | AA103: - | AB103: - | AC103: - | AD103: - | AE103: 0 | AF103: 0 | AG103: 0 | AH103: 62446444 | AI103: 0 | AJ103: 0 | AK103: 0 | AL103: 0 | AM103: 0 | AN103: 0 | AO103: - | AP103: 0 | AQ103: 0 | AR103: INCLUIDO EN CONVENIO MARCO 17771
B104: 5620 | C104: 1. ESTADO NACIONAL | D104: COMPLEJO FFMM | E104: PREDIO FFMM INFRA PARA 198 VIV - ETAPA 3 | F104: 2 | G104: MINISTERIO DE OBRAS PÚBLICAS | H104: 325 | I104: MINISTERIO DE DESARROLLO TERRITORIAL Y HABITAT | J104: 71. URBANIZACIÓN DE VILLAS Y ASENTAMIENTOS PRECARIOS. | K104: - | L104: - | M104: 79. INFRAESTRUCTURA, NEXOS Y OBRAS COMPLEMENTARIAS EN LA CUENCA MATANZA RIACHUELO. | N104: 424-15 | O104: 11 | P104: 5 | Q104: 8 | R104: 6 | S104: 0 | T104: - | U104: - | V104: - | W104: - | X104: - | Y104: - | Z104: LANÚS | AA104: - | AB104: - | AC104: - | AD104: - | AE104: 0 | AF104: 0 | AG104: 0 | AH104: 17114516.36 | AI104: 0 | AJ104: 14763118.58 | AK104: 0 | AL104: 0 | AM104: 0 | AN104: 0 | AO104: EN ANÁLISIS | AP104: 0.3 | AQ104: 0.11 | AR104: INCLUIDO EN CONVENIO MARCO 17771
B105: 5622 | C105: 1. ESTADO NACIONAL | D105: COMPLEJO FFMM | E105: PREDIO FFMM 157 VIV + INF - ETAPA 2 | F105: 2 | G105: MINISTERIO DE OBRAS PÚBLICAS | H105: 354 | I105: MINISTERIO DE DESARROLLO TERRITORIAL Y HABITAT | J105: 46. URBANIZACIÓN DE VILLAS Y ASENTAMIENTOS PRECARIOS. | K105: - | L105: - | M105: 79. INFRAESTRUCTURA, NEXOS Y OBRAS COMPLEMENTARIAS EN LA CUENCA MATANZA RIACHUELO. | N105: 449-15 | O105: 11 | P105: 5 | Q105: 8 | R105: 6 | S105: 0 | T105: - | U105: - | V105: - | W105: - | X105: - | Y105: - | Z105: LANÚS | AA105: - | AB105: - | AC105: - | AD105: - | AE105: 0 | AF105: 0 | AG105: 0 | AH105: 19979473.76 | AI105: 61996358.06 | AJ105: 146827097.4 | AK105: 0 | AL105: 0 | AM105: 0 | AN105: 0 | AO105: - | AP105: 0 | AQ105: 0 | AR105: INCLUIDO EN CONVENIO MARCO 17771
B106: 5623 | C106: 1. ESTADO NACIONAL | D106: COMPLEJO BARRIO ACUBA | E106: BARRIO ACUBA 111 VIV + INF | F106: 2 | G106: MINISTERIO DE OBRAS PÚBLICAS | H106: 354 | I106: MINISTERIO DE DESARROLLO TERRITORIAL Y HABITAT | J106: 46. URBANIZACIÓN DE VILLAS Y ASENTAMIENTOS PRECARIOS. | K106: - | L106: - | M106: 77.VIVIENDAS NUEVAS EN LA CUENCA MATANZA RIACHUELO | N106: 422-15 | O106: 11 | P106: 5 | Q106: 8 | R106: 6 | S106: 0 | T106: - | U106: - | V106: - | W106: - | X106: - | Y106: - | Z106: LANÚS | AA106: - | AB106: - | AC106: - | AD106: - | AE106: 0 | AF106: 0 | AG106: 0 | AH106: 71092196 | AI106: 0 | AJ106: 52181260.6 | AK106: 0 | AL106: 0 | AM106: 0 | AN106: 0 | AO106: - | AP106: 0 | AQ106: 0 | AR106: INCLUIDO EN CONVENIO MARCO 17771
B107: 5625 | C107: 1. ESTADO NACIONAL | D107: COMPLEJO BARRIO ACUBA | E107: BARRIO ACUBA 50 VIV + INF | F107: 2 | G107: MINISTERIO DE OBRAS PÚBLICAS | H107: 325 | I107: MINISTERIO DE DESARROLLO TERRITORIAL Y HABITAT | J107: 71. URBANIZACIÓN DE VILLAS Y ASENTAMIENTOS PRECARIOS. | K107: - | L107: - | M107: 77.VIVIENDAS NUEVAS EN LA CUENCA MATANZA RIACHUELO | N107: 448-15 | O107: 11 | P107: 5 | Q107: 8 | R107: 6 | S107: 0 | T107: - | U107: - | V107: - | W107: - | X107: - | Y107: - | Z107: LANÚS | AA107: - | AB107: - | AC107: - | AD107: - | AE107: 0 | AF107: 0 | AG107: 0 | AH107: 32429237 | AI107: 0 | AJ107: 25293151.98 | AK107: 0 | AL107: 0 | AM107: 0 | AN107: 0 | AO107: EN ANÁLISIS | AP107: 0.21 | AQ107: 0.05 | AR107: INCLUIDO EN CONVENIO MARCO 17771
B108: 5931 | C108: 1. ESTADO NACIONAL | D108: ARROYO DEL REY | E108: ESTACIÓN DE BOMBEO ARROYO DEL REY | F108: - | G108: MINISTERIO DE OBRAS PÚBLICAS | H108: - | I108: SECRETARÍA DE INFRAESTRUCTURA Y POLÍTICA HÍDRICA | J108: EXTRAPRESUPUESTARIO - FFIH - FONDO FIDUCIARIO INFRAESTRUCTURA HÍDRICA | K108: - | L108: - | M108: - | N108: BUE197791 | O108: FFIH | P108: - | Q108: - | R108: - | S108: - | T108: - | U108: - | V108: - | W108: - | X108: - | Y108: MUNICIPIO | Z108: LOMAS DE ZAMORA | AA108: ING. BUDGE | AB108: ARROYO DEL REY | AC108: 2015-01-12 | AD108: - | AE108: 146607448.9 | AF108: 217048538.6 | AG108: 0 | AH108: 363655987.5 | AI108: 120871527.8 | AJ108: 34938322.54 | AK108: 52101893.33 | AL108: 16095948.86 | AM108: 18351978.29 | AN108: 34447927.15 | AO108: EN EJECUCIÓN | AP108: 0.8441 | AQ108: 0.983 | AR108: -
B109: 5937 | C109: 1. ESTADO NACIONAL | D109: PLANTA POTABILIZADORA ECHEVERRÍA | E109: PLANTA POTABILIZADORA DE ÓSMOSIS INVERSA MARTÍNEZ MORENO Y LA MORITA - OBRA CIVIL | F109: 2 | G109: 91. OBLIGACIONES DEL TESORO | H109: 356 | I109: AYSA | J109: 95. ASISTENCIA FINANCIERA A EMPRESAS PÚBLICAS Y ENTE BINACIONAL | K109: 5 | L109: 1560502 | M109: 77 | N109: - | O109: 22 Y RECURSOS PROPIOS | P109: 5 | Q109: 5 | R109: 7 | S109: 753 | T109: 3 | U109: 8 | V109: 2 | W109: 2 | X109: SA7661 | Y109: - | Z109: ESTEBAN ECHEVERRÍA | AA109: MONTE GRANDE | AB109: EL TERRENO SE ENCUENTRA UBICADO EN LA INTERSECCIÓN DE LAS CALLES MAXIMO PAZ Y CATAMARCA, PARTIDO DE ESTEBAN ECHEVERRÍA, REGION SUDOESTE. | AC109: 2016-07-25 | AD109: 2019-12-31 | AE109: 19852427.87 | AF109: 35825693.93 | AG109: 2186233.706 | AH109: 57864355.51 | AI109: 24560289.45 | AJ109: 1822012.543 | AK109: 2192263.832 | AL109: 0 | AM109: 0 | AN109: 0 | AO109: FINALIZADO | AP109: 1 | AQ109: 0.9978 | AR109: -
B110: 5938 | C110: 1. ESTADO NACIONAL | D110: PLANTA POTABILIZADORA ECHEVERRÍA | E110: PLANTA POTABILIZADORA DE ÓSMOSIS INVERSA MARTÍNEZ MORENO Y LA MORITA - OBRA ELECTRO | F110: 2 | G110: 91. OBLIGACIONES DEL TESORO | H110: 356 | I110: AYSA | J110: 95. ASISTENCIA FINANCIERA A EMPRESAS PÚBLICAS Y ENTE BINACIONAL | K110: 5 | L110: 1560503 | M110: 77 | N110: - | O110: 22 Y RECURSOS PROPIOS | P110: 5 | Q110: 5 | R110: 7 | S110: 753 | T110: 3 | U110: 8 | V110: 2 | W110: 2 | X110: SA7662 | Y110: - | Z110: ESTEBAN ECHEVERRÍA | AA110: MONTE GRANDE | AB110: EL TERRENO SE ENCUENTRA UBICADO EN LA INTERSECCIÓN DE LAS CALLES MAXIMO PAZ Y CATAMARCA, PARTIDO DE ESTEBAN ECHEVERRÍA, REGION SUDOESTE. | AC110: 2016-07-25 | AD110: 2019-12-31 | AE110: 40058901.59 | AF110: 34452910.86 | AG110: 2607524.435 | AH110: 77119336.88 | AI110: 16353906.87 | AJ110: 11172663.49 | AK110: 0 | AL110: 0 | AM110: 0 | AN110: 0 | AO110: FINALIZADO | AP110: 1 | AQ110: 1 | AR110: -
B111: 5942 | C111: 1. ESTADO NACIONAL | D111: PLANTA DE TRATAMIENTO BERAZATEGUI | E111: SISTEMA DE INYECCIÓN DE AIRE - EDIFICIO TORNILLOS DE ELEVACIÓN - PLANTA BERAZATEGUI | F111: 2 | G111: 91. OBLIGACIONES DEL TESORO | H111: 356 | I111: AYSA | J111: 95. ASISTENCIA FINANCIERA A EMPRESAS PÚBLICAS Y ENTE BINACIONAL | K111: 5 | L111: 1561601 | M111: 77 | N111: - | O111: 22 Y RECURSOS PROPIOS | P111: 5 | Q111: 5 | R111: 7 | S111: 753 | T111: 3 | U111: 8 | V111: 2 | W111: 2 | X111: SC70051 | Y111: - | Z111: BERAZATEGUI | AA111: BERAZATEGUI | AB111: EL PREDIO SE ENCUENTRA AL NOROESTE DEL PARTIDO DE BERAZATEGUI, CERCANO AL LÍMITE CON EL PARTIDO DE QUILMES, ENTRE LA AUTOPISTA BUENOS AIRES-LA PLATA Y LA COSTA DEL RÍO DE LA PLATA. | AC111: 2015-10-09 | AD111: 2018-12-20 | AE111: 9080328.489 | AF111: 492033.3768 | AG111: 7972160.547 | AH111: 17544522.41 | AI111: 6749561.851 | AJ111: 4984245.213 | AK111: 10779166.29 | AL111: -198026.5672 | AM111: 10977192.85 | AN111: 10779166.29 | AO111: FINALIZADO | AP111: 0.9999999999 | AQ111: 1 | AR111: -
B112: 5943 | C112: 1. ESTADO NACIONAL | D112: REDES DE AGUA CABA | E112: RENOVACIÓN DE RED SECUNDARIA DE AGUA LINIERS 2 | F112: 2 | G112: 91. OBLIGACIONES DEL TESORO | H112: 356 | I112: AYSA | J112: 95. ASISTENCIA FINANCIERA A EMPRESAS PÚBLICAS Y ENTE BINACIONAL | K112: 5 | L112: 1560703 | M112: 77 | N112: - | O112: 22 Y RECURSOS PROPIOS | P112: 5 | Q112: 5 | R112: 7 | S112: 753 | T112: 3 | U112: 8 | V112: 2 | W112: 2 | X112: CA70006 | Y112: - | Z112: CABA | AA112: FLORES | AB112: LA RENOVACIÓN SE ENCUENTRA COMPRENDIDA ENTRE LAS CALLES TAPALQUE, CARHUE, GARCIA GRANDE DE ZEQUEIRA Y AV. L. DE LA TORRE, EN EL DISTRITO DE FLORES, DIRECCION REGIONAL CAPITAL FEDERAL | AC112: 2015-08-03 | AD112: 2017-12-31 | AE112: 23591769.88 | AF112: 13742157.16 | AG112: 1164861.291 | AH112: 38498788.33 | AI112: 6072519.988 | AJ112: 2806731.73 | AK112: 0 | AL112: 0 | AM112: 0 | AN112: 0 | AO112: FINALIZADO | AP112: 1 | AQ112: 1 | AR112: -
B113: 5944 | C113: 1. ESTADO NACIONAL | D113: REDES CLOACALES LANÚS | E113: RED CLOACAL BARRIOS ALBARIÑOS SUR Y BALCARCE SUR - CUENCA 2 | F113: 2 | G113: 91. OBLIGACIONES DEL TESORO | H113: 356 | I113: AYSA | J113: 95. ASISTENCIA FINANCIERA A EMPRESAS PÚBLICAS Y ENTE BINACIONAL | K113: 5 | L113: 1560401 | M113: 77 | N113: - | O113: 22 Y RECURSOS PROPIOS | P113: 5 | Q113: 5 | R113: 7 | S113: 753 | T113: 3 | U113: 8 | V113: 2 | W113: 2 | X113: SC70006 | Y113: - | Z113: LANÚS | AA113: REMEDIOS DE ESCALADA | AB113: LA RED SECUNDARIA CLOACAL SE ENCUENTRA DELIMITADA POR LAS CALLES URIARTE, AVDA. TALLERES, LOS HORNOS, UGARTE, DON ORIONE, HERNANDARIAS, R. FRANCO, PENNA Y ROCA ; ESTA SUPERFICIE ES PARTE DEL ÁREA COMPRENDIDA POR LOS BARRIOS ALBARIÑOS SUR Y BALCARCE SUR, EN EL PARTIDO DE LANÚS. | AC113: 2016-07-12 | AD113: 2019-12-31 | AE113: 86862250.19 | AF113: 69463511.86 | AG113: 4796672.984 | AH113: 161122435 | AI113: 23322415.99 | AJ113: 17756233.52 | AK113: 0 | AL113: 0 | AM113: 0 | AN113: 0 | AO113: FINALIZADO | AP113: 1 | AQ113: 1 | AR113: -
B114: 5946 | C114: 1. ESTADO NACIONAL | D114: REDES CLOACALES ACCIONES COMPLEMENTARIAS | E114: SERVICIO DE INSPECCION DE OBRA EN REDES CLOACALES - COLECTORES CLOACALES - IMPULSIONES | F114: 2 | G114: 91. OBLIGACIONES DEL TESORO | H114: 356 | I114: AYSA | J114: 95. ASISTENCIA FINANCIERA A EMPRESAS PÚBLICAS Y ENTE BINACIONAL | K114: 5 | L114: 1560302 | M114: 77 | N114: - | O114: 22 Y RECURSOS PROPIOS | P114: 5 | Q114: 5 | R114: 7 | S114: 753 | T114: 3 | U114: 8 | V114: 2 | W114: 2 | X114: VC70001 | Y114: - | Z114: CUENCA MATANZA RIACHUELO | AA114: VARIOS | AB114: SERVICIO DE INSPECCION DE OBRA EN REDES CLOACALES - COLECTORAS CLOACALES - IMPULSIONES A EJECUTARSE O EN EJECUCION DENTRO DE TODA EL AREA DE CONCESION DE AGUAS Y SANEAMIENTOS ARGENTINOS S.A. | AC114: 2015-08-01 | AD114: 2019-12-31 | AE114: 10851193.7 | AF114: 131109665.7 | AG114: 0 | AH114: 141960859.4 | AI114: 34476450.71 | AJ114: 35661976.27 | AK114: 37401507.79 | AL114: 20811379.11 | AM114: 2702436.191 | AN114: 23513815.3 | AO114: EN EJECUCIÓN | AP114: 0.9021723859 | AQ114: 0.9021723838 | AR114: POR SER INSPECCIÓN AVANCE FÍSICO = ECONÓMICO.
B115: 5949 | C115: 1. ESTADO NACIONAL | D115: SISTEMA RIACHUELO | E115: SERVICIO DE APOYO A LA INSPECCION DE OBRA PARA SISTEMA RIACHUELO "LOTE 2" | F115: 2 | G115: 91. OBLIGACIONES DEL TESORO | H115: 356 | I115: AYSA | J115: 95. ASISTENCIA FINANCIERA A EMPRESAS PÚBLICAS Y ENTE BINACIONAL | K115: 5 | L115: 1561602 | M115: 77 | N115: - | O115: 22 Y RECURSOS PROPIOS | P115: 5 | Q115: 5 | R115: 7 | S115: 753 | T115: 3 | U115: 8 | V115: 2 | W115: 2 | X115: SX70000 | Y115: - | Z115: AVELLANEDA | AA115: DOCK SUD | AB115: LAS ESTACIONES DE BOMBEO Y LA PLANTA DE PRETRATAMIENTO SE UBICARÁN EN EL PREDIO DE 450M X 350M DE RELLENO SOBRE LA COSTA DEL RÍO DE LA PLATA EN LA ZONA POR EN LA PORTUARIA EN LAS PROXIMIDADES DE LA ESCOLLERA DE PROPANEROS PARTIDO DE AVELLANEDA. | AC115: 2016-02-01 | AD115: Cuando finalice la obra madre | AE115: 17436705 | AF115: 25123206.7 | AG115: 196711228.9 | AH115: 239271140.6 | AI115: 21768583.11 | AJ115: 9254203.807 | AK115: 32997581.45 | AL115: 17564506.33 | AM115: 15433075.12 | AN115: 32997581.45 | AO115: EN EJECUCIÓN | AP115: 0.3519488466 | AQ115: 0.3519488466 | AR115: POR SER INSPECCIÓN AVANCE FÍSICO = ECONÓMICO.
B116: 5967 | C116: 1. ESTADO NACIONAL | D116: REDES DE AGUA ESTEBAN ECHEVERRÍA | E116: REPOTENCIACION CENTRO DE MEZCLA 9 DE ABRIL. OBRA CIVIL | F116: 2 | G116: MINISTERIO DE OBRAS PÚBLICAS | H116: 325 | I116: AYSA | J116: 94. ASISTENCIA FINANCIERA A EMPRESAS PÚBLICAS Y ENTE BINACIONAL | K116: - | L116: 1460C09 | M116: 79 | N116: - | O116: 22 | P116: 5 | Q116: 5 | R116: 7 | S116: 753 | T116: 3 | U116: 8 | V116: 6 | W116: 2 | X116: UAE00110 | Y116: - | Z116: ESTEBAN ECHEVERRÍA | AA116: 9 DE ABRIL | AB116: S/D | AC116: 2015-12-18 | AD116: 2017-12-30 | AE116: 9150554.68 | AF116: 644499.21 | AG116: 0 | AH116: 9795053.89 | AI116: 27248.14 | AJ116: 5759.82 | AK116: 0 | AL116: 0 | AM116: 0 | AN116: 0 | AO116: FINALIZADO | AP116: 1 | AQ116: 1 | AR116: MONTO VIGENTE Y GRADO DE AVANCE ECONÓMICO, SE CONSIDERAN SOLO PARTIDAS CONTRACTUALES
B117: 5968 | C117: 1. ESTADO NACIONAL | D117: REDES DE AGUA ESTEBAN ECHEVERRÍA | E117: REPOTENCIACION CENTRO DE MEZCLA 9 DE ABRIL. OBRA CIVIL | F117: 2 | G117: 91. OBLIGACIONES DEL TESORO | H117: 356 | I117: AYSA | J117: 95. ASISTENCIA FINANCIERA A EMPRESAS PÚBLICAS Y ENTE BINACIONAL | K117: 5 | L117: 1460C09 | M117: 77 | N117: - | O117: 22 Y RECURSOS PROPIOS | P117: 5 | Q117: 5 | R117: 7 | S117: 753 | T117: 3 | U117: 8 | V117: 2 | W117: 2 | X117: UAE00110 | Y117: - | Z117: ESTEBAN ECHEVERRÍA | AA117: 9 DE ABRIL | AB117: S/D | AC117: 2015-12-18 | AD117: 2017-12-30 | AE117: 1921616.48 | AF117: 135344.83 | AG117: 0 | AH117: 2056961.31 | AI117: 5722.1094 | AJ117: 1209.5622 | AK117: 0 | AL117: 0 | AM117: 0 | AN117: 0 | AO117: FINALIZADO | AP117: 1 | AQ117: 1 | AR117: MONTO VIGENTE Y GRADO DE AVANCE ECONÓMICO, SE CONSIDERAN SOLO PARTIDAS CONTRACTUALES.
B118: 5969 | C118: 1. ESTADO NACIONAL | D118: REDES DE AGUA ESTEBAN ECHEVERRÍA | E118: REPOTENCIACION CENTRO DE MEZCLA 9 DE ABRIL. OBRA CIVIL | F118: 2 | G118: 91. OBLIGACIONES DEL TESORO | H118: 356 | I118: AYSA | J118: 95. ASISTENCIA FINANCIERA A EMPRESAS PÚBLICAS Y ENTE BINACIONAL | K118: 5 | L118: 1460C09 | M118: 77 | N118: - | O118: 22 Y RECURSOS PROPIOS | P118: 5 | Q118: 5 | R118: 7 | S118: 753 | T118: 3 | U118: 8 | V118: 2 | W118: 2 | X118: UAE00110 | Y118: - | Z118: ESTEBAN ECHEVERRÍA | AA118: 9 DE ABRIL | AB118: S/D | AC118: 2015-12-18 | AD118: 2017-12-30 | AE118: 137258.32 | AF118: 6649967.5 | AG118: 0 | AH118: 6787225.82 | AI118: 1844421.392 | AJ118: 150971.5427 | AK118: 0 | AL118: 0 | AM118: 0 | AN118: 0 | AO118: FINALIZADO | AP118: 1 | AQ118: 1 | AR118: MONTO VIGENTE Y GRADO DE AVANCE ECONÓMICO, SE CONSIDERAN SOLO PARTIDAS CONTRACTUALES.
B119: 5972 | C119: 1. ESTADO NACIONAL | D119: REDES DE AGUA ESTEBAN ECHEVERRÍA | E119: REPOTENCIACION CENTRO DE MEZCLA 9 DE ABRIL. OBRA ELECTROMECANICA | F119: 2 | G119: 91. OBLIGACIONES DEL TESORO | H119: 356 | I119: AYSA | J119: 95. ASISTENCIA FINANCIERA A EMPRESAS PÚBLICAS Y ENTE BINACIONAL | K119: 5 | L119: 1460C10 | M119: 77 | N119: - | O119: 22 Y RECURSOS PROPIOS | P119: 5 | Q119: 5 | R119: 7 | S119: 753 | T119: 3 | U119: 8 | V119: 2 | W119: 2 | X119: UAE00120 | Y119: - | Z119: ESTEBAN ECHEVERRÍA | AA119: 9 DE ABRIL | AB119: S/D | AC119: 2016-10-18 | AD119: 2017-12-30 | AE119: 654039.96 | AF119: 22974291.83 | AG119: 0 | AH119: 23628331.79 | AI119: 7114697.319 | AJ119: 3826017.314 | AK119: 515473.4431 | AL119: 515473.4431 | AM119: 0 | AN119: 515473.4431 | AO119: FINALIZADO | AP119: 1 | AQ119: 1 | AR119: MONTO VIGENTE Y GRADO DE AVANCE ECONÓMICO, SE CONSIDERAN SOLO PARTIDAS CONTRACTUALES.
B120: 5983 | C120: 1. ESTADO NACIONAL | D120: SISTEMA LA LATA- ESTEBAN ECHEVERRIA | E120: PLANTA POTABILIZADORA POR SISTEMA DE OSMOSIS INVERSA LA LATA ETAPA 1 - OBRA ELECTROMECANICA | F120: 2 | G120: 91. OBLIGACIONES DEL TESORO | H120: 356 | I120: AYSA | J120: 95. ASISTENCIA FINANCIERA A EMPRESAS PÚBLICAS Y ENTE BINACIONAL | K120: 5 | L120: 1060C42 | M120: 5 | N120: - | O120: 11 | P120: 5 | Q120: 5 | R120: 7 | S120: 753 | T120: 3 | U120: 8 | V120: 96 | W120: 2 | X120: RP380020 | Y120: - | Z120: ESTEBAN ECHEVERRÍA | AA120: MONTE GRANDE | AB120: EL PREDIO ESTÁ UBICADO EN LA CALLE COLÓN S/N°, ESQUINA MAIPÚ. | AC120: 2011-03-01 | AD120: 2016-07-29 | AE120: 2498325.97 | AF120: 10895259.29 | AG120: 0 | AH120: 13393585.26 | AI120: 0 | AJ120: -501977.3693 | AK120: 0 | AL120: 0 | AM120: 0 | AN120: 0 | AO120: FINALIZADO | AP120: 1 | AQ120: 1 | AR120: MONTO VIGENTE Y GRADO DE AVANCE ECONÓMICO, SE CONSIDERAN SOLO PARTIDAS CONTRACTUALES
B121: 6084 | C121: 1. ESTADO NACIONAL | D121: OBRA PUENTES PUEYRREDÓN- NICOLÁS AVELLANEDA- VICTORINO DE LA PLAZA- ALSINA | E121: PLAN AYSA C+T D.R. OESTE LA MATANZA - PARQUE JUAN SE M8 | F121: 2 | G121: 91. OBLIGACIONES DEL TESORO | H121: 356 | I121: AYSA | J121: 95. ASISTENCIA FINANCIERA A EMPRESAS PÚBLICAS Y ENTE BINACIONAL | K121: 5 | L121: 1548L85 | M121: 5 | N121: - | O121: 11 | P121: 5 | Q121: 5 | R121: 7 | S121: 753 | T121: 3 | U121: 8 | V121: 96 | W121: 2 | X121: OC70047 | Y121: - | Z121: LA MATANZA | AA121: LA MATANZA | AB121: PLAN AYSA C+T D.R. OESTE LA MATANZA - PARQUE JUAN SE M8 | AC121: 2015-05-13 | AD121: 2015-11-30 | AE121: 3382021.51 | AF121: -640898 | AG121: 131039 | AH121: 2872162.51 | AI121: 0 | AJ121: 9075 | AK121: 0 | AL121: 0 | AM121: 0 | AN121: 0 | AO121: FINALIZADO | AP121: 1.003159775 | AQ121: 1 | AR121: -
B122: 6121 | C122: 1. ESTADO NACIONAL | D122: Bº ACUBA - OBRAS DE INFRAESTRUCTURA BÁSICA | E122: RED PRIMARIA REFUERZO BARRIO SAN SEBASTIÁN | F122: 2 | G122: 91. OBLIGACIONES DEL TESORO | H122: 356 | I122: AYSA | J122: 95. ASISTENCIA FINANCIERA A EMPRESAS PÚBLICAS Y ENTE BINACIONAL | K122: 5 | L122: 1560008 | M122: 5 | N122: - | O122: 11 | P122: 5 | Q122: 5 | R122: 7 | S122: 753 | T122: 3 | U122: 8 | V122: 96 | W122: 2 | X122: SA70092 | Y122: - | Z122: LA MATANZA | AA122: 9 DE ABRIL CIUDAD EVITA | AB122: EL REFUERZO CONSTARÁ DE DOS TRAZAS. PARA LA PRIMER TRAZA SE REALIZARÁ UN EMPALME CON CAÑERÍA DE ALIMENTACIÓN EXISTENTE EN LA INTERSECCIÓN DE LAS CALLES LA ACACIA Y COLECTORA AU. TTE. GRAL. RICCHIERI, LUEGO SE EJECUTARÁ UN CRUCE BAJO AU. TTE. GRAL. LA RICCHIERI Y SE CONTINUARÁ POR COLECTORA HASTA LA CALLE MARTÍN MIGUEL DE GÜEMES, EN ESE PUNTO SE EMPALMARÁ CON OTRA RED EXISTENTE. PARA LA SEGUNDA TRAZA SE REALIZARÁ UN EMPALME CON CAÑERÍA DE ALIMENTACIÓN EXISTENTE EN LA INTERSECCIÓN DE LAS CALLES MARTÍN MIGUEL DE GÜEMES Y CALLE SIN NOMBRE, LUEGO SE EJECUTARÁ UN CRUCE BAJO RÍO MATANZA HASTA LLEGAR A LA INTERSECCIÓN DE LA AVENIDA DE LA RIBERA Y LA CALLE MIAMI. LA TRAZA CONTINUARÁ A TRAVÉS DEL SIGUIENTE RECORRIDO: CALLE MIAMI, PUNTA DEL ESTE, VIÑA DEL MAR, SAN FRANCISCO DE CALIFORNIA, NECOCHEA, AVENIDA DE LA NORIA Y RUTA DE LA TRADICIÓN HASTA LA CALLE DR. GARCÍA DEL RÍO. | AC122: 2016-02-22 | AD122: 2016-11-19 | AE122: 9925103.227 | AF122: 3251315.336 | AG122: 597465.6718 | AH122: 13773884.23 | AI122: 0 | AJ122: 4538381.896 | AK122: 233787.8268 | AL122: 233787.8268 | AM122: 0 | AN122: 233787.8268 | AO122: FINALIZADO | AP122: 1 | AQ122: 1 | AR122: -
B123: 6325 | C123: 1. ESTADO NACIONAL | D123: COMPLEJO BARRIO SAN ANTONIO | E123: 64 VIV Bº SAN ANTONIO | F123: 2 | G123: MINISTERIO DE OBRAS PÚBLICAS | H123: 325 | I123: MINISTERIO DE DESARROLLO TERRITORIAL Y HABITAT | J123: 71. URBANIZACIÓN DE VILLAS Y ASENTAMIENTOS PRECARIOS. | K123: - | L123: - | M123: 77.VIVIENDAS NUEVAS EN LA CUENCA MATANZA RIACHUELO | N123: 1418/14 | O123: 11 | P123: 0 | Q123: 0 | R123: - | S123: 0 | T123: - | U123: - | V123: - | W123: - | X123: - | Y123: - | Z123: CABA | AA123: - | AB123: - | AC123: - | AD123: - | AE123: 51764526.39 | AF123: 0 | AG123: 0 | AH123: 51764526.39 | AI123: 0 | AJ123: 0 | AK123: =AN123 -> 0 | AL123: 0 | AM123: 0 | AN123: 0 | AO123: EN EJECUCIÓN | AP123: 0.86 | AQ123: 0.88 | AR123: -
B124: 6327 | C124: 1. ESTADO NACIONAL | D124: COMPLEJO BARRIO VILLA JARDÍN | E124: 174 VIV E INFRA Bº VILLA JARDON | F124: 2 | G124: MINISTERIO DE OBRAS PÚBLICAS | H124: 325 | I124: MINISTERIO DE DESARROLLO TERRITORIAL Y HABITAT | J124: PAVIMENTO | K124: - | L124: - | M124: - | N124: 319/15 | O124: - | P124: 0 | Q124: 0 | R124: - | S124: 0 | T124: - | U124: - | V124: - | W124: - | X124: - | Y124: - | Z124: LANÚS | AA124: - | AB124: - | AC124: - | AD124: - | AE124: 11905141.67 | AF124: 0 | AG124: 0 | AH124: 11905141.67 | AI124: 0 | AJ124: 0 | AK124: =AN124 -> 0 | AL124: 0 | AM124: 0 | AN124: 0 | AO124: - | AP124: 0.8 | AQ124: 0.82 | AR124: -
B125: 6448 | C125: 1. ESTADO NACIONAL | D125: ISFD LA MATANZA | E125: ISFD Nº 82 | F125: 2 | G125: MINISTERIO DE OBRAS PÚBLICAS | H125: 325 | I125: UNIDAD COORDINADORA DE PROGRAMAS Y PROYECTOS CON FINANCIAMIENTO EXTERNO | J125: 89. ACCIONES PARA "MAS ESCUELAS, MEJOR EDUCACIÓN" (BID 1345 Y 1966/OC-2). | K125: - | L125: - | M125: 77 | N125: 06-295 | O125: 11 | P125: 5 | Q125: 8 | R125: 1 | S125: 3001 | T125: 3 | U125: 4 | V125: 6 | W125: 1 | X125: - | Y125: BID/2424 | Z125: LA MATANZA | AA125: ISIDRO CASANOVA | AB125: AV. PROVINCIAS UNIDAS (RUTA NAC. 3) ENTRE CENTENARIO Y CHARRUA | AC125: 2014-01-13 | AD125: 2016-11-15 | AE125: 9231114.81 | AF125: 9770271.72 | AG125: 0 | AH125: 19001386.53 | AI125: 358878.77 | AJ125: 0 | AK125: 467768.67 | AL125: 0 | AM125: 0 | AN125: 0 | AO125: FINALIZADA | AP125: 1 | AQ125: 1 | AR125: EN EL AÑO 2020 SE CREÓ EL MINISTERIO DE OBRAS PÚBLICAS AL CUAL PERTENECE EL PROGRAMA
B126: 6452 | C126: 1. ESTADO NACIONAL | D126: ESCUELA MEDIA - ESTEBAN ECHEVERRÍA | E126: TERMINACIÓN EEM A CREAR EN B° JAGUEL | F126: 2 | G126: MINISTERIO DE OBRAS PÚBLICAS | H126: 325 | I126: UNIDAD COORDINADORA DE PROGRAMAS Y PROYECTOS CON FINANCIAMIENTO EXTERNO | J126: 89. ACCIONES PARA "MAS ESCUELAS, MEJOR EDUCACIÓN" (BID 1345 Y 1966/OC-2). | K126: - | L126: - | M126: 78 | N126: 06-267B | O126: 11 | P126: 5 | Q126: 8 | R126: 1 | S126: 3001 | T126: 3 | U126: 4 | V126: 6 | W126: 1 | X126: - | Y126: BID/2424 | Z126: ESTEBAN ECHEVERRÍA | AA126: ESTEBAN ECHEVERRÍA | AB126: TRINIDAD ENTRE LAPRIDA Y M. PAZ | AC126: 2014-10-28 | AD126: 2016-10-23 | AE126: 16497762.83 | AF126: 10693937.1 | AG126: 0 | AH126: 27191699.93 | AI126: 1699583.26 | AJ126: 0 | AK126: 4833241.83 | AL126: 0 | AM126: 0 | AN126: 0 | AO126: EN RESCISIÓN | AP126: 0.7953 | AQ126: 0.9154 | AR126: EN EL AÑO 2020 SE CREÓ EL MINISTERIO DE OBRAS PÚBLICAS AL CUAL PERTENECE EL PROGRAMA
B127: 6454 | C127: 1. ESTADO NACIONAL | D127: ESCUELA SECUNDARIA - LOMAS DE ZAMORA | E127: TERMINACION ESCUELA SECUNDARIA N° 11 EN VILLA FIORITO | F127: 2 | G127: MINISTERIO DE OBRAS PÚBLICAS | H127: 325 | I127: UNIDAD COORDINADORA DE PROGRAMAS Y PROYECTOS CON FINANCIAMIENTO EXTERNO | J127: 89. ACCIONES PARA "MAS ESCUELAS, MEJOR EDUCACIÓN" (BID 1345 Y 1966/OC-2). | K127: - | L127: - | M127: 78 | N127: 06-273B | O127: 11 | P127: 5 | Q127: 8 | R127: 1 | S127: 3001 | T127: 3 | U127: 4 | V127: 6 | W127: 1 | X127: - | Y127: BID/2424 | Z127: LOMAS DE ZAMORA | AA127: FIORITO | AB127: CAMPANA ENTRE PLUMERILLO Y MARIO BRAVO | AC127: 2014-10-20 | AD127: 2016-11-15 | AE127: 10879683.32 | AF127: 3414793.021 | AG127: 0 | AH127: 15814039.66 | AI127: 0 | AJ127: 0 | AK127: 554858.0914 | AL127: 0 | AM127: 0 | AN127: 0 | AO127: FINALIZADA | AP127: 1 | AQ127: 1 | AR127: EN EL AÑO 2020 SE CREÓ EL MINISTERIO DE OBRAS PÚBLICAS AL CUAL PERTENECE EL PROGRAMA
B128: 6456 | C128: 1. ESTADO NACIONAL | D128: ESCUELA PRIMARIA - EZEIZA | E128: EEP Nº 14 | F128: 2 | G128: MINISTERIO DE OBRAS PÚBLICAS | H128: 325 | I128: UNIDAD COORDINADORA DE PROGRAMAS Y PROYECTOS CON FINANCIAMIENTO EXTERNO | J128: 87. APOYO PARA EL DESARROLLO DE LA INFRAESTRUCTURA EDUCATIVA | K128: - | L128: - | M128: 80 | N128: 06-343 | O128: 22 | P128: 5 | Q128: 8 | R128: 1 | S128: 3001 | T128: 3 | U128: 4 | V128: 6 | W128: 1 | X128: - | Y128: BID/2940 | Z128: EZEIZA | AA128: LA UNIÓN | AB128: - | AC128: 2016-08-20 | AD128: 2020-11-15 | AE128: 22987500 | AF128: 28987573.34 | AG128: 0 | AH128: 51975073.34 | AI128: 9919000.63 | AJ128: 0 | AK128: 0 | AL128: 0 | AM128: 0 | AN128: 0 | AO128: EN EJECUCIÓN | AP128: 0.85 | AQ128: 0.9 | AR128: EN EL AÑO 2020 SE CREÓ EL MINISTERIO DE OBRAS PÚBLICAS AL CUAL PERTENECE EL PROGRAMA
B129: 6457 | C129: 1. ESTADO NACIONAL | D129: REDES CLOACALES LANÚS | E129: RED SECUNDARIA CLOACAL UCRANIA | F129: 2 | G129: 91. OBLIGACIONES DEL TESORO | H129: 356 | I129: AYSA | J129: 95. ASISTENCIA FINANCIERA A EMPRESAS PÚBLICAS Y ENTE BINACIONAL | K129: 5 | L129: 1660401 | M129: 77 | N129: - | O129: 22 Y RECURSOS PROPIOS | P129: 5 | Q129: 5 | R129: 7 | S129: 753 | T129: 3 | U129: 8 | V129: 2 | W129: 2 | X129: SC70031 | Y129: - | Z129: LANÚS | AA129: VALENTÍN ALSINA | AB129: EL ÁREA DEL PROYECTO SE ENCUENTRA DELIMITADA POR LAS CALLES: B. RIVADADVIA, 25 DE MAYO, OLIDEN, YERBAL, BALBÍN, A. DEL VALLE, BOQUERON, FARREL, J.M. MORENO, RUCCI, M. PEDRAZA, LAS OBRAS DEL PRESENTE PLIEGO CORRESPONDEN A LA RED SECUNDARIA PARA EVACUACIÓN DE LOS EFLUENTES CLOACALES DE LA ZONA UCRANIA, LA CUAL CORRESPONDE AL PARTIDO DE LANÚS. | AC129: 2016-08-31 | AD129: 2018-05-17 | AE129: 77429667.47 | AF129: 68218956.13 | AG129: 4506766.891 | AH129: 150155390.5 | AI129: 76799887.88 | AJ129: 2191035.451 | AK129: 0 | AL129: 0 | AM129: 0 | AN129: 0 | AO129: FINALIZADO | AP129: 1 | AQ129: 1 | AR129: -
B130: 6458 | C130: 1. ESTADO NACIONAL | D130: REDES CLOACALES LOMAS DE ZAMORA | E130: RED PRIMARIA CLOACAL - COLECTOR BUDGE | F130: 2 | G130: 91. OBLIGACIONES DEL TESORO | H130: 356 | I130: AYSA | J130: 95. ASISTENCIA FINANCIERA A EMPRESAS PÚBLICAS Y ENTE BINACIONAL | K130: 5 | L130: 1660301 | M130: 77 | N130: - | O130: 22 Y RECURSOS PROPIOS | P130: 5 | Q130: 5 | R130: 7 | S130: 753 | T130: 3 | U130: 8 | V130: 2 | W130: 2 | X130: SC70023 | Y130: - | Z130: LOMAS DE ZAMORA | AA130: ING. BUDGE | AB130: EL COLECTOR BUDGE INICIARÁ SU RECORRIDO CON UN DN1000 POR LA CALLE ESPRONCEDA ESQUINA AYOLAS, CONTINUANDO POR ESTA ÚLTIMA HASTA COSQUÍN, GIRA Y CONTINÚA HASTA NECOL PARA SEGUIR POR ÉSTA HASTA EMPALMAR CON EL COLECTOR FIORITO. | AC130: 2016-09-09 | AD130: 2019-12-31 | AE130: 121000000 | AF130: 71280957.49 | AG130: 6050000 | AH130: 198330957.5 | AI130: 64368849.64 | AJ130: 50992491.32 | AK130: 108531224.9 | AL130: 75063120.27 | AM130: 32766105.93 | AN130: 107829226.2 | AO130: EN EJECUCIÓN | AP130: 0.5694203504 | AQ130: 0.3751 | AR130: -
B131: 6461 | C131: 1. ESTADO NACIONAL | D131: REDES CLOACALES FIORITO | E131: RED SECUNDARIA CLOACAL FIORITO 1 | F131: 2 | G131: 91. OBLIGACIONES DEL TESORO | H131: 356 | I131: AYSA | J131: 95. ASISTENCIA FINANCIERA A EMPRESAS PÚBLICAS Y ENTE BINACIONAL | K131: 5 | L131: 1660406 | M131: 77 | N131: - | O131: 22 Y RECURSOS PROPIOS | P131: 5 | Q131: 5 | R131: 7 | S131: 753 | T131: 3 | U131: 8 | V131: 2 | W131: 2 | X131: SC591 | Y131: - | Z131: LOMAS DE ZAMORA | AA131: VILLA FIORITO | AB131: EL SECTOR DE LA RED SECUNDARIA SE ENCUENTRA DELIMITADO POR LAS SIGUIENTES CALLES: EJERCITO DE LOS ANDES, LUIS MURATURE, RECONDO, PLUMERILLO, PIL COMAYO, F. DE MORAZAN, AZAMOR, ROBERTO ART, B. FIGUEREDO Y CAMINO PUENTE DE LA NORIA. | AC131: 2016-08-05 | AD131: 2019-12-31 | AE131: 197747757.4 | AF131: 177897220.4 | AG131: 11666897.69 | AH131: 387311875.5 | AI131: 141215974.1 | AJ131: 101802712.9 | AK131: 12068975.38 | AL131: 8661654.719 | AM131: 3407320.663 | AN131: 12068975.38 | AO131: RESCINDIDA | AP131: CONTRATO RESCINDIDO | AQ131: 0.8981 | AR131: CONTRATO RESCINDIDO EL 26/06/2020. RESTA IMPUTAR TODAVÍA.
B132: 6470 | C132: 1. ESTADO NACIONAL | D132: AGUA RED SECUNDARIA | E132: PLAN AYSA A+T D.R. SUR -CIERRES DE MALLA LANUS M2 | F132: 2 | G132: 91. OBLIGACIONES DEL TESORO | H132: 356 | I132: AYSA | J132: 95. ASISTENCIA FINANCIERA A EMPRESAS PÚBLICAS Y ENTE BINACIONAL | K132: 5 | L132: 1548U02 | M132: 77 | N132: 0 | O132: 22 y Recursos Propios | P132: 5 | Q132: 5 | R132: 7 | S132: 753 | T132: 3 | U132: 8 | V132: 2 | W132: 2 | X132: SA70113 | Y132: - | Z132: LANÚS | AA132: LANÚS | AB132: PITAGORA - TUCUMAN - MARTINTO - ALV. DONATO- PEDRO CAVIA - CNEL. PRINGLES. SAN CARLOS DESDE MARGARITA WEILD A EVA PERON. 9 DE JULIO ENTRE KAZON CAYETANO Y KLOOSTERMAN. CNEL LYNCH Y CARLOS GARDEL | AC132: 2015-11-18 | AD132: 2020-11-30 | AE132: 2799596.36 | AF132: -1608276.04 | AG132: 2011491.19 | AH132: 3202811.51 | AI132: 0 | AJ132: 0 | AK132: 486503.3932 | AL132: 0 | AM132: 486503.3932 | AN132: 486503.3932 | AO132: FINALIZADO | AP132: 0.5695590591 | AQ132: 0.5695590591 | AR132: ESTE PROYECTO HABÍA SIDO EXCLUIDO POR ESTAR FINALIZADO, PERO SE REGISTRÓ UN CARGO CONTABLE EN EL SEGUNDO SEMESTRE 2020
B133: 6487 | C133: 1. ESTADO NACIONAL | D133: REDES CLOACALES ESTEBAN ECHEVERRÍA | E133: PRIMARIAS EZEIZA TRAMO ESTEBAN ECHEVERRÍA" - PARTIDO DE ESTEBAN ECHEVERRÍA | F133: 2 | G133: 91. OBLIGACIONES DEL TESORO | H133: 356 | I133: AYSA | J133: 95. ASISTENCIA FINANCIERA A EMPRESAS PÚBLICAS Y ENTE BINACIONAL | K133: 5 | L133: 1660308 | M133: 77 | N133: - | O133: 22 Y RECURSOS PROPIOS | P133: 5 | Q133: 5 | R133: 7 | S133: 753 | T133: 3 | U133: 8 | V133: 2 | W133: 2 | X133: SC655000 | Y133: - | Z133: ESTEBAN ECHEVERRÍA | AA133: EL JAGÜEL | AB133: LA TRAZA DEL COLECTOR ES LA SIGUIENTE: INICIA EN RUBENS ESQUINA AV. CASTEX, CONTINÚA POR RUBENS HASTA LA CALLE DA VINCI, DA VINCI HASTA LA CALLE LEGARRETA, LAGARRETA HASTA LA CALLE EL CEIBO, EL CEIBO HASTA LA CALLE A. ROTTA, A. ROTTA HASTA LA CALLE BARBARENA, BARBARENA HASTA LA COLECTORA DE LA RUTA N° 205, DONDE CRUZA LA RUTA Y LUEGO EL FERROCARRIL DE LA LINEA ROCA, LUEGO CONTINÚA UNA CUADRA POR CALLE EVITA HASTA LA CALLE GUTIERREZ, GUTIERREZ HASTA LA CALLE ANDALGAH, ANDALGAH HASTA LA CALLE LOS NOGALES, LOS NOGALES HASTA LA CALLE EDISON, EDISON HASTA LA CALLE ROBLES, ROBLES HASTA LA CALLE BOUCHARD, BOUCHARD HASTA LA CALLE SAN LUÍS, SAN LUIS HASTA LA CALLE DEAN FUNES, DEAN FUNES HASTA LA CALLE CATAMARCA, CATAMARCA HASTA LA AV. FAIR, AV. FAIR HASTA BOCA DE REGISTRO EXISTENTE SOBRE LA INTERSECCIÓN DE ESTA ÚLTIMA CON LA CALLE NEWTON. | AC133: 2017-06-08 | AD133: 2020-12-31 | AE133: 286402925.3 | AF133: 255123563.4 | AG133: 15005048.37 | AH133: 556531537.1 | AI133: 204901900.3 | AJ133: 175140566.7 | AK133: 172777077.9 | AL133: 8244322.9 | AM133: 164532755 | AN133: 172777077.9 | AO133: FINALIZADO | AP133: 0.9039055834 | AQ133: 1 | AR133: -
B134: 6488 | C134: 1. ESTADO NACIONAL | D134: OBRA CLOACAS LOMAS DE ZAMORA | E134: RED SECUNDARIA CLOACAL BUDGE. PARTIDO DE LOMAS DE ZAMORA | F134: 2 | G134: 91. OBLIGACIONES DEL TESORO | H134: 356 | I134: AYSA | J134: 95. ASISTENCIA FINANCIERA A EMPRESAS PÚBLICAS Y ENTE BINACIONAL | K134: 5 | L134: 1660408 | M134: 77 | N134: - | O134: 22 Y RECURSOS PROPIOS | P134: 5 | Q134: 5 | R134: 7 | S134: 753 | T134: 3 | U134: 8 | V134: 2 | W134: 2 | X134: SC592000 | Y134: - | Z134: LOMAS DE ZAMORA | AA134: LOMAS DE ZAMORA | AB134: EL SECTOR DE LA RED SECUNDARIA SE ENCUENTRA DELIMITADO POR LAS SIGUIENTES CALLES: CANADÁ, RICARDO PALMA, CAMPANA, ANTONIO MACHADO, BARADERO, CLAUDIO DE ALAS, CALLE DE LA RIBERA SUR Y CAMINO DEL PUENTE DE LA NORIA. | AC134: 2018-05-01 | AD134: 2020-12-31 | AE134: 173844769.2 | AF134: 156667831.9 | AG134: 9059448.052 | AH134: 339572049.2 | AI134: 47850715.81 | AJ134: 235925520 | AK134: 145225893.4 | AL134: 23273043.76 | AM134: 121952849.7 | AN134: 145225893.4 | AO134: EN EJECUCIÓN | AP134: 0.7419094796 | AQ134: 0.8741 | AR134: -
B135: 6490 | C135: 1. ESTADO NACIONAL | D135: REDES DE AGUA LA MATANZA | E135: RED PRIMARIA DE AGUA - VINCULACIÓN ACUEDUCTO CON BATERÍA LAS NIEVES - E II | F135: 2 | G135: 91. OBLIGACIONES DEL TESORO | H135: 356 | I135: AYSA | J135: 95. ASISTENCIA FINANCIERA A EMPRESAS PÚBLICAS Y ENTE BINACIONAL | K135: 5 | L135: 1660005 | M135: 77 | N135: - | O135: 22 Y RECURSOS PROPIOS | P135: 5 | Q135: 5 | R135: 7 | S135: 753 | T135: 3 | U135: 8 | V135: 2 | W135: 2 | X135: OA681 | Y135: - | Z135: LA MATANZA | AA135: GONZÁLEZ CATÁN | AB135: LA TRAZA DE LA CAÑERÍA DE IMPULSIÓN CONSTA DE LOS SIGUIENTES TRAMOS: CALLE ACHUPALLAS ENTRE BAVIO Y EL JAZMÍN, CALLE CARAFFA ENTRE V. NUÑEZ DE BALBOA Y ACHUPALLAS, CALLE EL JAZMÍN ENTRE ACHUPALLAS Y TOAY, CALLE TOAY ENTRE MARIANO ARIAS Y ARMONÍA, CALLE ARMONÍA ENTRE TOAY Y JUAN B. JUSTO, CALLE ICALMA ENTRE ARMONÍA Y FEDERICO BÁEZ, CALLE FEDERICO BÁEZ ENTRE LA BASTILLA E ICALMA, CALLE MAESTRA CONCEPCIÓN VALLE ENTRE FEDERICO BÁEZ Y V. NUÑEZ DE BALBOA, CALLE V. NUÑEZ DE BALBOA ENTRE MAESTRA CONCEPCIÓN VALLE Y URDANETA, CALLE URDANETA ENTRE V. NUÑEZ DE BALBOA Y CONONEL CONDE, CALLE ZINNY ENTRE FEDERICO BÁEZ Y V. NUÑEZ DE BALBOA Y CALLE BASTILLA ENTRE FEDERICO BÁEZ Y V. NUÑEZ DE BALBOA. | AC135: 2016-11-22 | AD135: 2019-12-31 | AE135: 45450546.14 | AF135: 2098424.58 | AG135: 2192319.459 | AH135: 49741290.18 | AI135: 25174447.67 | AJ135: 0 | AK135: 2100180.512 | AL135: 0 | AM135: 0 | AN135: 0 | AO135: EN EJECUCIÓN | AP135: 0.9577779245 | AQ135: 0.9624 | AR135: -
B136: 6538 | C136: 1. ESTADO NACIONAL | D136: PLANTA DE TRATAMIENTO CLOACAL GENERAL LAS HERAS | E136: REHABILITACIÓN Y OPTIMIZACIÓN DE PLANTA DEPURADORA DE LIQUIDOS CLOACALES - ETAPA I - GRAL. LAS HERAS | F136: 2 | G136: MINISTERIO DE OBRAS PÚBLICAS | H136: 613 | I136: ENTE NACIONAL DE OBRAS HÍDRICAS Y SANEAMIENTO | J136: 20. ASISTENCIA TÉCNICO 0 FINANCIERA Y DESARROLLO DE INFRAESTRUCTURA PARA EL SANEAMIENTO | K136: 4 | L136: 6 | M136: - | N136: 51 | O136: 11 | P136: 4 | Q136: 2 | R136: 2 | S136: - | T136: 3 | U136: 8 | V136: 6 | W136: - | X136: - | Y136: ENOHSA | Z136: GENERAL LAS HERAS | AA136: GENERAL LAS HERAS | AB136: - | AC136: - | AD136: - | AE136: 0 | AF136: 0 | AG136: 0 | AH136: 46257924.63 | AI136: 22670073.63 | AJ136: 2450059.04 | AK136: 2450060 | AL136: 0 | AM136: 0 | AN136: 0 | AO136: - | AP136: 1 | AQ136: 1 | AR136: -
B137: 6539 | C137: 1. ESTADO NACIONAL | D137: PLANTA DE TRATAMIENTO CLOACAL GENERAL LAS HERAS | E137: REHABILITACIÓN Y OPTIMIZACIÓN DE PLANTA DEPURADORA DE LIQUIDOS CLOACALES - ETAPA I - GRAL. LAS HERAS | F137: 2 | G137: MINISTERIO DE OBRAS PÚBLICAS | H137: 613 | I137: ENTE NACIONAL DE OBRAS HÍDRICAS Y SANEAMIENTO | J137: 20. ASISTENCIA TÉCNICO 0 FINANCIERA Y DESARROLLO DE INFRAESTRUCTURA PARA EL SANEAMIENTO | K137: 4 | L137: 6 | M137: - | N137: 51 | O137: 11 | P137: 3 | Q137: 4 | R137: 9 | S137: - | T137: 3 | U137: 8 | V137: 6 | W137: - | X137: - | Y137: ENOHSA | Z137: GENERAL LAS HERAS | AA137: GENERAL LAS HERAS | AB137: - | AC137: - | AD137: - | AE137: 0 | AF137: 0 | AG137: 0 | AH137: 0 | AI137: 974276 | AJ137: 83714.4 | AK137: 83715 | AL137: 0 | AM137: 0 | AN137: 0 | AO137: - | AP137: 1 | AQ137: 1 | AR137: -
B138: 6540 | C138: 1. ESTADO NACIONAL | D138: PLANTA DE TRATAMIENTO CLOACAL GENERAL LAS HERAS | E138: REHABILITACIÓN Y OPTIMIZACIÓN DE PLANTA DEPURADORA DE LIQUIDOS CLOACALES - ETAPA I - GRAL. LAS HERAS | F138: 2 | G138: MINISTERIO DE OBRAS PÚBLICAS | H138: 613 | I138: ENTE NACIONAL DE OBRAS HÍDRICAS Y SANEAMIENTO | J138: 20. ASISTENCIA TÉCNICO 0 FINANCIERA Y DESARROLLO DE INFRAESTRUCTURA PARA EL SANEAMIENTO | K138: 4 | L138: 6 | M138: - | N138: 51 | O138: 11 | P138: 3 | Q138: 7 | R138: 2 | S138: - | T138: 3 | U138: 8 | V138: 6 | W138: - | X138: - | Y138: ENOHSA | Z138: GENERAL LAS HERAS | AA138: GENERAL LAS HERAS | AB138: - | AC138: - | AD138: - | AE138: 0 | AF138: 0 | AG138: 0 | AH138: 0 | AI138: 15352.5 | AJ138: 5169 | AK138: 6000 | AL138: 0 | AM138: 0 | AN138: 0 | AO138: - | AP138: 1 | AQ138: 1 | AR138: -
B139: 6588 | C139: 1. ESTADO NACIONAL | D139: ESTACIÓN DE BOMBEO CLOACAL ALTE. BROWN | E139: ESTACION DE BOMBEO CLOACAL ADROGUE SUR 2 - OBRA CIVIL | F139: 2 | G139: 91. OBLIGACIONES DEL TESORO | H139: 356 | I139: AYSA | J139: 95. ASISTENCIA FINANCIERA A EMPRESAS PÚBLICAS Y ENTE BINACIONAL | K139: 5 | L139: 1660314 | M139: 77 | N139: - | O139: 22 Y RECURSOS PROPIOS | P139: 5 | Q139: 5 | R139: 7 | S139: 753 | T139: 3 | U139: 8 | V139: 2 | W139: 2 | X139: SC643100 | Y139: - | Z139: ALMIRANTE BROWN | AA139: ADROGUÉ | AB139: LA ESTACIÓN DE BOMBEO, ESTARÁ UBICADA EN UN PREDIO SITUADO EN LA INTERSECCIÓN DE LAS CALLES DE LAS CALLES LUIS TEJADA Y WILSON, ADQUIRIDOS POR AYSA S.A. SEGÚN SE MUESTRA EN EL PLANO 45650-PC EN EL PARTIDO DE ALMIRANTE BROWN. | AC139: 2016-11-14 | AD139: 2018-02-15 | AE139: 4848465.075 | AF139: 957737.6966 | AG139: 269758.4557 | AH139: 6075961.228 | AI139: 2326598.829 | AJ139: 988675.4152 | AK139: 0 | AL139: 0 | AM139: 0 | AN139: 0 | AO139: FINALIZADO | AP139: 1 | AQ139: 1 | AR139: -
B140: 6589 | C140: 1. ESTADO NACIONAL | D140: REDES CLOACALES LANÚS | E140: RED SECUNDARIA CLOACAL INTERNACIONAL NORTE" PARTIDO DE LANÚS | F140: 2 | G140: 91. OBLIGACIONES DEL TESORO | H140: 356 | I140: AYSA | J140: 95. ASISTENCIA FINANCIERA A EMPRESAS PÚBLICAS Y ENTE BINACIONAL | K140: 5 | L140: 1660411 | M140: 77 | N140: - | O140: 22 Y RECURSOS PROPIOS | P140: 5 | Q140: 5 | R140: 7 | S140: 753 | T140: 3 | U140: 8 | V140: 2 | W140: 2 | X140: SC669000 | Y140: - | Z140: LANÚS | AA140: LANÚS | AB140: EL ÁREA DEL PROYECTO SE ENCUENTRA DELIMITADA POR LAS CALLES: BERNARDINO RIVADAVIA, JUAN JOSÉ VIAMONTE, LA RIOJA, MANUEL MAZA, MENDOZA, LLAVALLOL, DEAN FUNES, PILCOMAYO Y 25 DE MAYO. LAS OBRAS DEL PRESENTE PLIEGO CORRESPONDEN A LA RED SECUNDARIA PARA EVACUACIÓN DE LOS EFLUENTES CLOACALES DE LA ZONA INTERNACIONAL NORTE, LA CUAL CORRESPONDE AL PARTIDO DE LANÚS. | AC140: 2017-03-06 | AD140: Rescindida | AE140: 65089142.9 | AF140: 0 | AG140: 0 | AH140: Contrato Rescindido | AI140: 2038908.879 | AJ140: 4491451.284 | AK140: 0 | AL140: 0 | AM140: 0 | AN140: 0 | AO140: RESCINDIDA | AP140: CONTRATO RESCINDIDO | AQ140: 0.1406 | AR140: CONTRATO RESCINDIDO 25/03/2019.
B141: 6590 | C141: 1. ESTADO NACIONAL | D141: A REVISAR | E141: RED SECUNDARIA CLOACAL VILLA EDÉN ESTE" PARTIDO DE LANÚS | F141: 2 | G141: 91. OBLIGACIONES DEL TESORO | H141: 356 | I141: AYSA | J141: 95. ASISTENCIA FINANCIERA A EMPRESAS PÚBLICAS Y ENTE BINACIONAL | K141: 5 | L141: 1660412 | M141: 77 | N141: - | O141: 22 y Recursos Propios | P141: 5 | Q141: 5 | R141: 7 | S141: 753 | T141: 3 | U141: 8 | V141: 2 | W141: 2 | X141: SC671 | Y141: - | Z141: LANÚS | AA141: LANÚS | AB141: EL ÁREA DEL PROYECTO SE ENCUENTRA DELIMITADA POR LAS CALLES: MENDOZA, 25 DE MAYO, GENERAL SAN MARTÍN, DON ORIONE, ENRIQUE FERNANDEZ, GRECIA, PLAUL SANTIAGO Y CASTRO MANUEL.LAS OBRAS DEL PRESENTE PLIEGO CORRESPONDEN A LA RED SECUNDARIA PARA EVACUACIÓN DE LOS EFLUENTES DE LA ZONA VILLA EDÉN ESTE, LA CUAL CORRESPONDEN AL PARTIDO DE LANÚS. | AC141: 2016-12-19 | AD141: 2018-06-20 | AE141: 54391348.47 | AF141: 41903627.25 | AG141: 4412403.213 | AH141: 100707378.9 | AI141: 0 | AJ141: 22059212.38 | AK141: 0 | AL141: 0 | AM141: 0 | AN141: 0 | AO141: FINALIZADO | AP141: 1 | AQ141: 1 | AR141: SE MODIFICA LA EJECUCIÓN 2018 YA QUE NO TOMARON LOS VALORES INFORMADOS OPORTUNAMENTE
B142: 6591 | C142: 1. ESTADO NACIONAL | D142: A REVISAR | E142: RED SECUNDARIA DE AGUA MONTE GRANDE III | F142: 2 | G142: 91. OBLIGACIONES DEL TESORO | H142: 356 | I142: AYSA | J142: 95. ASISTENCIA FINANCIERA A EMPRESAS PÚBLICAS Y ENTE BINACIONAL | K142: 5 | L142: 1660112 | M142: 77 | N142: - | O142: 22 y Recursos Propios | P142: 5 | Q142: 5 | R142: 7 | S142: 753 | T142: 3 | U142: 8 | V142: 2 | W142: 2 | X142: SA70094 | Y142: - | Z142: ESTEBAN ECHEVERRÍA | AA142: MONTE GRANDE | AB142: LA ZONA ES LA DELIMITADA POR LAS CALLES AV. PEDRO DREYER, AV. PEDRO SUÁREZ, TTE. PRIMERO NICOLÁS CORREA, PEDRO E. FARIÑA, TERRAROSA ANTONIO, ASCASUBI HILARIO Y JUAN DE GARAY. EN EL PARTIDO DE ESTEBAN ECHEVERRÍA. | AC142: 2017-06-01 | AD142: 2019-12-31 | AE142: 36124984.09 | AF142: 3232686.884 | AG142: 1822071.346 | AH142: 41179742.32 | AI142: 0 | AJ142: 10712518.45 | AK142: 8254237.334 | AL142: 7573627.245 | AM142: 183.3513 | AN142: 7573810.596 | AO142: FINALIZADO | AP142: 1 | AQ142: 1 | AR142: SE MODIFICA LA EJECUCIÓN 2018 YA QUE NO TOMARON LOS VALORES INFORMADOS OPORTUNAMENTE
B143: 6592 | C143: 1. ESTADO NACIONAL | D143: AGUA RED SECUNDARIA | E143: RED SECUNDARIA DE AGUA EZEIZA 2 - ETAPA 1. (1660109) | F143: 2 | G143: 91. OBLIGACIONES DEL TESORO | H143: 356 | I143: AYSA | J143: 95. ASISTENCIA FINANCIERA A EMPRESAS PÚBLICAS Y ENTE BINACIONAL | K143: 5 | L143: 1660109 | M143: 77 | N143: 0 | O143: 22 y Recursos Propios | P143: 5 | Q143: 5 | R143: 7 | S143: 753 | T143: 3 | U143: 8 | V143: 2 | W143: 2 | X143: SA700950 | Y143: - | Z143: EZEIZA | AA143: TRISTÁN SUÁREZ | AB143: RED SECUNDARIA EN EL PARTIDO DE EZEIZA DELIMITADA POR LAS CALLES LOS ANDES, AMÉRICA CENTRAL, HERNÁN CORTEZ Y AV. QUITO | AC143: 2017-01-13 | AD143: 2018-03-20 | AE143: 47017201.71 | AF143: 14891315.15 | AG143: 2394194.267 | AH143: 64302711.13 | AI143: - | AJ143: 0 | AK143: 434701.0426 | AL143: 0 | AM143: 434701.0426 | AN143: 434701.0426 | AO143: FINALIZADO | AP143: 1 | AQ143: 0.9995 | AR143: ESTE PROYECTO HABÍA SIDO EXCLUIDO POR ESTAR FINALIZADO, PERO SE REGISTRÓ UN CARGO CONTABLE EN EL SEGUNDO SEMESTRE 2020
B144: 6593 | C144: 1. ESTADO NACIONAL | D144: A REVISAR | E144: RED SECUNDARIA Y DE DISTRIBUCIÓN DE AGUA MERLO GÓMEZ | F144: 2 | G144: 91. OBLIGACIONES DEL TESORO | H144: 356 | I144: AYSA | J144: 95. ASISTENCIA FINANCIERA A EMPRESAS PÚBLICAS Y ENTE BINACIONAL | K144: 5 | L144: 1660106 | M144: 77 | N144: - | O144: 22 y Recursos Propios | P144: 5 | Q144: 5 | R144: 7 | S144: 753 | T144: 3 | U144: 8 | V144: 2 | W144: 2 | X144: OA700630 | Y144: - | Z144: MORÓN | AA144: CASTELAR | AB144: EL OBJETIVO DE LAS OBRAS ES LA EJECUCIÓN DE LA RED SECUNDARIA PARA LA DISTRIBUCCIÓN Y ABASTECIMIENTO DE AGUA EN LA ZONA DE MERLO GOMÉZ, EN EL PARTIDO DE MORÓN. LA ZONA ES LA DELIMITADA POR LAS CALLES MANUEL PASSADORE, VICTORINO DE ORTÚZAR, CNEL. MARTÍN P. DE LACARRA, CNEL. ARENA, BLAS PARERA, CNEL. RAFAEL HORTIGUERA. | AC144: 2016-12-15 | AD144: 2018-05-05 | AE144: 62871472.65 | AF144: 19158350.87 | AG144: 3309571.987 | AH144: 85339395.51 | AI144: 0 | AJ144: 11223002.39 | AK144: 0 | AL144: 0 | AM144: 0 | AN144: 0 | AO144: FINALIZADO | AP144: 1 | AQ144: 1 | AR144: SE MODIFICA LA EJECUCIÓN 2018 YA QUE NO TOMARON LOS VALORES INFORMADOS OPORTUNAMENTE
B145: 6594 | C145: 1. ESTADO NACIONAL | D145: REDES DE AGUA ESTEBAN ECHEVERRÍA | E145: RED SECUNDARIA DE AGUA MONTE GRANDE III - RESTO I (1660107) | F145: 2 | G145: 91. OBLIGACIONES DEL TESORO | H145: 356 | I145: AYSA | J145: 95. ASISTENCIA FINANCIERA A EMPRESAS PÚBLICAS Y ENTE BINACIONAL | K145: 5 | L145: 1660107 | M145: 77 | N145: - | O145: 22 Y RECURSOS PROPIOS | P145: 5 | Q145: 5 | R145: 7 | S145: 753 | T145: 3 | U145: 8 | V145: 2 | W145: 2 | X145: SA700590 | Y145: - | Z145: ESTEBAN ECHEVERRÍA | AA145: MONTE GRANDE | AB145: LAS OBRAS DE LA RED SECUNDARIA DE PROVISIÓN DE AGUA POTABLE EN LA LOCALIDAD DE MONTE GRANDE, PARTIDO DE ESTEBAN ECHEVERRÍA, LA ZONA ES LA DELIMITADA POR LAS CALLES AV. RAMON SANTAMARINA, AV. ENRIQUE SANTAMARINA, (RUTA PROVINCIAL N°205), GENERAL PAZ, INTENDENTE ITALIANI, CARLOS PELEGRINI, CORNELIO SAAVEDRA, CRITÓBAL COLÓN, ANDRES BERASAIN, PEDRO FARINIA Y PEDRO DREYER. | AC145: 2017-02-02 | AD145: 2019-12-31 | AE145: 40611812.42 | AF145: 5801570.822 | AG145: 3042904.647 | AH145: 49456287.89 | AI145: 13451718.31 | AJ145: 9061565.757 | AK145: -262218.6039 | AL145: -7025931.55 | AM145: 6763712.946 | AN145: -262218.6039 | AO145: FINALIZADO | AP145: 1 | AQ145: 1 | AR145: -
B146: 6595 | C146: 1. ESTADO NACIONAL | D146: REDES CLOACALES ESTEBAN ECHEVERRÍA | E146: RED SECUNDARIA CLOACAL GUILLÓN 2 - ETAPA 2. | F146: 2 | G146: 91. OBLIGACIONES DEL TESORO | H146: 356 | I146: AYSA | J146: 95. ASISTENCIA FINANCIERA A EMPRESAS PÚBLICAS Y ENTE BINACIONAL | K146: 5 | L146: 1660418 | M146: 77 | N146: - | O146: 22 Y RECURSOS PROPIOS | P146: 5 | Q146: 5 | R146: 7 | S146: 753 | T146: 3 | U146: 8 | V146: 2 | W146: 2 | X146: SC612000 | Y146: - | Z146: ESTEBAN ECHEVERRÍA | AA146: LUIS GUILLÓN | AB146: EL SECTOR DE PROYECTO SE ENCUENTRA DELIMITADO POR LAS SIGUIENTES CALLES: GARZÓN, M. CORONADO, GRIERSON, PONCE DE LEÓN, CÓRDOBA, MADARIAGA, P. SUAREZ, AV. RIVADAVIA, H. ASCASUBÍ, PRETA, LINIERS Y A. AMAT. LA ZONA SE DENOMINA "RSC GUILLÓN 2 - ETAPA 2" UBICADA EN EL PARTIDO DE ESTEBAN ECHEVERRÍA. | AC146: 2017-03-31 | AD146: 2019-12-31 | AE146: 166018919.2 | AF146: 88996031.57 | AG146: 9555136.776 | AH146: 264570087.5 | AI146: 226827699.2 | AJ146: 9602800.064 | AK146: 858468.9366 | AL146: 858468.9366 | AM146: 0 | AN146: 858468.9366 | AO146: FINALIZADO | AP146: 1 | AQ146: 1 | AR146: -
B147: 6598 | C147: 1. ESTADO NACIONAL | D147: REDES CLOACALES ALMIRANTE BROWN | E147: RED SECUNDARIA CLOACAL ADROGUÉ SUR 2. | F147: 2 | G147: 91. OBLIGACIONES DEL TESORO | H147: 356 | I147: AYSA | J147: 95. ASISTENCIA FINANCIERA A EMPRESAS PÚBLICAS Y ENTE BINACIONAL | K147: 5 | L147: 1660433 | M147: 77 | N147: - | O147: 22 Y RECURSOS PROPIOS | P147: 5 | Q147: 5 | R147: 7 | S147: 753 | T147: 3 | U147: 8 | V147: 2 | W147: 2 | X147: SC679000 | Y147: - | Z147: ALMIRANTE BROWN | AA147: ADROGUÉ | AB147: EL SECTOR DE PROYECTO SE ENCUENTRA DELIMITADO POR LAS SIGUIENTES CALLES: ALCORTA, 25 DE MAYO, A. DEL VALLE, AMENEDO, WILSON, JULIO A. ROCA, AV. MONTEVERDE. RUTA PROVINCIAL N°4, CAMINO DE CINTURA Y AV. HIPÓLITO YRIGOYEN. EL OBJETIVO DE LAS OBRAS ES LA CONSTRUCCIÓN DE LA RED SECUNDARIA CLOACAL PARA LA EVACUACIÓN DE LOS EFLUENTES CLOACALES PROVENIENTES DE LA ZONA DENOMINADA "RSC ADROGUÉ SUR 2", "UBICADA EN EL PARTIDO DE ALMIRANTE BROWN". | AC147: 2017-03-06 | AD147: 2018-07-16 | AE147: 29691931.44 | AF147: 3412030.285 | AG147: 1767094.696 | AH147: 34871056.42 | AI147: 16677369.4 | AJ147: 8173982.164 | AK147: 0 | AL147: 0 | AM147: 0 | AN147: 0 | AO147: FINALIZADO | AP147: 1 | AQ147: 1 | AR147: -
B148: 6601 | C148: 1. ESTADO NACIONAL | D148: PLANTA POTABILIZADORA BARRIO RAYO DE SOL | E148: PLANTA POTABILIZADORA SISTEMA DE OSMOSIS INVERSA BARRIO RAYO DE SOL - OBRA CIVIL | F148: 2 | G148: 91. OBLIGACIONES DEL TESORO | H148: 356 | I148: AYSA | J148: 95. ASISTENCIA FINANCIERA A EMPRESAS PÚBLICAS Y ENTE BINACIONAL | K148: 5 | L148: 1660503 | M148: 77 | N148: - | O148: 22 Y RECURSOS PROPIOS | P148: 5 | Q148: 5 | R148: 7 | S148: 753 | T148: 3 | U148: 8 | V148: 2 | W148: 2 | X148: SA693100 | Y148: - | Z148: ALMIRANTE BROWN | AA148: RAYO DE SOL | AB148: SANTIAGO DEL ESTERO Y SANTA CLARA. | AC148: 2017-06-19 | AD148: 2019-12-31 | AE148: 20491252.84 | AF148: 10857945.11 | AG148: 1160451.171 | AH148: 32509649.12 | AI148: 26953735.12 | AJ148: 3551020.928 | AK148: 5091352.889 | AL148: 2545676.444 | AM148: 0 | AN148: 2545676.444 | AO148: FINALIZADO | AP148: 1 | AQ148: 0.9974 | AR148: -
B149: 6602 | C149: 1. ESTADO NACIONAL | D149: PLANTA POTABILIZADORA BARRIO RAYO DE SOL | E149: PLANTA POTABILIZADORA SISTEMA DE OSMOSIS INVERSA BARRIO RAYO DE SOL - OBRA ELECTRO | F149: 2 | G149: 91. OBLIGACIONES DEL TESORO | H149: 356 | I149: AYSA | J149: 95. ASISTENCIA FINANCIERA A EMPRESAS PÚBLICAS Y ENTE BINACIONAL | K149: 5 | L149: 1660503 | M149: 77 | N149: - | O149: 22 Y RECURSOS PROPIOS | P149: 5 | Q149: 5 | R149: 7 | S149: 753 | T149: 3 | U149: 8 | V149: 2 | W149: 2 | X149: SA693200 | Y149: - | Z149: ALMIRANTE BROWN | AA149: RAYO DE SOL | AB149: SANTIAGO DEL ESTERO Y SANTA CLARA. | AC149: 2017-06-19 | AD149: 2018-11-03 | AE149: 11458879.01 | AF149: 20126934.33 | AG149: 1015342.537 | AH149: 32601155.87 | AI149: 12615042.37 | AJ149: 1918669.037 | AK149: 10487824.61 | AL149: 5076205.31 | AM149: 0 | AN149: 5076205.31 | AO149: FINALIZADO | AP149: 1 | AQ149: 1 | AR149: EL NÚMERO DE PROYECTO Y PARTE DE LA INFORMACIÓN CORRESPONDIENTE FUERON MODIFICADOS PORQUE NO CORRESPONDÍA AL ID INFORMADO (JUN Y DIC -20)
B150: 6603 | C150: 1. ESTADO NACIONAL | D150: REDES CLOACALES ESTEBAN ECHEVERRÍA | E150: RED PRIMARIA CLOACAL - COLECTOR MONTE GRANDE 3 | F150: 2 | G150: 91. OBLIGACIONES DEL TESORO | H150: 356 | I150: AYSA | J150: 95. ASISTENCIA FINANCIERA A EMPRESAS PÚBLICAS Y ENTE BINACIONAL | K150: 5 | L150: 1660322 | M150: 77 | N150: - | O150: 22 Y RECURSOS PROPIOS | P150: 5 | Q150: 5 | R150: 7 | S150: 753 | T150: 3 | U150: 8 | V150: 2 | W150: 2 | X150: SC629000 | Y150: - | Z150: ESTEBAN ECHEVERRÍA | AA150: MONTE GRANDE | AB150: LA TRAZA SE DESARROLLA A PARTIR DE LA CALLE LOS CAMALOTES Y CABO SAN JOSE, LUEGO CONTINUANDO POR LA CALLE CABO SAN JOSE, HACIENDO LOS CRUCE DEL FERROCARRIL Y DE LA RUTA 205, PARA LUEGO CONTINUAR POR LA CALLE PUNTA RASA HASTA FRAY LUIS BELTRAN, DOBLANDO EN ESTA HASTA LA CALLE CATAMARCA, SIGUIENDO POR ESTA HASTA FRAY M. ESQUIU HASTA LA CALLE CABO SAN ANTONIO, SIGUIENDO POR ESTA HASTA AV. FAIR DONDE EMPALMARA A BR DE REGISTRO. LA TRAZA SE DESARROLLA EN EL PARTIDO DE ESTEBAN ECHEVERRÍA, PCIA, DE BUENOS AIRES. | AC150: 2018-01-02 | AD150: 2019-12-31 | AE150: 43812667.03 | AF150: 24464570.89 | AG150: 2411468.372 | AH150: 70688706.3 | AI150: 38491199.03 | AJ150: 25618148.08 | AK150: 25248658.16 | AL150: 18845446.07 | AM150: 6403212.092 | AN150: 25248658.16 | AO150: FINALIZADO | AP150: 1 | AQ150: 1 | AR150: -
B151: 6604 | C151: 1. ESTADO NACIONAL | D151: REDES CLOACALES ESTEBAN ECHEVERRÍA | E151: RED PRIMARIA CLOACAL - COLECTOR VILLA DE MAYO 2 | F151: 2 | G151: 91. OBLIGACIONES DEL TESORO | H151: 356 | I151: AYSA | J151: 95. ASISTENCIA FINANCIERA A EMPRESAS PÚBLICAS Y ENTE BINACIONAL | K151: 5 | L151: 1660321 | M151: 77 | N151: - | O151: 22 Y RECURSOS PROPIOS | P151: 5 | Q151: 5 | R151: 7 | S151: 753 | T151: 3 | U151: 8 | V151: 2 | W151: 2 | X151: SC680000 | Y151: - | Z151: ESTEBAN ECHEVERRÍA | AA151: VILLA DE MAYO 9 DE ABRIL | AB151: EL COLECTOR COMENZARÁ CON UN DN 400 EN LA ESQUINA DE E. PRAYONES Y R. ROJAS, CONTINUANDO SU RECORRIDO POR LA CALLE R. ROJAS EN LA EQUINA DE RAFAEL Y R. ROJAS AUMENTARÁ DE DIÁMETRO A DN 500. CONTINUARÁ POR R. RJAS HASTA LA CALLE LAGOS GARCÍA, DONDE GIRARÁ A LA DERECHA Y CONTINUARÁ POR LA MISMA. EN LA ESQUINA DE LAGOS GARCÍA Y CEPEDA AUMENTARÁ EL DIAMETRO A DN 630, CONTINUARÁ POR LAGOS GARCÍA Y LUEGO SUBTTE. A. FOX HASTA LA CALLE SARDI, DONDE GIRARÁ A LA DERECHA Y EMPALMARÁ SOBRE LA BR EXISTE DE LA EBC LUIS GUILLÓN. EL OBJETIVO DE LAS OBRAS ES LA CONSTRUCCIÓN DE LA RED PRIMARIA CLOACAL DENOMINADA "COLECTOR VILLA DE MAYO 2", CUYA TRAZA SE DESARROLLA EN EL PARTIDO DE ESTEBAN ECHEVERRÍA, PCIA. DE BUENOS AIRES. | AC151: 2017-06-01 | AD151: 2019-12-31 | AE151: 25513153.87 | AF151: 11355909.29 | AG151: 1275657.693 | AH151: 38144720.85 | AI151: 16806996.59 | AJ151: 12119328.37 | AK151: 0 | AL151: 0 | AM151: 0 | AN151: 0 | AO151: FINALIZADO | AP151: 1 | AQ151: 0.999 | AR151: -
B152: 6606 | C152: 1. ESTADO NACIONAL | D152: REDES DE AGUA LOMAS DE ZAMORA | E152: CÁMARA REGULADORA REFUERZO BRIGADIER ROSAS. OBRA CIVIL | F152: 2 | G152: 91. OBLIGACIONES DEL TESORO | H152: 356 | I152: AYSA | J152: 95. ASISTENCIA FINANCIERA A EMPRESAS PÚBLICAS Y ENTE BINACIONAL | K152: 5 | L152: 1660010 | M152: 77 | N152: - | O152: 22 Y RECURSOS PROPIOS | P152: 5 | Q152: 5 | R152: 7 | S152: 753 | T152: 3 | U152: 8 | V152: 2 | W152: 2 | X152: SA731100 | Y152: - | Z152: LOMAS DE ZAMORA | AA152: J. M. DE ROSAS | AB152: LA TRAZA DEL REFUERZO ES: ESCOBAR ENTRE HOMERO Y TERRADA Y TUYUTI ENTRE ESCOBAR Y EPECUEN. | AC152: 2016-11-15 | AD152: 2019-12-31 | AE152: 2167812.526 | AF152: 2672680.208 | AG152: 260348.4448 | AH152: 5100841.179 | AI152: 2112883.971 | AJ152: 868295.8669 | AK152: 313862.6744 | AL152: 0 | AM152: 313862.6744 | AN152: 313862.6744 | AO152: FINALIZADO | AP152: 1.000000001 | AQ152: 1 | AR152: -
B153: 6607 | C153: 1. ESTADO NACIONAL | D153: REDES DE AGUA LOMAS DE ZAMORA | E153: CÁMARA REGULADORA REFUERZO BRIGADIER ROSAS. OBRA ELECTROMECÁNICA | F153: 2 | G153: 91. OBLIGACIONES DEL TESORO | H153: 356 | I153: AYSA | J153: 95. ASISTENCIA FINANCIERA A EMPRESAS PÚBLICAS Y ENTE BINACIONAL | K153: 5 | L153: 1660011 | M153: 77 | N153: - | O153: 22 Y RECURSOS PROPIOS | P153: 5 | Q153: 5 | R153: 7 | S153: 753 | T153: 3 | U153: 8 | V153: 2 | W153: 2 | X153: SA731200 | Y153: - | Z153: LOMAS DE ZAMORA | AA153: J. M. DE ROSAS | AB153: LA TRAZA DEL REFUERZO ES: ESCOBAR ENTRE HOMERO Y TERRADA Y TUYUTI ENTRE ESCOBAR Y EPECUEN. | AC153: 2016-11-15 | AD153: 2019-12-31 | AE153: 2965211.456 | AF153: 2215078.176 | AG153: 486362.9715 | AH153: 5666652.604 | AI153: 1246637.989 | AJ153: 2373500.462 | AK153: 1784882.543 | AL153: 0 | AM153: 1784882.543 | AN153: 1784882.543 | AO153: FINALIZADO | AP153: 1 | AQ153: 1 | AR153: -
B154: 6608 | C154: 1. ESTADO NACIONAL | D154: REDES DE AGUA LOMAS DE ZAMORA | E154: CÁMARA REGULADORA REFUERZO BARRIO SANTA CATALINA. OBRA CIVIL. | F154: 2 | G154: 91. OBLIGACIONES DEL TESORO | H154: 356 | I154: AYSA | J154: 95. ASISTENCIA FINANCIERA A EMPRESAS PÚBLICAS Y ENTE BINACIONAL | K154: 5 | L154: 1660012 | M154: 77 | N154: - | O154: 22 Y RECURSOS PROPIOS | P154: 5 | Q154: 5 | R154: 7 | S154: 753 | T154: 3 | U154: 8 | V154: 2 | W154: 2 | X154: SA700581 | Y154: - | Z154: LOMAS DE ZAMORA | AA154: LOMAS DE ZAMORA | AB154: LA OBRA SE ENCUENTRA UBICADA EN LA CALLE: BYONA, ENTRE ARANA GOIRI Y BUSTOS, PARTIDO DE LOMAS DE ZAMORA. | AC154: 2016-11-15 | AD154: 2019-12-31 | AE154: 2140969.511 | AF154: 2293468.9 | AG154: 35239.57657 | AH154: 4469677.987 | AI154: 2447885.914 | AJ154: 977063.6502 | AK154: 317486.8906 | AL154: 12208.7306 | AM154: 305278.0753 | AN154: 317486.8059 | AO154: FINALIZADO | AP154: 1 | AQ154: 1 | AR154: -
B155: 6609 | C155: 1. ESTADO NACIONAL | D155: REDES CLOACALES ESTEBAN ECHEVERRÍA | E155: RED SECUNDARIA CLOACAL 9 DE ABRIL 2 - 2° ETAPA FASE A | F155: 2 | G155: 91. OBLIGACIONES DEL TESORO | H155: 356 | I155: AYSA | J155: 95. ASISTENCIA FINANCIERA A EMPRESAS PÚBLICAS Y ENTE BINACIONAL | K155: 5 | L155: 1660441 | M155: 77 | N155: - | O155: 22 Y RECURSOS PROPIOS | P155: 5 | Q155: 5 | R155: 7 | S155: 753 | T155: 3 | U155: 8 | V155: 2 | W155: 2 | X155: SC700210 | Y155: - | Z155: ESTEBAN ECHEVERRÍA | AA155: 9 DE ABRIL | AB155: EL SECTOR DE PROYECTO SE ENCUENTRA DELIMITADO POR LAS SIGUIENTES CALLES: ING. HUERGO, CERRO SAN JAVIER, J. BENAVIDES, VOLCAN LANIN, NUESTRAS MALVINAS, LOS ANDES Y CONSTANZO. EL EFLUENTE CLOACAL GENERADO EN EL ÁREA DE LA RED SECUNDARIA DE PROYECTO DESCARGARÁ EN BR DEL COLECTOR CLOACAL PROYECTADO "BARRIO ISLAS MALVINAS". LA CONSTRUCCIÓN DE LA RED SECUNDARIA CLOACAL PARA LA EVACUACIÓN DE LOS EFLUENTES CLOACALES PROVENIENTES DE LA ZONA DENOMINADA "9 DE ABRIL 2 - 2° ETAPA - FASE A", UBICADA EN EL MUNICIPIO DE ESTEBAN ECHEVERRÍA. | AC155: 2017-02-15 | AD155: 2017-12-15 | AE155: 18190481.34 | AF155: 3927534.275 | AG155: 1091500.386 | AH155: 23209516 | AI155: 10558121.13 | AJ155: 0 | AK155: 1451425.153 | AL155: 1451425.153 | AM155: 0 | AN155: 1451425.153 | AO155: FINALIZADO | AP155: 1 | AQ155: 1 | AR155: -
B156: 6611 | C156: 1. ESTADO NACIONAL | D156: SISTEMA CLOACAS EZEIZA | E156: RED SECUNDARIA CLOACAL EZEIZA - RESTO 1 (PARCIAL) | F156: 2 | G156: 91. OBLIGACIONES DEL TESORO | H156: 356 | I156: AYSA | J156: 95. ASISTENCIA FINANCIERA A EMPRESAS PÚBLICAS Y ENTE BINACIONAL | K156: 5 | L156: 1660437 | M156: 77 | N156: - | O156: 22 Y RECURSOS PROPIOS | P156: 5 | Q156: 5 | R156: 7 | S156: 753 | T156: 3 | U156: 8 | V156: 2 | W156: 2 | X156: SC700410 | Y156: - | Z156: EZEIZA | AA156: EZEIZA | AB156: EL SECTOR DE PROYECTO SE ENCUENTRA DELIMITADO POR LAS SIGUIENTES CALLES: FRENCH, SALTA, GRANADEROS, CASEROS, HUMBERTO 1°, CASTELLI, MALVINAS ARGENTINAS, FLORENCIO VARELA, HUMBERTO 1°, DORREGO. | AC156: 2018-05-01 | AD156: 2020-12-31 | AE156: 76672365.63 | AF156: 43102126.91 | AG156: 3833618.282 | AH156: 123608110.8 | AI156: 13440641 | AJ156: 14826599.49 | AK156: 71339362.14 | AL156: 11764262.18 | AM156: 59972421.64 | AN156: 71736683.83 | AO156: EN EJECUCIÓN | AP156: 0.433360167 | AQ156: 0.4936 | AR156: -
B157: 6612 | C157: 1. ESTADO NACIONAL | D157: REDES CLOACALES FIORITO | E157: RED SECUNDARIA CLOACAL FIORITO 2. | F157: 2 | G157: 91. OBLIGACIONES DEL TESORO | H157: 356 | I157: AYSA | J157: 95. ASISTENCIA FINANCIERA A EMPRESAS PÚBLICAS Y ENTE BINACIONAL | K157: 5 | L157: 1660440 | M157: 77 | N157: - | O157: 22 Y RECURSOS PROPIOS | P157: 5 | Q157: 5 | R157: 7 | S157: 753 | T157: 3 | U157: 8 | V157: 2 | W157: 2 | X157: SC656000 | Y157: - | Z157: LOMAS DE ZAMORA | AA157: VILLA FIORITO | AB157: EL SECTOR DE PROYECTO SE ENCUENTRA DELIMITADO POR LAS SIGUIENTES CALLES: CHIVILCOY ENTRE EL PLUMERILLO Y GRAL. HORNOS; GRAL. HORNOS ENTRE CHIVILCOY Y LOS ANDES; EJERCITO DE LOS ANDES ENTRE GRAL. HORNOS Y MURATURE JOSÉ LUIS; MURATORE JOSÉ LUIS ENTRE EJERCITO DE LOS ANDES Y RECONDO; RECONDO ENTRE MURATORE JOSÉ LUIS Y MARIO BRAVO; MARIO BRAVO ENTRE RECONDO Y PILCOMAYO; PILCOMAYO ENTRE MARIO BRAVO Y F. DE MORAZAN; F. DE MORAZAN ENTRE PILCOMAYO Y AZAMOR; AZAMOR ENTRE F. DE MORAZAN Y FILARDI ANTONIO; FILARDI ANTONIO ENTRE AZAMOR Y EL PLUMERILLO Y PLUMERILLO ENTRE DEFENSA Y CHIVILCOY. | AC157: 2017-06-08 | AD157: 2019-12-31 | AE157: 199162930.2 | AF157: 155121550.1 | AG157: 12898161.14 | AH157: 367182641.5 | AI157: 165451564.8 | AJ157: 131728263.2 | AK157: 134262529.9 | AL157: 38085766.35 | AM157: 96176763.58 | AN157: 134262529.9 | AO157: FINALIZADO | AP157: 0.8970382372 | AQ157: 1 | AR157: -
B158: 6613 | C158: 1. ESTADO NACIONAL | D158: REDES CLOACALES LANÚS | E158: RED CLOACAL BARRIOS ALBARIÑOS SUR Y BALCARCE SUR - CUENCA 3. (1660428) | F158: 2 | G158: 91. OBLIGACIONES DEL TESORO | H158: 356 | I158: AYSA | J158: 95. ASISTENCIA FINANCIERA A EMPRESAS PÚBLICAS Y ENTE BINACIONAL | K158: 5 | L158: 1660428 | M158: 77 | N158: - | O158: 22 Y RECURSOS PROPIOS | P158: 5 | Q158: 5 | R158: 7 | S158: 753 | T158: 3 | U158: 8 | V158: 2 | W158: 2 | X158: SC700070 | Y158: - | Z158: LANÚS | AA158: REMEDIOS DE ESCALADA | AB158: LA CUENCA COMPRENDIDA EN EL PRESENTE PROYECTO, DENOMINADA CUENCA TRES, SE ENCUENTRA DELIMITADA POR LAS CALLES: ROSALES, C. BARROS, 20 DE SEPTIEMBRE, ZULOAGA, RUTA NACIONAL N° 205, R. ORTIZ Y URIARTE. EL PRESENTE CONCURSO TIENE POR OBJETO CONTRATAR LA EJECUCIÓN DE LAS OBRAS QUE SE DESCRIBEN EN EL PUNTO SIGUIENTE, LAS CUALES COMPRENDEN LA REALIZACIÓN DE UNA NUEVA RED SECUNDARIA Y PRIMARIA, A FIN DE COLECTAR Y TRANSPORTAR LOS EFLUENTES CLOACALES PROVENIENTES DE ESTA ÁREA DE EXPANSIÓN EN LOS BARRIOS BALCARCE SUR Y ALBARIÑOS SUR, EN EL PARTIDO DE LANÚS, VOLCÁNDOLOS EN LA BOCA DE REGISTRO UBICADA EN LA INTERSECCIÓN DE LAS CALLES AVDA. ROSALES Y PTE URQUIZA, PERTENECIENTE A UN COLECTOR PRIMARIO DE DN 400MM (PROYECTO SC 70005 - CUENCA 1) | AC158: 2017-03-06 | AD158: 2020-12-31 | AE158: 102354220 | AF158: 56540719.07 | AG158: 5117711.001 | AH158: 164012650.1 | AI158: 56284901.5 | AJ158: 53459691.75 | AK158: 3746128.988 | AL158: 868671.2331 | AM158: 2877457.755 | AN158: 3746128.988 | AO158: FINALIZADO | AP158: 1 | AQ158: 1 | AR158: -
B159: 6614 | C159: 1. ESTADO NACIONAL | D159: REDES DE AGUA LOMAS DE ZAMORA | E159: CÁMARA REGULADORA CALLE URUNDAY. OBRA CIVIL. | F159: 2 | G159: 91. OBLIGACIONES DEL TESORO | H159: 356 | I159: AYSA | J159: 95. ASISTENCIA FINANCIERA A EMPRESAS PÚBLICAS Y ENTE BINACIONAL | K159: 5 | L159: 1660014 | M159: 77 | N159: - | O159: 22 Y RECURSOS PROPIOS | P159: 5 | Q159: 5 | R159: 7 | S159: 753 | T159: 3 | U159: 8 | V159: 2 | W159: 2 | X159: SA700621 | Y159: - | Z159: LOMAS DE ZAMORA | AA159: LOMAS DE ZAMORA | AB159: LA OBRA SE ENCUENTRA UBICADA EN LA CALLE: URUNDAY, ENTRE ARANA GOIRI Y BUSTOS, PARTIDO DE LOMAS DE ZAMORA. | AC159: 2016-11-15 | AD159: 2019-12-31 | AE159: 2493649.155 | AF159: 3859116.16 | AG159: 52429.00597 | AH159: 6405194.32 | AI159: 4278820.949 | AJ159: 893233.8096 | AK159: 5165920.082 | AL159: 4034278.775 | AM159: 1131641.308 | AN159: 5165920.082 | AO159: FINALIZADO | AP159: 1 | AQ159: 1 | AR159: -
B160: 6617 | C160: 1. ESTADO NACIONAL | D160: REDES CLOACALES CABA | E160: REDES PRIMARIAS CLOACALES VILLA OLIMPICA | F160: 2 | G160: 91. OBLIGACIONES DEL TESORO | H160: 356 | I160: AYSA | J160: 95. ASISTENCIA FINANCIERA A EMPRESAS PÚBLICAS Y ENTE BINACIONAL | K160: 5 | L160: 1660317 | M160: 77 | N160: - | O160: 22 Y RECURSOS PROPIOS | P160: 5 | Q160: 5 | R160: 7 | S160: 753 | T160: 3 | U160: 8 | V160: 2 | W160: 2 | X160: VC700040 | Y160: - | Z160: CABA - LANÚS | AA160: VARIOS | AB160: LA TRAZA DEL COLECTOR CLOACAL ESCALADA SE EXTIENDE SOBRE LA AV. ESCALADA DESDE LA AV. GRAL. FERNÁNDEZ DE LA CRUZ, PARA LUEGO DE CRUZAR LA AV. CNEL. ROCA INGRESAR DE LA ESTACIÓN DE BOMBEO CLOACAL VILLA OLÍMPICA. LA TRAZA DE LA IMPULSIÓN CLOACAL VILLA OLÍMPICA EXTENDERÁ SU RECORRIDO DESDE LA EBC POR LA CALLE ESCALADA, LUEGO DEL CRUCE DE LA RECTIFICACIÓN DEL RIACHUELO, CONTINUARÁ POR EL CAMINO DE LA RIBERA SUR HASTA DESCARGAR EN LA CÁMARA DE DESCARGA A UBICARSE EN LA EN LA INTERSECCIÓN CON LA CALLE GRAL. VILLEGAS. LA TRAZA DEL COLECTOR CLOACAL VILLA OLÍMPICA - LANÚS SE EXTIENDE DESDE LA CALLE GRAL. VILLEGAS DESDE LA CALLE DE LA RIVERA SUR – CARLOS PELLEGRINI HASTA LA CALLE 17 DE OCTUBRE, PARA INGRESAR POR LA MISMA A LA PLANTA LANÚS HASTA EL VUELCO EN LA ESTACIÓN ELEVADORA DE ENTRADA DE LA PLANTA LANÚS. | AC160: 2016-11-29 | AD160: 2018-03-15 | AE160: 46380048.3 | AF160: 21237853.92 | AG160: 3014156.996 | AH160: 70632059.22 | AI160: 31651221.32 | AJ160: 77990.792 | AK160: 0 | AL160: 0 | AM160: 0 | AN160: 0 | AO160: FINALIZADO | AP160: 1 | AQ160: 1 | AR160: -
B161: 6618 | C161: 1. ESTADO NACIONAL | D161: ESTACIÓN DE BOMBEO CLOACAL CABA | E161: ESTACION DE BOMBEO CLOACAL VILLA OLIMPICA - OBRA CIVIL | F161: 2 | G161: 91. OBLIGACIONES DEL TESORO | H161: 356 | I161: AYSA | J161: 95. ASISTENCIA FINANCIERA A EMPRESAS PÚBLICAS Y ENTE BINACIONAL | K161: 5 | L161: 1660318 | M161: 77 | N161: - | O161: 22 Y RECURSOS PROPIOS | P161: 5 | Q161: 5 | R161: 7 | S161: 753 | T161: 3 | U161: 8 | V161: 2 | W161: 2 | X161: CC700161 | Y161: - | Z161: CABA | AA161: VILLA SOLDATI | AB161: LA OBRA SE LLEVARA A CABO EN UN PREDIO UBICADO EN LAS INMEDIACIONES DEL CUENCO REGULADOR LAGO LUGANO, MÁS PRECISAMENTE EN LA VEREDA ESTE DE LA AVENIDA ESCALADA, CERCANO A SU INTERSECCIÓN CON LA AVENIDA GRAL. ROCA. | AC161: 2017-01-02 | AD161: 2018-03-31 | AE161: 21880927.47 | AF161: 29242880.03 | AG161: 1876332.326 | AH161: 53000139.82 | AI161: 34429116.5 | AJ161: 0 | AK161: -7339215.07 | AL161: -7339215.07 | AM161: 0 | AN161: -7339215.07 | AO161: FINALIZADO | AP161: 1 | AQ161: 0.9977 | AR161: -
B162: 6619 | C162: 1. ESTADO NACIONAL | D162: REDES DE AGUA EZEIZA | E162: RED PRIMARIA DE AGUA EZEIZA ETAPA 3 | F162: 2 | G162: 91. OBLIGACIONES DEL TESORO | H162: 356 | I162: AYSA | J162: 95. ASISTENCIA FINANCIERA A EMPRESAS PÚBLICAS Y ENTE BINACIONAL | K162: 5 | L162: 1660019 | M162: 77 | N162: - | O162: 22 Y RECURSOS PROPIOS | P162: 5 | Q162: 5 | R162: 7 | S162: 753 | T162: 3 | U162: 8 | V162: 2 | W162: 2 | X162: SA708000 | Y162: - | Z162: EZEIZA | AA162: TRISTÁN SUÁREZ / SPEGAZZINI | AB162: LA TRAZA SE DESARROLLA CON RETIRO DE TAPON EN EN LA CALLE ROSARIO Y AMERICA CENTRAL, SIGUIENDO POR ESTA HASTA LA CALLE PUNTA DEL ESTE Y DESDE PUNTA DEL ESTE HASTA LA CALLE QUITO, PARA LUEGO CONTINUAR POR LA CALLE BOGADO HASTA LA CALLE BELGRANO, POR ESTA HASTA LA CALLE GUEMES Y SIGUIENDO POR ESTA CALLE HASTA LA CALLE LOS CRISANTEMOS, Y CONTINUANDO POR ESTA HASTA LA CALLE CASUARINAS Y POR ESTA ULTIMA HASTA LA CALLE LAS HORTENCIAS. EN EL PARTIDO DE EZEIZA | AC162: 2017-03-31 | AD162: 2019-12-31 | AE162: 60176418.4 | AF162: 58473977.9 | AG162: 3834895.973 | AH162: 122485292.3 | AI162: 67931318.65 | AJ162: 41058108.03 | AK162: 4504041.54 | AL162: 0 | AM162: 0 | AN162: 0 | AO162: FINALIZADO | AP162: 1 | AQ162: 1 | AR162: -
B163: 6621 | C163: 1. ESTADO NACIONAL | D163: REDES CLOACALES LA MATANZA | E163: RED PRIMARIA CLOACAL ALIVIADOR DEAN FUNES | F163: 2 | G163: 91. OBLIGACIONES DEL TESORO | H163: 356 | I163: AYSA | J163: 95. ASISTENCIA FINANCIERA A EMPRESAS PÚBLICAS Y ENTE BINACIONAL | K163: 5 | L163: 1662804 | M163: 77 | N163: - | O163: 22 Y RECURSOS PROPIOS | P163: 5 | Q163: 5 | R163: 7 | S163: 753 | T163: 3 | U163: 8 | V163: 2 | W163: 2 | X163: OC700750 | Y163: - | Z163: LA MATANZA | AA163: LA TABLADA | AB163: LA TRAZA DEL ALIVIADOR INICIA EN LA INTERSECCIÓN DE LAS CALLES DEAN FUNES Y AÑASCO SIGUIENDO POR DEAN FUNES, RIVERA, COCHABAMBA, CEVALLOS, AV. CROVARA, AV. GRAL PAZ FINALIZANDO EN LA INTERSECCIÓN CON LA PROLONGACIÓN DE LA CALLE COCHABAMBA. | AC163: 2017-02-01 | AD163: 2019-12-31 | AE163: 23058622.73 | AF163: 5766185.401 | AG163: 1152931.137 | AH163: 29977739.27 | AI163: 6974074.749 | AJ163: 13254412.6 | AK163: 1278547.689 | AL163: 27445.583 | AM163: 538028.6538 | AN163: 565474.2368 | AO163: FINALIZADO | AP163: 1 | AQ163: 1 | AR163: -
B164: 6622 | C164: 1. ESTADO NACIONAL | D164: REDES DE AGUA CABA | E164: RENOVACIÓN RED SECUNDARIA DE AGUA TRAMOS DE HF ¿ DRCF - DTOS: BELGRANO Y FLORES. C.A.B.A | F164: 2 | G164: 91. OBLIGACIONES DEL TESORO | H164: 356 | I164: AYSA | J164: 95. ASISTENCIA FINANCIERA A EMPRESAS PÚBLICAS Y ENTE BINACIONAL | K164: 5 | L164: 1660706 | M164: 77 | N164: - | O164: 22 Y RECURSOS PROPIOS | P164: 5 | Q164: 5 | R164: 7 | S164: 753 | T164: 3 | U164: 8 | V164: 2 | W164: 2 | X164: CA700160 | Y164: - | Z164: CABA | AA164: VARIOS | AB164: EL PRESENTE CONCURSO TIENE POR OBJETO CONTRATAR LA EJECUCIÓN DE LAS OBRAS QUE SE DESCRIBEN EN EL CAPÍTULO SIGUIENTE. EL OBJETIVO DE LAS OBRAS ES LA RENOVACIÓN DE CAÑERÍAS DE HF DE LA RED SECUNDARÍA DE AGUA EXISTENTE EN LAS MALLAS 203-0032, 203-017, 203-060, 202-016, 202-021, 202-094, MEDIANTE LA COLOCACIÓN DE CAÑERÍAS DE PEAD SGÚN CUALQUIER TECNOLOGÍA TRENCHLESS (PIPE BURSTING/ CRACKING/ TUNELERÍA DIRIGIDA), EN LOS DISTRITOS BELGRANO Y FLORES CORRESPONDIENTES A LA DIRECCIÓN REGIONAL CAPITAL FEDERAL. | AC164: 2017-01-02 | AD164: 2018-04-20 | AE164: 32540675.2 | AF164: 13126673.63 | AG164: 1817469.61 | AH164: 47484818.44 | AI164: 14078873.7 | AJ164: 5782781.809 | AK164: 0 | AL164: 0 | AM164: 0 | AN164: 0 | AO164: FINALIZADO | AP164: 1 | AQ164: 1 | AR164: -
B165: 6623 | C165: 1. ESTADO NACIONAL | D165: REDES DE AGUA CABA | E165: RENOVACIÓN DE RED SECUNDARIA DE AGUA CABALLITO - DRCF DEC. 220. | F165: 2 | G165: 91. OBLIGACIONES DEL TESORO | H165: 356 | I165: AYSA | J165: 95. ASISTENCIA FINANCIERA A EMPRESAS PÚBLICAS Y ENTE BINACIONAL | K165: 5 | L165: 1660709 | M165: 77 | N165: - | O165: 22 Y RECURSOS PROPIOS | P165: 5 | Q165: 5 | R165: 7 | S165: 753 | T165: 3 | U165: 8 | V165: 2 | W165: 2 | X165: CA700200 | Y165: - | Z165: CABA | AA165: CABALLITO | AB165: LAS TRAZAS DE LAS CAÑERÍAS DE REFUERZO A EJECUTAR SON: AVELLANEDA ENTRE AV. DONATO ÁLVAREZ Y ESPINOSA; MORELLO ENTRE FELIPE VALLESE Y AVELLANEDA, GORRITTI ENTRE BULNES Y SOLER, YERBAL ENTRE GARCÍA LORCA E HIDALGO, VALLE ENTRE AV. LA PLATA Y AV. J. M. MORENO, S. J. CALASANZ ENTRE AV. J. B. ALBERDI Y J. BONIFACIO Y CAMPICHUELO ENTRE AV. DÍAZ VÉLEZ Y CENTENARIO. | AC165: 2017-01-02 | AD165: 2018-08-31 | AE165: 20556144.52 | AF165: 5863303.558 | AG165: 1027807.226 | AH165: 27447255.3 | AI165: 9620804.392 | AJ165: 5980846.588 | AK165: 0 | AL165: 0 | AM165: 0 | AN165: 0 | AO165: FINALIZADO | AP165: 1 | AQ165: 1 | AR165: -
B166: 6625 | C166: 1. ESTADO NACIONAL | D166: REDES CLOACALES LANÚS | E166: RED PRIMARIA CLOACAL ALIVIADOR AV.HIPÓLITO YRIGOYEN | F166: 2 | G166: 91. OBLIGACIONES DEL TESORO | H166: 356 | I166: AYSA | J166: 95. ASISTENCIA FINANCIERA A EMPRESAS PÚBLICAS Y ENTE BINACIONAL | K166: 5 | L166: 1662802 | M166: 77 | N166: - | O166: 22 Y RECURSOS PROPIOS | P166: 5 | Q166: 5 | R166: 7 | S166: 753 | T166: 3 | U166: 8 | V166: 2 | W166: 2 | X166: SC700580 | Y166: - | Z166: LANÚS | AA166: LANÚS | AB166: LA OBRA CONSISTE EN DOS COLECTORES INSTALADOS POR CALE: UNO DE ELLOS INICIARÁ EN LA INTERSECCIÓN DE LA AV. HIPÓLITO YRIGOYEN Y PIÑEIRO SIGUIENDO POR HIPÓLITO YRIGOYEN Y CARLOS TEJEDOR, FINALIZANDO EN LA INTERSECCIÓN CON LA CALLE F. MELO. EL SEGUNDO COLECTOR INICIARÁ EN LA INTERSECCIÓN DE LA AV. HIPÓLITO YRIGOYEN Y MONTEVIDEO SIGUIENDO POR HIPÓLITO YRIGOYEN, RIOBAMBA Y VÉLEZ SARFIELD, FINALIZANDO EN LA INTERSECCIÓN CON LA CALLE LA CARRA. | AC166: 2016-09-12 | AD166: 2018-03-03 | AE166: 16943484.8 | AF166: 11548141.66 | AG166: 1133859.54 | AH166: 29625486 | AI166: 14660667.85 | AJ166: 1073929.281 | AK166: 0 | AL166: 0 | AM166: 0 | AN166: 0 | AO166: FINALIZADO | AP166: 1 | AQ166: 1 | AR166: -
B167: 6626 | C167: 1. ESTADO NACIONAL | D167: REDES CLOACALES ESTEBAN ECHEVERRÍA | E167: RED SECUNDARIA CLOACAL MONTE GRANDE 3 | F167: 2 | G167: 91. OBLIGACIONES DEL TESORO | H167: 356 | I167: AYSA | J167: 95. ASISTENCIA FINANCIERA A EMPRESAS PÚBLICAS Y ENTE BINACIONAL | K167: 5 | L167: 1660443 | M167: 77 | N167: - | O167: 22 Y RECURSOS PROPIOS | P167: 5 | Q167: 5 | R167: 7 | S167: 753 | T167: 3 | U167: 8 | V167: 2 | W167: 2 | X167: SC625000 | Y167: - | Z167: ESTEBAN ECHEVERRÍA | AA167: MONTE GRANDE | AB167: EL SECTOR DE LA RED SECUNDARIA SE ENCUENTRA DELIMITADO POR LAS SIGUIENTES CALLES: AV. V. FAIR, BALIZA CHIRIGUANO, T.A. EDISON, BAHIA ESPERANZA, LAPRIDA, ISLA ORCADAS DEL SUR, FRAY L. BELTRAN, Y EL ARROYO ORTEGA, LA ZONA SE DENOMINA "RSC MONTE GRANDE 3" UBICADA EN EL PARTIDO DE ESTEBAN ECHEVERRÍA. | AC167: 2018-05-01 | AD167: 2019-12-31 | AE167: 59810885.6 | AF167: 34502910.36 | AG167: 0 | AH167: 94313795.96 | AI167: 30979652.78 | AJ167: 82428756.75 | AK167: 27690762.01 | AL167: 8787903.554 | AM167: 18902858.45 | AN167: 27690762.01 | AO167: FINALIZADO | AP167: 1 | AQ167: 1 | AR167: -
B168: 6627 | C168: 1. ESTADO NACIONAL | D168: REDES CLOACALES ESTEBAN ECHEVERRÍA | E168: RED SECUNDARIA CLOACAL VILLA DE MAYO 2 - ETAPA 2 | F168: 2 | G168: 91. OBLIGACIONES DEL TESORO | H168: 356 | I168: AYSA | J168: 95. ASISTENCIA FINANCIERA A EMPRESAS PÚBLICAS Y ENTE BINACIONAL | K168: 5 | L168: 1660442 | M168: 77 | N168: - | O168: 22 Y RECURSOS PROPIOS | P168: 5 | Q168: 5 | R168: 7 | S168: 753 | T168: 3 | U168: 8 | V168: 2 | W168: 2 | X168: SC647000 | Y168: - | Z168: ESTEBAN ECHEVERRÍA | AA168: LUIS GUILLÓN | AB168: EL SECTOR DE PROYECTO SE ENCUENTRA DELIMITADO POR LAS SIGUIENTES CALLES: CNEL. ALVARO BARROS, ING. HUERGO, PAVÓN, COLONIA MONTE GRANDE, PAVÓN, LAGOS GARCIA, RICARDO ROJAS Y LUIS DE SANTO, ZONA DENOMINADA "VILLA DE MAYO 2 - ETAPA 2", UBICADA EN EL PARTIDO DE ESTEBAN ECHEVERRÍA. | AC168: 2017-08-01 | AD168: 2018-09-28 | AE168: 60280046.09 | AF168: 32762274.91 | AG168: 3597840.504 | AH168: 96640161.51 | AI168: 90647034.63 | AJ168: 1620328.134 | AK168: 0 | AL168: 0 | AM168: 0 | AN168: 0 | AO168: FINALIZADO | AP168: 1 | AQ168: 1 | AR168: -
B169: 6628 | C169: 1. ESTADO NACIONAL | D169: REDES CLOACALES ESTEBAN ECHEVERRÍA | E169: RED SECUNDARIA CLOACAL 9 DE ABRL 2 - 1° ETAPA - FASE A | F169: 2 | G169: 91. OBLIGACIONES DEL TESORO | H169: 356 | I169: AYSA | J169: 95. ASISTENCIA FINANCIERA A EMPRESAS PÚBLICAS Y ENTE BINACIONAL | K169: 5 | L169: 1660444 | M169: 77 | N169: - | O169: 22 Y RECURSOS PROPIOS | P169: 5 | Q169: 5 | R169: 7 | S169: 753 | T169: 3 | U169: 8 | V169: 2 | W169: 2 | X169: SC700250 | Y169: - | Z169: ESTEBAN ECHEVERRÍA | AA169: 9 DE ABRIL | AB169: EL SECTOR DE PROYECTO SE ENCUENTRA DELIMITADO POR LAS SIGUIENTES CALLES: LOS ANDES, ING. HUERGO, A. BARROS, INSUA. EL EFLUENTE CLOACAL GENERADO EN EL ÁREA DE LA RED SECUNDARIA DE PROYECTO DESCARGARÁ EN BR PROYECTADA DE LA RED SECUNDARÍA CLOACAL VILLA DE MAYO 2 - ETAPA 2. LA ZONA DENOMINADA " 9 DE ABRIL 2 - 1° ETAPA - FASA A" UBICADA EN EL MUNICIPIO DE ESTEBAN ECHEVERRÍA. | AC169: 2017-02-15 | AD169: 2018-01-30 | AE169: 23824296.96 | AF169: 9159112.85 | AG169: 1369671.041 | AH169: 34353080.85 | AI169: 9960226.695 | AJ169: 5384705.579 | AK169: 0 | AL169: 0 | AM169: 0 | AN169: 0 | AO169: FINALIZADO | AP169: 1 | AQ169: 1 | AR169: -
B170: 6629 | C170: 1. ESTADO NACIONAL | D170: OBRAS REDES DE AGUA LOMAS DE ZAMORA | E170: LIBRE AMANECER - SOLEDAD(1648Z01) | F170: 2 | G170: 91. OBLIGACIONES DEL TESORO | H170: 356 | I170: AYSA | J170: 95. ASISTENCIA FINANCIERA A EMPRESAS PÚBLICAS Y ENTE BINACIONAL | K170: 5 | L170: 1648Z01 | M170: 77 | N170: - | O170: 22 y Recursos Propios | P170: 5 | Q170: 5 | R170: 7 | S170: 753 | T170: 3 | U170: 8 | V170: 2 | W170: 2 | X170: SA70128 | Y170: - | Z170: LOMAS DE ZAMORA | AA170: LOMAS DE ZAMORA | AB170: CAMINO DE LA RIVERA SUD – 26 DE JULIO – GRAL EMILIO CONESA – GRAL. HORNOS | AC170: 2016-11-01 | AD170: 2018-02-02 | AE170: 3252273.13 | AF170: -1101813.14 | AG170: 550193 | AH170: 2700652.99 | AI170: 121212.8324 | AJ170: 258864.7864 | AK170: 0 | AL170: 0 | AM170: 0 | AN170: 0 | AO170: FINALIZADO | AP170: 1 | AQ170: 1 | AR170: -
B171: 6631 | C171: 1. ESTADO NACIONAL | D171: REDES DE AGUA ESTEBAN ECHEVERRÍA | E171: PLAN AYSA A+T ESTEBAN ECHEVERRÍA - LA MORITA M3 | F171: 2 | G171: 91. OBLIGACIONES DEL TESORO | H171: 356 | I171: AYSA | J171: 95. ASISTENCIA FINANCIERA A EMPRESAS PÚBLICAS Y ENTE BINACIONAL | K171: 5 | L171: 1548R70 | M171: 77 | N171: - | O171: 22 Y RECURSOS PROPIOS | P171: 5 | Q171: 5 | R171: 7 | S171: 753 | T171: 3 | U171: 8 | V171: 2 | W171: 2 | X171: SA70088 | Y171: - | Z171: ESTEBAN ECHEVERRÍA | AA171: ESTEBAN ECHEVERRÍA | AB171: GRAL. J. ROCA – T.A.EDISON - M. CICHERO – CERVETTI ANTONIO | AC171: 2016-05-01 | AD171: Sin fecha finalización | AE171: 3434505.56 | AF171: 5075882.96 | AG171: 5133210.965 | AH171: 13643599.49 | AI171: 3646591.216 | AJ171: 5142502.539 | AK171: 3625751.412 | AL171: 2236546.152 | AM171: 1389205.259 | AN171: 3625751.412 | AO171: FINALIZADO | AP171: 0.9999999999 | AQ171: 0.9999999999 | AR171: -
B172: 6635 | C172: 1. ESTADO NACIONAL | D172: REDES DE AGUA LA MATANZA | E172: PLAN AYSA A+T LA MATANZA PQUE. SARMIENTO RESTO M2(1648L02) | F172: 2 | G172: 91. OBLIGACIONES DEL TESORO | H172: 356 | I172: AYSA | J172: 95. ASISTENCIA FINANCIERA A EMPRESAS PÚBLICAS Y ENTE BINACIONAL | K172: 5 | L172: 1648L02 | M172: 77 | N172: - | O172: 22 Y RECURSOS PROPIOS | P172: 5 | Q172: 5 | R172: 7 | S172: 753 | T172: 3 | U172: 8 | V172: 2 | W172: 2 | X172: OA70099 | Y172: - | Z172: LA MATANZA | AA172: LA MATANZA | AB172: CAÑADA DE GOMEZ – JUAN B. ALBERDI – SAN CARLOS – PALMA RICARDO | AC172: 2016-08-10 | AD172: 2018-02-01 | AE172: 4334818.24 | AF172: 916445.75 | AG172: 2597787 | AH172: 7849050.99 | AI172: 334730.76 | AJ172: 0 | AK172: 0 | AL172: 0 | AM172: 0 | AN172: 0 | AO172: FINALIZADO | AP172: 0.9999999506 | AQ172: 0.9999999506 | AR172: -
B173: 6844 | C173: 1. ESTADO NACIONAL | D173: ESCUELA MEDIA - LA MATANZA | E173: EEM Nº 12 | F173: 2 | G173: MINISTERIO DE OBRAS PÚBLICAS | H173: 325 | I173: UNIDAD COORDINADORA DE PROGRAMAS Y PROYECTOS CON FINANCIAMIENTO EXTERNO | J173: 87. APOYO PARA EL DESARROLLO DE LA INFRAESTRUCTURA EDUCATIVA | K173: - | L173: - | M173: 80. AXSTENCIA FINANCIERA PARA OBRAS EN LA CMR | N173: 06-351 | O173: 22 | P173: 5 | Q173: 8 | R173: 1 | S173: 3001 | T173: 3 | U173: 4 | V173: 6 | W173: 1 | X173: - | Y173: BID/2940 | Z173: LA MATANZA | AA173: GONZÁLEZ CATÁN | AB173: - | AC173: 2017-04-01 | AD173: 2019-11-30 | AE173: 28355574.24 | AF173: 12899320.76 | AG173: 0 | AH173: 41254895 | AI173: 23191182.28 | AJ173: 0 | AK173: 0 | AL173: 0 | AM173: 0 | AN173: 0 | AO173: FINALIZADA | AP173: 1 | AQ173: 1 | AR173: EN EL AÑO 2020 SE CREÓ EL MINISTERIO DE OBRAS PÚBLICAS AL CUAL PERTENECE EL PROGRAMA
B174: 6845 | C174: 1. ESTADO NACIONAL | D174: ESCUELA MEDIA - LA MATANZA | E174: EEM Nº 97 | F174: 2 | G174: MINISTERIO DE OBRAS PÚBLICAS | H174: 325 | I174: UNIDAD COORDINADORA DE PROGRAMAS Y PROYECTOS CON FINANCIAMIENTO EXTERNO | J174: 87. APOYO PARA EL DESARROLLO DE LA INFRAESTRUCTURA EDUCATIVA | K174: - | L174: - | M174: 80. AXSTENCIA FINANCIERA PARA OBRAS EN LA CMR | N174: 06-352 | O174: 22 | P174: 5 | Q174: 8 | R174: 1 | S174: 3001 | T174: 3 | U174: 4 | V174: 6 | W174: 1 | X174: - | Y174: BID/2940 | Z174: LA MATANZA | AA174: VIRREY DEL PINO | AB174: - | AC174: 2017-06-02 | AD174: 2020-12-15 | AE174: 24645837.05 | AF174: 18657058.95 | AG174: 0 | AH174: 43302896 | AI174: 8313059.94 | AJ174: 0 | AK174: 0 | AL174: 0 | AM174: 0 | AN174: 0 | AO174: EN EJECUCIÓN | AP174: 0.8 | AQ174: 0.88 | AR174: EN EL AÑO 2020 SE CREÓ EL MINISTERIO DE OBRAS PÚBLICAS AL CUAL PERTENECE EL PROGRAMA
B175: 6854 | C175: 1. ESTADO NACIONAL | D175: REDES CLOACALES VILLA 21-24 | E175: SANEAMIENTO AGUA Y CLOACAS-BARRIOS TRES ROSAS, SAN BLAS (VILLA 21/24) | F175: 2 | G175: MINISTERIO DE OBRAS PÚBLICAS | H175: 364 | I175: MINISTERIO DE OBRAS PUBLICAS | J175: 44. UNIDAD DE COORDINACIÓN GENERAL DEL PROYECTO BIRF 7706-AR | K175: - | L175: 7 | M175: 0 | N175: 51 | O175: 11 | P175: 4 | Q175: 2 | R175: 2 | S175: - | T175: 4 | U175: 4 | V175: 2 | W175: 1 | X175: - | Y175: UCGP | Z175: CABA | AA175: COMUNA 4 | AB175: SISTEMA DE AGUA, CLOACAS Y PLUVIALES | AC175: 2017-07-14 | AD175: 2019-03-31 | AE175: 291257107.8 | AF175: 26667932.19 | AG175: 0 | AH175: 317925040 | AI175: 23754733.91 | AJ175: 0 | AK175: 0 | AL175: 0 | AM175: 0 | AN175: 0 | AO175: - | AP175: - | AQ175: - | AR175: -
B176: 6855 | C176: 1. ESTADO NACIONAL | D176: OBRAS REDES DE AGUA CAÑUELAS | E176: AMPLIACIÓN DE LA RED DE AGUA-CAÑUELAS | F176: 2 | G176: MINISTERIO DE OBRAS PÚBLICAS | H176: 364 | I176: MINISTERIO DE OBRAS PUBLICAS | J176: 44. UNIDAD DE COORDINACIÓN GENERAL DEL PROYECTO BIRF 7706-AR | K176: - | L176: 4 | M176: 0 | N176: 51 | O176: 22 | P176: 4 | Q176: 2 | R176: 2 | S176: - | T176: 4 | U176: 4 | V176: 6 | W176: 1 | X176: 51 | Y176: UCGP | Z176: CAÑUELAS | AA176: - | AB176: MEJORAS RED DE CLOACAS | AC176: 2016-04-20 | AD176: 2017-04-20 | AE176: 25003392.93 | AF176: 0 | AG176: 0 | AH176: 0 | AI176: 1919999.68 | AJ176: 832523.44 | AK176: 0 | AL176: 0 | AM176: 0 | AN176: 0 | AO176: FINALIZADO | AP176: 1 | AQ176: 1 | AR176: PAGO DEL FONDO DE REPARO
B177: 6856 | C177: 1. ESTADO NACIONAL | D177: REDES DE AGUA MARCOS PAZ | E177: AMPLIACIÓN RED DE AGUA-MARCOS PAZ | F177: 2 | G177: MINISTERIO DE OBRAS PÚBLICAS | H177: 364 | I177: MINISTERIO DE OBRAS PUBLICAS | J177: 44. UNIDAD DE COORDINACIÓN GENERAL DEL PROYECTO BIRF 7706-AR | K177: - | L177: 5 | M177: 0 | N177: 51 | O177: 22 | P177: 4 | Q177: 2 | R177: 2 | S177: - | T177: 4 | U177: 4 | V177: 6 | W177: 1 | X177: 51 | Y177: UCGP | Z177: MARCOS PAZ | AA177: - | AB177: MEJORAS RED DE AGUA Y CLOACAS | AC177: 2017-06-19 | AD177: 2019-03-19 | AE177: 100701583.4 | AF177: 0 | AG177: 0 | AH177: 100701583.4 | AI177: 83756564.69 | AJ177: 26351298.53 | AK177: 8391317.4 | AL177: 0 | AM177: 8391317.4 | AN177: 8391317.4 | AO177: FINALIZADO | AP177: 0.95 | AQ177: 1 | AR177: -
B178: 6857 | C178: 1. ESTADO NACIONAL | D178: PLANTA DE TRATAMIENTO PIC LANÚS | E178: CONSTRUCCIÓN PLANTA DE TRATAMIENTO EFLUENTES LÍQUIDOS INDUSTRIALES PIC LANÚS | F178: 2 | G178: MINISTERIO DE OBRAS PÚBLICAS | H178: 364 | I178: MINISTERIO DE OBRAS PUBLICAS | J178: 44. UNIDAD DE COORDINACIÓN GENERAL DEL PROYECTO BIRF 7706-AR | K178: - | L178: 6 | M178: - | N178: 51 | O178: 22 | P178: 4 | Q178: 2 | R178: 2 | S178: - | T178: 4 | U178: 4 | V178: 6 | W178: 1 | X178: 51 | Y178: UCGP | Z178: LANÚS | AA178: - | AB178: GENERAL OLAZABAL Y JUAN IGNACIO RUCCI | AC178: 2018-11-28 | AD178: 2020-11-20 | AE178: 243363446.4 | AF178: 0 | AG178: 0 | AH178: 0 | AI178: 47032419.64 | AJ178: 181702593.2 | AK178: 822098953 | AL178: 100141561.8 | AM178: 606360099.1 | AN178: 706501660.8 | AO178: EN EJECUCIÓN | AP178: 0.5 | AQ178: 0.39 | AR178: -
B179: 6858 | C179: 1. ESTADO NACIONAL | D179: REDES CLOACALES VILLA 21-24 | E179: SANEAMIENTO AGUA Y CLOACAS-BARRIOS TRES ROSAS, SAN BLAS (VILLA 21/24) | F179: 2 | G179: MINISTERIO DE OBRAS PÚBLICAS | H179: 364 | I179: MINISTERIO DE OBRAS PUBLICAS | J179: 44. UNIDAD DE COORDINACIÓN GENERAL DEL PROYECTO BIRF 7706-AR | K179: - | L179: 7 | M179: 0 | N179: 51 | O179: 22 | P179: 4 | Q179: 2 | R179: 2 | S179: - | T179: 4 | U179: 4 | V179: 2 | W179: 1 | X179: 51 | Y179: UCGP | Z179: CABA | AA179: COMUNA 4 | AB179: SISTEMA DE AGUA, CLOACAS Y PLUVIALES | AC179: 2017-07-14 | AD179: 2019-03-31 | AE179: 291257107.8 | AF179: 79124050.46 | AG179: 0 | AH179: 370381158.3 | AI179: 94714038.78 | AJ179: 390668069.8 | AK179: 616108204 | AL179: 227717349.6 | AM179: 388390854.4 | AN179: 616108204 | AO179: EN EJECUCIÓN | AP179: 0.74 | AQ179: 0.88 | AR179: -
B180: 6859 | C180: 1. ESTADO NACIONAL | D180: SISTEMA RIACHUELO | E180: TRANSFERENCIAS A AYSA PARA GASTOS CORRIENTES (INSPECCIÓN SISTEMA RIACHUELO) | F180: 2 | G180: MINISTERIO DE OBRAS PÚBLICAS | H180: 364 | I180: MINISTERIO DE OBRAS PUBLICAS | J180: 44. UNIDAD DE COORDINACIÓN GENERAL DEL PROYECTO BIRF 7706-AR | K180: - | L180: - | M180: 78 | N180: - | O180: 22 | P180: 5 | Q180: 5 | R180: 2 | S180: 753 | T180: 4 | U180: 4 | V180: 2 | W180: 1 | X180: - | Y180: AYSA | Z180: CUENCA MATANZA RIACHUELO | AA180: - | AB180: - | AC180: 2014-08-15 | AD180: 2019-07-31 | AE180: € 2171086 + $ 13489601 | AF180: 0 | AG180: 0 | AH180: 0 | AI180: 0 | AJ180: 0 | AK180: 267706852 | AL180: 0 | AM180: 0 | AN180: 0 | AO180: - | AP180: - | AQ180: - | AR180: TRANSF PARA GS CORRIENTES- SUPERVISONES SISTEMA RIACHUELO
B181: 6860 | C181: 1. ESTADO NACIONAL | D181: SISTEMA RIACHUELO | E181: TRANSFERENCIAS A AYSA PARA GASTOS DE CAPITAL (OBRAS SISTEMA RIACHUELO) | F181: 2 | G181: MINISTERIO DE OBRAS PÚBLICAS | H181: 364 | I181: MINISTERIO DE OBRAS PUBLICAS | J181: 44. UNIDAD DE COORDINACIÓN GENERAL DEL PROYECTO BIRF 7706-AR | K181: - | L181: - | M181: 78 | N181: - | O181: 22 | P181: 5 | Q181: 5 | R181: 7 | S181: 753 | T181: 4 | U181: 4 | V181: 2 | W181: 1 | X181: - | Y181: AYSA | Z181: CUENCA MATANZA RIACHUELO | AA181: - | AB181: - | AC181: - | AD181: - | AE181: 0 | AF181: 0 | AG181: 0 | AH181: 0 | AI181: 0 | AJ181: 0 | AK181: 9090910635 | AL181: 0 | AM181: 0 | AN181: 0 | AO181: - | AP181: - | AQ181: - | AR181: TRANFERENCIAS PARA GS DE CAPITAL- OBRAS SISTEMA RIACHUELO
B182: 6864 | C182: 1. ESTADO NACIONAL | D182: REDES CLOACALES CABA | E182: ESTACION DE BOMBEO CLOACAL VILLA OLIMPICA - OBRA ELECTROMECANICA | F182: 2 | G182: 91. OBLIGACIONES DEL TESORO | H182: 356 | I182: AYSA | J182: 95. ASISTENCIA FINANCIERA A EMPRESAS PÚBLICAS Y ENTE BINACIONAL | K182: 5 | L182: 1660319 | M182: 77 | N182: - | O182: 22 Y RECURSOS PROPIOS | P182: 5 | Q182: 5 | R182: 7 | S182: 753 | T182: 3 | U182: 8 | V182: 2 | W182: 2 | X182: CC700162 | Y182: - | Z182: CABA | AA182: VILLA SOLDATI | AB182: LA OBRA SE LLEVARA A CABO EN UN PREDIO UBICADO EN LAS INMEDIACIONES DEL CUENCO REGULADOR LAGO LUGANO, MÁS PRECISAMENTE EN LA VEREDA ESTE DE LA AVENIDA ESCALADA, CERCANO A SU INTERSECCIÓN CON LA AVENIDA GRAL. ROCA. | AC182: 2017-01-02 | AD182: 2018-03-31 | AE182: 41266370.09 | AF182: 5999057.921 | AG182: 2358302.066 | AH182: 49623730.08 | AI182: 20656123.24 | AJ182: 0 | AK182: 4038989.535 | AL182: 4038989.535 | AM182: 0 | AN182: 4038989.535 | AO182: FINALIZADO | AP182: 1 | AQ182: 1 | AR182: -
B183: 6879 | C183: 1. ESTADO NACIONAL | D183: REDES CLOACALES LA MATANZA | E183: 21 DE MARZO M2 C+T (1748L76) | F183: 2 | G183: 91. OBLIGACIONES DEL TESORO | H183: 356 | I183: AYSA | J183: 95. ASISTENCIA FINANCIERA A EMPRESAS PÚBLICAS Y ENTE BINACIONAL | K183: 5 | L183: 1748L76 | M183: 77 | N183: - | O183: 22 Y RECURSOS PROPIOS | P183: 5 | Q183: 5 | R183: 7 | S183: 753 | T183: 3 | U183: 8 | V183: 2 | W183: 2 | X183: OC70198 | Y183: - | Z183: LA MATANZA | AA183: LA MATANZA | AB183: 17 DE OCTUBRE - CALLE 600 - LAS ORQUIDEAS - CALLE 400 | AC183: 2017-04-28 | AD183: 2018-07-26 | AE183: 4041524.49 | AF183: 1047110.47 | AG183: 2745443.028 | AH183: 7834077.988 | AI183: 3203775.303 | AJ183: 1170617.392 | AK183: 0 | AL183: 0 | AM183: 0 | AN183: 0 | AO183: FINALIZADO | AP183: 1.002240148 | AQ183: 1 | AR183: -
B184: 6880 | C184: 1. ESTADO NACIONAL | D184: REDES DE AGUA LA MATANZA | E184: NEXO BARRIO EL TREBOL M1 A+T (1748L13) | F184: 2 | G184: 91. OBLIGACIONES DEL TESORO | H184: 356 | I184: AYSA | J184: 95. ASISTENCIA FINANCIERA A EMPRESAS PÚBLICAS Y ENTE BINACIONAL | K184: 5 | L184: 1748L13 | M184: 77 | N184: - | O184: 22 Y RECURSOS PROPIOS | P184: 5 | Q184: 5 | R184: 7 | S184: 753 | T184: 3 | U184: 8 | V184: 2 | W184: 2 | X184: OA70147 | Y184: - | Z184: LA MATANZA | AA184: LA MATANZA | AB184: RUSSO INT - LAS FLORES - SPLIMBERGO - R.BILLINGURST | AC184: 2017-05-23 | AD184: Sin fecha finalización | AE184: 6463430.4 | AF184: 2974057.42 | AG184: 7718249.883 | AH184: 17155737.7 | AI184: 9202210.9 | AJ184: 363490.39 | AK184: 3172779.24 | AL184: 48683.813 | AM184: 0 | AN184: 48683.813 | AO184: FINALIZADO | AP184: 0.9999070242 | AQ184: 0.9999070242 | AR184: -
B185: 6881 | C185: 1. ESTADO NACIONAL | D185: REDES CLOACALES LA MATANZA | E185: 21 DE MARZO M1 C+T (1748L75) | F185: 2 | G185: 91. OBLIGACIONES DEL TESORO | H185: 356 | I185: AYSA | J185: 95. ASISTENCIA FINANCIERA A EMPRESAS PÚBLICAS Y ENTE BINACIONAL | K185: 5 | L185: 1748L75 | M185: 77 | N185: - | O185: 22 Y RECURSOS PROPIOS | P185: 5 | Q185: 5 | R185: 7 | S185: 753 | T185: 3 | U185: 8 | V185: 2 | W185: 2 | X185: OC70197 | Y185: - | Z185: LA MATANZA | AA185: LA MATANZA | AB185: 17 DE OCTUBRE - CALLE 600 - LAS ORQUIDEAS - LAS FLORES - CHUBUT | AC185: 2017-04-17 | AD185: Sin fecha finalización | AE185: 4566125.18 | AF185: 2242413.66 | AG185: 1915060.473 | AH185: 8723599.313 | AI185: 2714727.093 | AJ185: 50544.483 | AK185: 1058464 | AL185: 19360 | AM185: 0 | AN185: 19360 | AO185: FINALIZADO | AP185: 1 | AQ185: 1 | AR185: -
B186: 6894 | C186: 1. ESTADO NACIONAL | D186: REDES DE AGUA CABA | E186: RED DE AGUA - REFUERZO VILLA OLÍMPICA (1760901) | F186: 2 | G186: 91. OBLIGACIONES DEL TESORO | H186: 356 | I186: AYSA | J186: 95. ASISTENCIA FINANCIERA A EMPRESAS PÚBLICAS Y ENTE BINACIONAL | K186: 5 | L186: 1760901 | M186: 77 | N186: - | O186: 22 Y RECURSOS PROPIOS | P186: 5 | Q186: 5 | R186: 7 | S186: 753 | T186: 3 | U186: 8 | V186: 2 | W186: 2 | X186: CA700240 | Y186: - | Z186: CABA | AA186: VILLA LUGANO | AB186: LA OBRA SE LLEVARA A CABO EN UN PREDIO UBICADO EN LAS INMEDIACIONES DEL CUENCO REGULADOR LAGO LUGANO, MÁS PRECISAMENTE EN LA VEREDA ESTE DE LA AVENIDA ESCALADA, CERCANO A SU INTERSECCIÓN CON LA AVENIDA GRAL. ROCA. | AC186: 2017-08-01 | AD186: 2018-08-31 | AE186: 22480334.39 | AF186: 11950085.28 | AG186: 1207867.375 | AH186: 35638287.05 | AI186: 25097457.01 | AJ186: 15171614.05 | AK186: 259871.0345 | AL186: 259871.0345 | AM186: 0 | AN186: 259871.0345 | AO186: FINALIZADO | AP186: 1 | AQ186: 1 | AR186: -
B187: 6898 | C187: 1. ESTADO NACIONAL | D187: REDES CLOACALES LOMAS DE ZAMORA | E187: CÁMARA REGULADORA REFUERZO BARRIO SANTA CATALINA. OBRA ELECTROMECÁNICA. | F187: 2 | G187: 91. OBLIGACIONES DEL TESORO | H187: 356 | I187: AYSA | J187: 95. ASISTENCIA FINANCIERA A EMPRESAS PÚBLICAS Y ENTE BINACIONAL | K187: 5 | L187: 1660013 | M187: 77 | N187: - | O187: 22 Y RECURSOS PROPIOS | P187: 5 | Q187: 5 | R187: 7 | S187: 753 | T187: 3 | U187: 8 | V187: 2 | W187: 2 | X187: SA700582 | Y187: - | Z187: LOMAS DE ZAMORA | AA187: LOMAS DE ZAMORA | AB187: LA OBRA SE ENCUENTRA UBICADA EN LA CALLE: BYONA, ENTRE ARANA GOIRI Y BUSTOS, PARTIDO DE LOMAS DE ZAMORA. | AC187: 2016-11-15 | AD187: 2019-12-31 | AE187: 2884055.243 | AF187: 3220994.703 | AG187: 144202.7622 | AH187: 6249252.709 | AI187: 1482350.2 | AJ187: 2953923.995 | AK187: 1566729.78 | AL187: 0 | AM187: 1551101.565 | AN187: 1551101.565 | AO187: FINALIZADO | AP187: 1 | AQ187: 1 | AR187: -
B188: 6899 | C188: 1. ESTADO NACIONAL | D188: REDES CLOACALES LOMAS DE ZAMORA | E188: CÁMARA REGULADORA CALLE URUNDAY. OBRA ELECTROMECÁNICA. | F188: 2 | G188: 91. OBLIGACIONES DEL TESORO | H188: 356 | I188: AYSA | J188: 95. ASISTENCIA FINANCIERA A EMPRESAS PÚBLICAS Y ENTE BINACIONAL | K188: 5 | L188: 1660015 | M188: 77 | N188: - | O188: 22 Y RECURSOS PROPIOS | P188: 5 | Q188: 5 | R188: 7 | S188: 753 | T188: 3 | U188: 8 | V188: 2 | W188: 2 | X188: SA700622 | Y188: - | Z188: LOMAS DE ZAMORA | AA188: LOMAS DE ZAMORA | AB188: LA OBRA SE ENCUENTRA UBICADA EN LA CALLE: URUNDAY, ENTRE ARANA GOIRI Y BUSTOS, PARTIDO DE LOMAS DE ZAMORA. | AC188: 2016-11-15 | AD188: 2019-12-31 | AE188: 3182578.566 | AF188: 3717071.284 | AG188: 159128.9283 | AH188: 7058778.779 | AI188: 1036959.618 | AJ188: 4317888.908 | AK188: 2012061.411 | AL188: 0 | AM188: 2012061.411 | AN188: 2012061.411 | AO188: FINALIZADO | AP188: 1 | AQ188: 1 | AR188: -
B189: 6900 | C189: 1. ESTADO NACIONAL | D189: REDES CLOACALES LOMAS DE ZAMORA | E189: CÁMARA REGULADORA CALLE GARCÍA DE LOYOLA. OBRA ELECTROMECÁNICA. | F189: 2 | G189: 91. OBLIGACIONES DEL TESORO | H189: 356 | I189: AYSA | J189: 95. ASISTENCIA FINANCIERA A EMPRESAS PÚBLICAS Y ENTE BINACIONAL | K189: 5 | L189: 1660017 | M189: 77 | N189: - | O189: 22 Y RECURSOS PROPIOS | P189: 5 | Q189: 5 | R189: 7 | S189: 753 | T189: 3 | U189: 8 | V189: 2 | W189: 2 | X189: SA700702 | Y189: - | Z189: LOMAS DE ZAMORA | AA189: VILLA ALBERTINA | AB189: LA OBRA SE ENCUENTRA UBICADA EN LA CALLE: GRCIA DE LOYOLA, ENTRE ARANA GOIRI Y BUSTOS, PARTIDO DE LOMAS DE ZAMORA. | AC189: 2016-11-15 | AD189: 2019-12-31 | AE189: 3588826.834 | AF189: 1291065.965 | AG189: 879165.1922 | AH189: 5759057.991 | AI189: 1824289.231 | AJ189: 5448325.358 | AK189: 3260931.826 | AL189: 0 | AM189: 3260931.826 | AN189: 3260931.826 | AO189: FINALIZADO | AP189: 1 | AQ189: 1 | AR189: -
B190: 6901 | C190: 1. ESTADO NACIONAL | D190: TRANSBORDADOR NICOLÁS AVELLANEDA | E190: PROYECTO, RESTAURACION Y PUESTA EN VALOR DEL TRASBORDADOR NICOLAS AVELLANEDA SOBRE EL RIACHUELO.- | F190: 2 | G190: 604. DIRECCIÓN NACIONAL DE VIALIDAD | H190: 604 | I190: DIRECCION NACIONAL DE VIALIDAD | J190: 16. MANTENIMIENTO | K190: 21 | L190: 3 | M190: 0 | N190: 51 | O190: 15 | P190: 4 | Q190: 2 | R190: 2 | S190: 0 | T190: 4 | U190: 3 | V190: 6 | W190: 1 | X190: - | Y190: - | Z190: AVELLANEDA-CABA | AA190: AVELLANEDA-CABA | AB190: AVELLANEDA-CABA | AC190: 2015-01-16 | AD190: 2017-09-16 | AE190: 92875072.66 | AF190: 69537487.52 | AG190: 4784273 | AH190: 167196833.2 | AI190: 2190589 | AJ190: 0 | AK190: 5419282 | AL190: 0 | AM190: 0 | AN190: 0 | AO190: FINALIZADO | AP190: 0.09340367908 | AQ190: 0.9236 | AR190: ACTIVIDAD INTERNA 0NN. PARTIDA DE MANTENIMIENTO GLOBAL. PRESUPUESTO INICIAL GLOBAL.
B191: 6902 | C191: 1. ESTADO NACIONAL | D191: PUENTES RIACHUELO - MANTENIMIENTO | E191: MANT. DE RUTINA. PARA P/ SOBRE EL RIACHUELO. SIST. MODULAR. PTE. PUEYRREDON (ANTIGUO) - PTE. VICTORINO DE LA PLAZA - PTE. GRAL. URIBURU (EX ALSINA) - LTE. CABA. PCIA. DE BS. AS.- | F191: 2 | G191: 604. DIRECCIÓN NACIONAL DE VIALIDAD | H191: 604 | I191: DIRECCION NACIONAL DE VIALIDAD | J191: 16. MANTENIMIENTO | K191: 21 | L191: 3 | M191: 0 | N191: 51 | O191: 15 | P191: 4 | Q191: 2 | R191: 2 | S191: 0 | T191: 4 | U191: 3 | V191: 6 | W191: 1 | X191: - | Y191: - | Z191: AVELLANEDA-CABA | AA191: AVELLANEDA-CABA | AB191: AVELLANEDA-CABA | AC191: 2015-04-15 | AD191: 2018-08-15 | AE191: 118844299.5 | AF191: 91182950.17 | AG191: 1448829.3 | AH191: 211476079 | AI191: 4583056 | AJ191: 18561870.01 | AK191: 5419282 | AL191: 0 | AM191: 0 | AN191: 0 | AO191: FINALIZADO | AP191: 0.2781029247 | AQ191: 0.9939 | AR191: ACTIVIDAD INTERNA 0OP. PARTIDA DE MANTENIMIENTO GLOBAL. PRESUPUESTO INICIAL GLOBAL.
B192: 7113 | C192: 1. ESTADO NACIONAL | D192: BARRIO CILDAÑEZ | E192: VILLA 6 - Bº CILDAÑEZ - OBRAS DE INFRAESTRUCTURA BÁSICA | F192: 2 | G192: MINISTERIO DE OBRAS PÚBLICAS | H192: 325 | I192: MINISTERIO DE DESARROLLO TERRITORIAL Y HABITAT | J192: 37. ACCIONES DEL PROGRAMA "HÁBITAT NACIÓN" | K192: - | L192: - | M192: 77 - ACCIONES PARA EL DESARROLLO HABITACIONAL Y DE INFRAESTRUCTURA EN LA CUENCA MATANZA - RIACHUELO | N192: 102/2016 | O192: 15 | P192: 5 | Q192: 8 | R192: 1 | S192: - | T192: 3 | U192: 2 | V192: 2 | W192: - | X192: - | Y192: PROVINCIA | Z192: CABA | AA192: VILLA SOLDATI | AB192: Bº CILDAÑEZ | AC192: 2017-03-23 | AD192: - | AE192: 26817241 | AF192: 0 | AG192: 0 | AH192: 25804892.85 | AI192: 20095052.67 | AJ192: 3687253.88 | AK192: =AN192 -> 0 | AL192: 0 | AM192: 0 | AN192: 0 | AO192: EN EJECUCIÓN | AP192: 0.9941669704 | AQ192: 1 | AR192: -
B193: 7114 | C193: 1. ESTADO NACIONAL | D193: BARRIO CILDAÑEZ | E193: VILLA 6 - Bº CILDAÑEZ - MODULOS DE DESARROLLO HUMANO | F193: 2 | G193: MINISTERIO DE OBRAS PÚBLICAS | H193: 325 | I193: MINISTERIO DE DESARROLLO TERRITORIAL Y HABITAT | J193: 37. ACCIONES DEL PROGRAMA "HÁBITAT NACIÓN" | K193: - | L193: - | M193: 77 - ACCIONES PARA EL DESARROLLO HABITACIONAL Y DE INFRAESTRUCTURA EN LA CUENCA MATANZA - RIACHUELO | N193: 102/2016 | O193: 15 | P193: 5 | Q193: 8 | R193: 1 | S193: - | T193: 3 | U193: 2 | V193: 2 | W193: - | X193: - | Y193: PROVINCIA | Z193: CABA | AA193: VILLA SOLDATI | AB193: Bº CILDAÑEZ | AC193: 2016-11-04 | AD193: - | AE193: 4286698 | AF193: - | AG193: - | AH193: 1112762.3 | AI193: 0 | AJ193: 312746.12 | AK193: 0 | AL193: 0 | AM193: 0 | AN193: 0 | AO193: EN EJECUCIÓN | AP193: 0.9941669704 | AQ193: 1 | AR193: -
B194: 7117 | C194: 1. ESTADO NACIONAL | D194: BARRIO VILLA 21-24 | E194: VILLA 21-24 - Bº BAJO FLORES - OBRAS DE INFRAESTRUCTURA BÁSICA | F194: 2 | G194: MINISTERIO DE OBRAS PÚBLICAS | H194: 325 | I194: MINISTERIO DE DESARROLLO TERRITORIAL Y HABITAT | J194: 37. ACCIONES DEL PROGRAMA "HÁBITAT NACIÓN" | K194: - | L194: - | M194: 77 - ACCIONES PARA EL DESARROLLO HABITACIONAL Y DE INFRAESTRUCTURA EN LA CUENCA MATANZA - RIACHUELO | N194: 106/2016 | O194: 15 | P194: 5 | Q194: 8 | R194: 1 | S194: - | T194: 3 | U194: 2 | V194: 2 | W194: - | X194: - | Y194: PROVINCIA | Z194: CABA | AA194: BARRACAS | AB194: VILLA 21-24 | AC194: 2017-03-28 | AD194: - | AE194: 15415932.54 | AF194: 0 | AG194: 0 | AH194: 16883747.88 | AI194: 3800578.28 | AJ194: 5889008.01 | AK194: 0 | AL194: 0 | AM194: 0 | AN194: 0 | AO194: EN EJECUCIÓN | AP194: 0.7563203277 | AQ194: 0.6529257279 | AR194: -
B195: 7119 | C195: 1. ESTADO NACIONAL | D195: BARRIO ACUBA | E195: Bº ACUBA - OBRAS DE INFRAESTRUCTURA BÁSICA | F195: 2 | G195: MINISTERIO DE OBRAS PÚBLICAS | H195: 325 | I195: MINISTERIO DE DESARROLLO TERRITORIAL Y HABITAT | J195: 37. ACCIONES DEL PROGRAMA "HÁBITAT NACIÓN" | K195: - | L195: - | M195: 77 - ACCIONES PARA EL DESARROLLO HABITACIONAL Y DE INFRAESTRUCTURA EN LA CUENCA MATANZA - RIACHUELO | N195: 1258628/2016 | O195: 15 | P195: 5 | Q195: 8 | R195: 6 | S195: - | T195: 3 | U195: 2 | V195: 6 | W195: - | X195: - | Y195: MUNICIPIO | Z195: LANÚS | AA195: LANÚS | AB195: Bº ACUBA | AC195: 2017-03-01 | AD195: - | AE195: 26810871 | AF195: 0 | AG195: 0 | AH195: 26810871 | AI195: 0 | AJ195: 15968699.16 | AK195: 0 | AL195: 0 | AM195: 0 | AN195: 0 | AO195: EN EJECUCIÓN | AP195: 0.8800530332 | AQ195: 0.2787610553 | AR195: -
B196: 7121 | C196: 1. ESTADO NACIONAL | D196: BARRIO VILLA 15 | E196: VILLA 15 - OBRAS DE INFRAESTRUCTURA BÁSICA | F196: 2 | G196: MINISTERIO DE OBRAS PÚBLICAS | H196: 325 | I196: MINISTERIO DE DESARROLLO TERRITORIAL Y HABITAT | J196: 37. ACCIONES DEL PROGRAMA "HÁBITAT NACIÓN" | K196: - | L196: - | M196: 77 - ACCIONES PARA EL DESARROLLO HABITACIONAL Y DE INFRAESTRUCTURA EN LA CUENCA MATANZA - RIACHUELO | N196: 166/2016 | O196: 15 | P196: 5 | Q196: 8 | R196: 1 | S196: - | T196: 3 | U196: 2 | V196: 2 | W196: - | X196: - | Y196: PROVINCIA | Z196: CABA | AA196: VILLA LUGANO | AB196: VILLA 15 | AC196: 2017-03-22 | AD196: - | AE196: 28524937 | AF196: 0 | AG196: 0 | AH196: 31925544.65 | AI196: 6391578.14 | AJ196: 7077433.1 | AK196: 0 | AL196: 0 | AM196: 0 | AN196: 0 | AO196: EN EJECUCIÓN | AP196: 0.9196502597 | AQ196: 1 | AR196: -
B197: 7127 | C197: 1. ESTADO NACIONAL | D197: BARRIO GUADALUPE | E197: Bº GUADALUPE - OBRAS DE INFRAESTRUCTURA BÁSICA | F197: 2 | G197: MINISTERIO DE OBRAS PÚBLICAS | H197: 325 | I197: MINISTERIO DE DESARROLLO TERRITORIAL Y HABITAT | J197: 37. ACCIONES DEL PROGRAMA "HÁBITAT NACIÓN" | K197: - | L197: - | M197: 77 - ACCIONES PARA EL DESARROLLO HABITACIONAL Y DE INFRAESTRUCTURA EN LA CUENCA MATANZA - RIACHUELO | N197: 2295647/2016 | O197: 15 | P197: 5 | Q197: 8 | R197: 6 | S197: - | T197: 3 | U197: 2 | V197: 6 | W197: - | X197: - | Y197: MUNICIPIO | Z197: LANÚS | AA197: MONTE CHINGOLO | AB197: B° GUADALUPE | AC197: 2017-06-05 | AD197: - | AE197: 18311920 | AF197: 0 | AG197: 0 | AH197: 18311920 | AI197: 5356609.276 | AJ197: 3628092 | AK197: 0 | AL197: 0 | AM197: 0 | AN197: 0 | AO197: EN EJECUCIÓN | AP197: 1 | AQ197: 1 | AR197: -
B198: 7128 | C198: 1. ESTADO NACIONAL | D198: BARRIO GUADALUPE | E198: Bº GUADALUPE - MÓDULOS DE DESARROLLO HUMANO | F198: 2 | G198: MINISTERIO DE OBRAS PÚBLICAS | H198: 325 | I198: MINISTERIO DE DESARROLLO TERRITORIAL Y HABITAT | J198: 37. ACCIONES DEL PROGRAMA "HÁBITAT NACIÓN" | K198: - | L198: - | M198: 77 - ACCIONES PARA EL DESARROLLO HABITACIONAL Y DE INFRAESTRUCTURA EN LA CUENCA MATANZA - RIACHUELO | N198: 2295647/2016 | O198: 15 | P198: 5 | Q198: 8 | R198: 6 | S198: - | T198: 3 | U198: 2 | V198: 6 | W198: - | X198: - | Y198: MUNICIPIO | Z198: LANÚS | AA198: MONTE CHINGOLO | AB198: B° GUADALUPE | AC198: - | AD198: - | AE198: 296254 | AF198: 0 | AG198: 0 | AH198: 296254 | AI198: 86660.32423 | AJ198: 0 | AK198: 0 | AL198: 0 | AM198: 0 | AN198: 0 | AO198: A INICIAR | AP198: 0 | AQ198: 0 | AR198: -
B199: 7129 | C199: 1. ESTADO NACIONAL | D199: BARRIO OBRERO | E199: Bº OBRERO - OBRAS DE INFRAESTRUCTURA BÁSICA | F199: 2 | G199: MINISTERIO DE OBRAS PÚBLICAS | H199: 325 | I199: MINISTERIO DE DESARROLLO TERRITORIAL Y HABITAT | J199: 37. ACCIONES DEL PROGRAMA "HÁBITAT NACIÓN" | K199: - | L199: - | M199: 77 - ACCIONES PARA EL DESARROLLO HABITACIONAL Y DE INFRAESTRUCTURA EN LA CUENCA MATANZA - RIACHUELO | N199: 2295649/2016 | O199: 15 | P199: 5 | Q199: 8 | R199: 6 | S199: - | T199: 3 | U199: 2 | V199: 6 | W199: - | X199: - | Y199: MUNICIPIO | Z199: LANÚS | AA199: VALENTÍN ALSINA | AB199: B° OBRERO | AC199: 2017-06-05 | AD199: - | AE199: 16797396 | AF199: 0 | AG199: 0 | AH199: 16797396 | AI199: 6314858.862 | AJ199: 746865 | AK199: 0 | AL199: 0 | AM199: 0 | AN199: 0 | AO199: EN EJECUCIÓN | AP199: 1 | AQ199: 1 | AR199: -
B200: 7130 | C200: 1. ESTADO NACIONAL | D200: BARRIO OBRERO | E200: Bº OBRERO - MÓDULOS DE DESARROLLO HUMANO | F200: 2 | G200: MINISTERIO DE OBRAS PÚBLICAS | H200: 325 | I200: MINISTERIO DE DESARROLLO TERRITORIAL Y HABITAT | J200: 37. ACCIONES DEL PROGRAMA "HÁBITAT NACIÓN" | K200: - | L200: - | M200: 77 - ACCIONES PARA EL DESARROLLO HABITACIONAL Y DE INFRAESTRUCTURA EN LA CUENCA MATANZA - RIACHUELO | N200: 2295649/2016 | O200: 15 | P200: 5 | Q200: 8 | R200: 6 | S200: - | T200: 3 | U200: 2 | V200: 6 | W200: - | X200: - | Y200: MUNICIPIO | Z200: LANÚS | AA200: VALENTÍN ALSINA | AB200: B° OBRERO | AC200: - | AD200: - | AE200: 296254 | AF200: 0 | AG200: 0 | AH200: 296254 | AI200: 83839.13762 | AJ200: 0 | AK200: 0 | AL200: 0 | AM200: 0 | AN200: 0 | AO200: A INICIAR | AP200: 0 | AQ200: 0 | AR200: -
B201: 7131 | C201: 1. ESTADO NACIONAL | D201: BARRIO EL PUEBLITO | E201: Bº EL PUEBLITO - OBRAS DE INFRAESTRUCTURA BÁSICA | F201: 2 | G201: MINISTERIO DE OBRAS PÚBLICAS | H201: 325 | I201: MINISTERIO DE DESARROLLO TERRITORIAL Y HABITAT | J201: 37. ACCIONES DEL PROGRAMA "HÁBITAT NACIÓN" | K201: - | L201: - | M201: 77 - ACCIONES PARA EL DESARROLLO HABITACIONAL Y DE INFRAESTRUCTURA EN LA CUENCA MATANZA - RIACHUELO | N201: 2295650/2016 | O201: 15 | P201: 5 | Q201: 8 | R201: 6 | S201: - | T201: 3 | U201: 2 | V201: 6 | W201: - | X201: - | Y201: MUNICIPIO | Z201: LANÚS | AA201: VALENTÍN ALSINA | AB201: B° EL PUEBLITO | AC201: - | AD201: - | AE201: 55052030 | AF201: 0 | AG201: 0 | AH201: 55052030 | AI201: 23114570.37 | AJ201: 5498333.47 | AK201: 0 | AL201: 0 | AM201: 0 | AN201: 0 | AO201: EN EJECUCIÓN | AP201: 0.95 | AQ201: 0.8992038541 | AR201: -
B202: 7132 | C202: 1. ESTADO NACIONAL | D202: BARRIO EL PUEBLITO | E202: Bº EL PUEBLITO - MÓDULOS DE DESARROLLO HUMANO | F202: 2 | G202: MINISTERIO DE OBRAS PÚBLICAS | H202: 325 | I202: MINISTERIO DE DESARROLLO TERRITORIAL Y HABITAT | J202: 37. ACCIONES DEL PROGRAMA "HÁBITAT NACIÓN" | K202: - | L202: - | M202: 77 - ACCIONES PARA EL DESARROLLO HABITACIONAL Y DE INFRAESTRUCTURA EN LA CUENCA MATANZA - RIACHUELO | N202: 2295650/2016 | O202: 15 | P202: 5 | Q202: 8 | R202: 6 | S202: - | T202: 3 | U202: 2 | V202: 6 | W202: - | X202: - | Y202: MUNICIPIO | Z202: LANÚS | AA202: VALENTÍN ALSINA | AB202: B° EL PUEBLITO | AC202: 2017-05-26 | AD202: - | AE202: 2069922 | AF202: 0 | AG202: 0 | AH202: 2069922 | AI202: 869093.4326 | AJ202: 0 | AK202: 0 | AL202: 0 | AM202: 0 | AN202: 0 | AO202: EN EJECUCIÓN | AP202: 0 | AQ202: 0 | AR202: -
... 888 more rows

Sheet Hoja2
D12: =23706686105-23704771576 -> 1914529

Sheet Hoja4 (hidden)

Sheet Hoja1 (hidden)
E3: Obras informadas | F3: Obras quitadas | G3: Obras con ejecución
D4: VIALIDAD | E4: 8 | F4: 0 | G4: 2
D5: ENOHSA | E5: 4 | F5: 0 | G5: 2
D6: UNIDAD C. | E6: 10 | F6: 0 | G6: 4
D7: BIRF 7706 | E7: 17 | F7: 0 | G7: 13
D8: HÍDRICOS | E8: 6 | F8: 0 | G8: 6
D9: VIVIENDA | E9: 111 | F9: 0 | G9: 23
D10: HABITAT | E10: 44 | F10: 0 | G10: 22
D11: AYSA | E11: 185 | F11: 181 | H11: 4 a revisar
D12: CABA | E12: 118 | F12: 117 | H12: 7809
D13: PBA | E13: 113

Sheet CLASIFICACIÓN MANUAL (hidden)
C1: CLASIFICACIÓN
A2: 01. SISTEMA DE INDICADORES | B2: FORTALECIMIENTO DEL SISTEMA DE INDICADORES DE ACUMAR | C2: SERVICIO
A3: 02. SISTEMA DE INFORMACIÓN PÚBLICA | B3: FORTALECIMIENTO DEL SISTEMA DE INFORMACIÓN PÚBLICA DE ACUMAR | C3: SERVICIO
A4: 03. FORTALECIMIENTO INSTITUCIONAL | B4: FORTALECIMIENTO INSTITUCIONAL DE ACUMAR | C4: SERVICIO
A5: 04. ORDENAMIENTO TERRITORIAL | B5: GENERACIÓN DE ESPACIOS VERDES | C5: OBRA
A6: 04. ORDENAMIENTO TERRITORIAL | B6: OBRAS VIALES ESTRATÉGICAS | C6: OBRA
A7: 04. ORDENAMIENTO TERRITORIAL | B7: ACCIONES EN ÁREAS DE ESPECIAL MANEJO | C7: OBRA
A8: 05. EDUCACIÓN AMBIENTAL | B8: CAMPAÑA DE EDUCACIÓN AMBIENTAL | C8: ACTIVIDAD
A9: 05. EDUCACIÓN AMBIENTAL | B9: CAPACITACIÓN EN EDUCACIÓN AMBIENTAL | C9: ACTIVIDAD
A10: 05. EDUCACIÓN AMBIENTAL | B10: NUEVO CENTRO EDUCATIVO | C10: OBRA
A11: 06. PLAN SANITARIO DE EMERGENCIA | B11: NUEVO EFECTOR DE SALUD | C11: OBRA
A12: 06. PLAN SANITARIO DE EMERGENCIA | B12: MEJORA EN EFECTOR DE SALUD | C12: OBRA
A13: 06. PLAN SANITARIO DE EMERGENCIA | B13: EQUIPAMIENTO PARA EFECTOR DE SALUD | C13: ACTIVIDAD
A14: 06. PLAN SANITARIO DE EMERGENCIA | B14: CAMPAÑA DE PREVENCIÓN | C14: ACTIVIDAD
A15: 06. PLAN SANITARIO DE EMERGENCIA | B15: CAMPAÑA DE VACUNACIÓN | C15: ACTIVIDAD
A16: 06. PLAN SANITARIO DE EMERGENCIA | B16: CAPACITACIÓN EN SALUD AMBIENTAL | C16: ACTIVIDAD
A17: 07. MONITOREO DE LA CALIDAD DE AGUA, SEDIMENTOS Y AIRE | B17: MONITOREO DE CALIDAD DE AGUA Y SEDIMENTOS | C17: ACTIVIDAD
A18: 07. MONITOREO DE LA CALIDAD DE AGUA, SEDIMENTOS Y AIRE | B18: MONITOREO DE CALIDAD DE AIRE | C18: ACTIVIDAD
A19: 07. MONITOREO DE LA CALIDAD DE AGUA, SEDIMENTOS Y AIRE | B19: ESTUDIOS Y EVALUACIONES AMBIENTALES | C19: ACTIVIDAD
A20: 08. URBANIZACIÓN DE VILLAS Y ASENTAMIENTOS URBANOS | B20: VIVIENDAS NUEVAS | C20: OBRA
A21: 08. URBANIZACIÓN DE VILLAS Y ASENTAMIENTOS URBANOS | B21: MEJORAMIENTOS DE VIVIENDA EXISTENTE | C21: OBRA
A22: 08. URBANIZACIÓN DE VILLAS Y ASENTAMIENTOS URBANOS | B22: INFRAESTRUCTURA DE SERVICIOS BÁSICOS | C22: OBRA
A23: 08. URBANIZACIÓN DE VILLAS Y ASENTAMIENTOS URBANOS | B23: CONEXIONES INTRADOMICILIARIAS EN VILLAS Y ASENTAMIENTOS | C23: OBRA
A24: 08. URBANIZACIÓN DE VILLAS Y ASENTAMIENTOS URBANOS | B24: CARACTERIZACIÓN Y REMEDIACIÓN DE SUELO | C24: ACTIVIDAD
A25: 08. URBANIZACIÓN DE VILLAS Y ASENTAMIENTOS URBANOS | B25: RED VIAL Y PEATONAL | C25: OBRA
A26: 08. URBANIZACIÓN DE VILLAS Y ASENTAMIENTOS URBANOS | B26: EQUIPAMIENTO COMUNITARIO | C26: OBRA
A27: 08. URBANIZACIÓN DE VILLAS Y ASENTAMIENTOS URBANOS | B27: REGULARIZACIÓN DOMINIAL | C27: ACTIVIDAD
A28: 08. URBANIZACIÓN DE VILLAS Y ASENTAMIENTOS URBANOS | B28: ADQUISICIÓN DE SUELO PARA PROYECTOS DE VIVIENDA Y HÁBITAT | C28: ACTIVIDAD
A29: 08. URBANIZACIÓN DE VILLAS Y ASENTAMIENTOS URBANOS | B29: FINANCIAMIENTO PARA ADQUISICIÓN DE VIVIENDA | C29: SERVICIO
A30: 09. EXPANSIÓN DE LA RED DE AGUA POTABLE Y SANEAMIENTO DE CLOACAS | B30: EXPANSIÓN DE REDES | C30: OBRA
A31: 09. EXPANSIÓN DE LA RED DE AGUA POTABLE Y SANEAMIENTO DE CLOACAS | B31: MEJORA Y MANTENIMIENTO | C31: ACTIVIDAD
A32: 09. EXPANSIÓN DE LA RED DE AGUA POTABLE Y SANEAMIENTO DE CLOACAS | B32: GRANDES OBRAS DE INFRAESTRUCTURA | C32: OBRA
A33: 09. EXPANSIÓN DE LA RED DE AGUA POTABLE Y SANEAMIENTO DE CLOACAS | B33: CONEXIONES INTRADOMICILIARIAS | C33: OBRA
A34: 10. DESAGÜES PLUVIALES | B34: DESAGÜES PLUVIALES | C34: OBRA
A35: 10. DESAGÜES PLUVIALES | B35: CANALIZACIÓN | C35: OBRA
A36: 10. DESAGÜES PLUVIALES | B36: ENTUBAMIENTOS | C36: OBRA
A37: 10. DESAGÜES PLUVIALES | B37: RESERVORIOS | C37: OBRA
A38: 10. DESAGÜES PLUVIALES | B38: DRAGADO | C38: ACTIVIDAD
A39: 10. DESAGÜES PLUVIALES | B39: SUMIDEROS | C39: OBRA
A40: 10. DESAGÜES PLUVIALES | B40: ESTACIONES DE BOMBEO | C40: OBRA
A41: 10. DESAGÜES PLUVIALES | B41: LIMPIEZA Y MANTENIMIENTO DE CANALES Y LAGUNAS | C41: ACTIVIDAD
A42: 11. CONTAMINACIÓN DE ORIGEN INDUSTRIAL | B42: INSPECCIONES | C42: ACTIVIDAD
A43: 11. CONTAMINACIÓN DE ORIGEN INDUSTRIAL | B43: TOMAS DE MUESTRAS | C43: ACTIVIDAD
A44: 11. CONTAMINACIÓN DE ORIGEN INDUSTRIAL | B44: ESTUDIOS Y EVALUACIONES AMBIENTALES | C44: ACTIVIDAD
A45: 11. CONTAMINACIÓN DE ORIGEN INDUSTRIAL | B45: OBRAS ESTRATÉGICAS EN PREDIO ACUBA | C45: OBRA
A46: 12. LIMPIEZA DE MÁRGENES Y CAMINO DE SIRGA | B46: LIMPIEZA DE MÁRGENES Y ARROYOS | C46: ACTIVIDAD
A47: 12. LIMPIEZA DE MÁRGENES Y CAMINO DE SIRGA | B47: DESINFECCIÓN Y DESRATIZACIÓN | C47: ACTIVIDAD
A48: 12. LIMPIEZA DE MÁRGENES Y CAMINO DE SIRGA | B48: RED VIAL | C48: OBRA
A49: 12. LIMPIEZA DE MÁRGENES Y CAMINO DE SIRGA | B49: PARQUIZACIÓN | C49: OBRA
A50: 12. LIMPIEZA DE MÁRGENES Y CAMINO DE SIRGA | B50: ALUMBRADO PÚBLICO | C50: OBRA
A51: 12. LIMPIEZA DE MÁRGENES Y CAMINO DE SIRGA | B51: SEMAFORIZACIÓN | C51: OBRA
A52: 13. SANEAMIENTO DE BASURALES | B52: RECOLECCIÓN DE RESIDUOS | C52: ACTIVIDAD
A53: 13. SANEAMIENTO DE BASURALES | B53: LIMPIEZA DE BASURALES | C53: ACTIVIDAD
A54: 13. SANEAMIENTO DE BASURALES | B54: NUEVA PLANTA DE TRATAMIENTO DE RESIDUOS | C54: OBRA
A55: 13. SANEAMIENTO DE BASURALES | B55: MEJORAMIENTO EN PLANTA DE TRATAMIENTO DE RESIDUOS | C55: OBRA
A56: 13. SANEAMIENTO DE BASURALES | B56: ESTACIONES DE RECICLADO | C56: OBRA
A57: 13. SANEAMIENTO DE BASURALES | B57: DESINFECCIÓN Y DESRATIZACIÓN | C57: ACTIVIDAD
A58: 14. PROGRAMA POLO PETROQUÍMICO DOCK SUD | B58: BALIZAMIENTO | C58: ACTIVIDAD
A59: 14. PROGRAMA POLO PETROQUÍMICO DOCK SUD | B59: DRAGADO | C59: ACTIVIDAD
A60: 14. PROGRAMA POLO PETROQUÍMICO DOCK SUD | B60: RED VIAL EN POLO DOCK SUD | C60: OBRA
A61: 14. PROGRAMA POLO PETROQUÍMICO DOCK SUD | B61: ALUMBRADO PÚBLICO | C61: OBRA
A62: 14. PROGRAMA POLO PETROQUÍMICO DOCK SUD | B62: SANEAMIENTO | C62: OBRA

Sheet Resumen por LA (hidden)
B4: LINEA DE ACCIÓN
B5: 03. FORTALECIMIENTO INSTITUCIONAL
B6: 02. SISTEMA DE INFORMACIÓN
B7: SISTEMA DE INFORMACIÓN PÚBLICA
B8: SISTEMA DE INFORMACIÓN PÚBLICA
B9: SERVICIO DE MONITOREO DE MEDIOS.-
B10: 03. FORTALECIMIENTO INSTITUCIONAL
B11: 04. ORDENAMIENTO TERRITORIAL
B12: 05. EDUCACIÓN AMBIENTAL
B13: 06. PLAN SANITARIO DE EMERGENCIA
B14: 07. MONITOREO DE LA CALIDAD DE AGUA, SEDIMENTOS Y AIRE
B15: 08. URBANIZACIÓN DE VILLAS Y ASENTAMIENTOS URBANOS
B16: 09. EXPANSIÓN DE LA RED DE AGUA POTABLE Y SANEAMIENTO DE CLOACAS
B17: 10. DESAGÜES PLUVIALES
B18: 11. CONTAMINACIÓN DE ORIGEN INDUSTRIAL
B19: 12. LIMPIEZA DE MÁRGENES Y CAMINO DE SIRGA
B20: 13. SANEAMIENTO DE BASURALES
B21: Total general
